Workbook

Sheet رصد الدرجات
A20: التسلسل العام | B20: بيانات التلميذ | G20: الإسلامية | S20: العربية | AE20: الإنكليزية | AQ20: الرياضيات | BC20: الاجتماعيات | BO20: العلوم | CA20: الفنية والنشيد | CM20: الرياضة | CY20: النتيجة | DC20: Q | DD20: AC | DE20: AO | DF20: BA | DG20: BM | DH20: BY | DI20: CK | DJ20: CW
G21: الفصل الاول | K21: نصف السنة | L21: الفصل الثاني | O21: معدل السعي السنوي | P21: الامتحان النهائي | R21: الدرجة النهائية | S21: الفصل الاول | W21: نصف السنة | X21: الفصل الثاني | AA21: معدل السعي السنوي | AB21: الامتحان النهائي | AD21: الدرجة النهئية | AE21: الفصل الاول | AI21: نصف السنة | AJ21: الفصل الثاني | AM21: معدل السعي السنوي | AN21: الامتحان النهائي | AP21: الدرجة النهئية | AQ21: الفصل الاول | AU21: نصف السنة | AV21: الفصل الثاني | AY21: معدل السعي السنوي | AZ21: الامتحان النهائي | BB21: الدرجة النهئية | BC21: الفصل الاول | BG21: نصف السنة | BH21: الفصل الثاني | BK21: معدل السعي السنوي | BL21: الامتحان النهائي | BN21: الدرجة النهئية | BO21: الفصل الاول | BS21: نصف السنة | BT21: الفصل الثاني | BW21: معدل السعي السنوي | BX21: الامتحان النهائي | BZ21: الدرجة النهئية | CA21: الفصل الاول | CE21: نصف السنة | CF21: الفصل الثاني | CI21: معدل السعي السنوي | CJ21: الامتحان النهائي | CL21: الدرجة النهئية | CM21: الفصل الاول | CQ21: نصف السنة | CR21: الفصل الثاني | CU21: معدل السعي السنوي | CV21: الامتحان النهائي | CX21: الدرجة النهئية | CY21: النهائية | DC21: الإسلامية | DD21: العربية | DE21: الإنكليزية | DF21: الرياضيات | DG21: الاجتماعيات | DH21: العلوم | DI21: الفنية والنشيد | DJ21: الرياضة
G22: ت1 | H22: ت2 | I22: ك1 | J22: معدل الفصل الاول | L22: اذار | M22: نيسان | N22: معدل الفصل الثاني | S22: ت1 | T22: ت2 | U22: ك1 | V22: معدل الفصل الاول | X22: اذار | Y22: نيسان | Z22: معدل الفصل الثاني | AE22: ت1 | AF22: ت2 | AG22: ك1 | AH22: معدل الفصل الاول | AJ22: اذار | AK22: نيسان | AL22: معدل الفصل الثاني | AQ22: ت1 | AR22: ت2 | AS22: ك1 | AT22: معدل الفصل الاول | AV22: اذار | AW22: نيسان | AX22: معدل الفصل الثاني | BC22: ت1 | BD22: ت2 | BE22: ك1 | BF22: معدل الفصل الاول | BH22: اذار | BI22: نيسان | BJ22: معدل الفصل الثاني | BO22: ت1 | BP22: ت2 | BQ22: ك1 | BR22: معدل الفصل الاول | BT22: اذار | BU22: نيسان | BV22: معدل الفصل الثاني | CA22: ت1 | CB22: ت2 | CC22: ك1 | CD22: معدل الفصل الاول | CF22: اذار | CG22: نيسان | CH22: معدل الفصل الثاني | CM22: ت1 | CN22: ت2 | CO22: ك1 | CP22: معدل الفصل الاول | CR22: اذار | CS22: نيسان | CT22: معدل الفصل الثاني | CY22: بعد القرار | DL22: المطلوب كود يقوم باستدعاء البيانات من أعمدة متفرقة الموضحة في هذا الجدول ووضعها هنا كقيم بدون كسور عشرية اريدها اعداد صحيحة مثل 56،433 اريدها تصبح 56 فقط بدون فارزه عشرية
B23: ت | C23: رقم قيده | D23: اسم التلميذ | E23: الجنس | F23: الشعبة | Q23: الاسلامية | AC23: العربية | AO23: الانكليزية | BA23: الرياضيات | BM23: الاجتماعيات | BY23: العلوم | CK23: الفنية والنشيد | CW23: الرياضة | CY23: النتيجة | CZ23: المجموع | DA23: المعدل | DB23: مواد الرسوب
A24: 1 | B24: =COUNTIF($F$24:F24,F24) -> 1 | C24: 500 | D24: احمد1 | E24: ذكر | F24: الخامس-أ | G24: 55 | H24: 55 | I24: 53 | J24: =IF(AND(G24="غائب",H24="غائب",I24="غائب"),"غائب",IF(AND(G24<>"",H24<>"",I24<>""),IF(ABS(SUM(G24:I24))/3-INT(SUM(G24:I24)/3)>=0.5,INT(SUM(G24:I24)/3)+1,SUM(G24:I24)/3),"")) -> 54.33333333 | K24: 74 | L24: 53 | M24: 46 | N24: =IF(AND(L24="غائب",M24="غائب"),"غائب",IF(AND(L24<>"",M24<>""),IF(ABS(SUM(L24:M24))/2-INT(SUM(L24:M24)/2)>=0.5,INT(SUM(L24:M24)/2)+1,SUM(L24:M24)/2),"")) -> 50 | O24: =IF(AND(J24="غائب",K24="غائب",N24="غائب"),"غائب",IF(AND(J24<>"",K24<>"",N24<>""),IF(ABS(SUM(J24,K24,N24))/3-INT(SUM(J24,K24,N24)/3)>=0.5,INT(SUM(J24,K24,N24)/3)+1,SUM(J24,K24,N24)/3),"")) -> 59.44444444 | P24: 45 | Q24: =IF(AND(O24="غائب",P24="غائب"),"غائب",IF(AND(O24<>"",P24<>""),IF(ABS(SUM(O24:P24))/2-INT(SUM(O24:P24)/2)>=0.5,INT(SUM(O24:P24)/2)+1,SUM(O24:P24)/2),"")) -> 52.22222222 | S24: 56 | T24: 59 | U24: 52 | V24: =IF(AND(S24="غائب",T24="غائب",U24="غائب"),"غائب",IF(AND(S24<>"",T24<>"",U24<>""),IF(ABS(SUM(S24:U24))/3-INT(SUM(S24:U24)/3)>=0.5,INT(SUM(S24:U24)/3)+1,SUM(S24:U24)/3),"")) -> 56 | W24: 52 | X24: 52 | Y24: 50 | Z24: =IF(AND(X24="غائب",Y24="غائب"),"غائب",IF(AND(X24<>"",Y24<>""),IF(ABS(SUM(X24:Y24))/2-INT(SUM(X24:Y24)/2)>=0.5,INT(SUM(X24:Y24)/2)+1,SUM(X24:Y24)/2),"")) -> 51 | AA24: =IF(AND(V24="غائب",W24="غائب",Z24="غائب"),"غائب",IF(AND(V24<>"",W24<>"",Z24<>""),IF(ABS(SUM(V24,W24,Z24))/3-INT(SUM(V24,W24,Z24)/3)>=0.5,INT(SUM(V24,W24,Z24)/3)+1,SUM(V24,W24,Z24)/3),"")) -> 53 | AB24: 48 | AC24: =IF(AND(AA24="غائب",AB24="غائب"),"غائب",IF(AND(AA24<>"",AB24<>""),IF(ABS(SUM(AA24:AB24))/2-INT(SUM(AA24:AB24)/2)>=0.5,INT(SUM(AA24:AB24)/2)+1,SUM(AA24:AB24)/2),"")) -> 51 | AE24: 65 | AF24: 65 | AG24: 50 | AH24: =IF(AND(AE24="غائب",AF24="غائب",AG24="غائب"),"غائب",IF(AND(AE24<>"",AF24<>"",AG24<>""),IF(ABS(SUM(AE24:AG24))/3-INT(SUM(AE24:AG24)/3)>=0.5,INT(SUM(AE24:AG24)/3)+1,SUM(AE24:AG24)/3),"")) -> 60 | AI24: 52 | AJ24: 50 | AK24: 37 | AL24: =IF(AND(AJ24="غائب",AK24="غائب"),"غائب",IF(AND(AJ24<>"",AK24<>""),IF(ABS(SUM(AJ24:AK24))/2-INT(SUM(AJ24:AK24)/2)>=0.5,INT(SUM(AJ24:AK24)/2)+1,SUM(AJ24:AK24)/2),"")) -> 44 | AM24: =IF(AND(AH24="غائب",AI24="غائب",AL24="غائب"),"غائب",IF(AND(AH24<>"",AI24<>"",AL24<>""),IF(ABS(SUM(AH24,AI24,AL24))/3-INT(SUM(AH24,AI24,AL24)/3)>=0.5,INT(SUM(AH24,AI24,AL24)/3)+1,SUM(AH24,AI24,AL24)/3),"")) -> 52 | AN24: 47 | AO24: =IF(AND(AM24="غائب",AN24="غائب"),"غائب",IF(AND(AM24<>"",AN24<>""),IF(ABS(SUM(AM24:AN24))/2-INT(SUM(AM24:AN24)/2)>=0.5,INT(SUM(AM24:AN24)/2)+1,SUM(AM24:AN24)/2),"")) -> 50 | AQ24: 40 | AR24: 40 | AS24: 35 | AT24: =IF(AND(AQ24="غائب",AR24="غائب",AS24="غائب"),"غائب",IF(AND(AQ24<>"",AR24<>"",AS24<>""),IF(ABS(SUM(AQ24:AS24))/3-INT(SUM(AQ24:AS24)/3)>=0.5,INT(SUM(AQ24:AS24)/3)+1,SUM(AQ24:AS24)/3),"")) -> 38.33333333 | AU24: 52 | AV24: 59 | AW24: 42 | AX24: =IF(AND(AV24="غائب",AW24="غائب"),"غائب",IF(AND(AV24<>"",AW24<>""),IF(ABS(SUM(AV24:AW24))/2-INT(SUM(AV24:AW24)/2)>=0.5,INT(SUM(AV24:AW24)/2)+1,SUM(AV24:AW24)/2),"")) -> 51 | AY24: =IF(AND(AT24="غائب",AU24="غائب",AX24="غائب"),"غائب",IF(AND(AT24<>"",AU24<>"",AX24<>""),IF(ABS(SUM(AT24,AU24,AX24))/3-INT(SUM(AT24,AU24,AX24)/3)>=0.5,INT(SUM(AT24,AU24,AX24)/3)+1,SUM(AT24,AU24,AX24)/3),"")) -> 47.11111111 | AZ24: 24 | BA24: =IF(AND(AY24="غائب",AZ24="غائب"),"غائب",IF(AND(AY24<>"",AZ24<>""),IF(ABS(SUM(AY24:AZ24))/2-INT(SUM(AY24:AZ24)/2)>=0.5,INT(SUM(AY24:AZ24)/2)+1,SUM(AY24:AZ24)/2),"")) -> 36 | BC24: 66 | BD24: 68 | BE24: 50 | BF24: =IF(AND(BC24="غائب",BD24="غائب",BE24="غائب"),"غائب",IF(AND(BC24<>"",BD24<>"",BE24<>""),IF(ABS(SUM(BC24:BE24))/3-INT(SUM(BC24:BE24)/3)>=0.5,INT(SUM(BC24:BE24)/3)+1,SUM(BC24:BE24)/3),"")) -> 61.33333333 | BG24: 72 | BH24: 59 | BI24: 70 | BJ24: =IF(AND(BH24="غائب",BI24="غائب"),"غائب",IF(AND(BH24<>"",BI24<>""),IF(ABS(SUM(BH24:BI24))/2-INT(SUM(BH24:BI24)/2)>=0.5,INT(SUM(BH24:BI24)/2)+1,SUM(BH24:BI24)/2),"")) -> 65 | BK24: =IF(AND(BF24="غائب",BG24="غائب",BJ24="غائب"),"غائب",IF(AND(BF24<>"",BG24<>"",BJ24<>""),IF(ABS(SUM(BF24,BG24,BJ24))/3-INT(SUM(BF24,BG24,BJ24)/3)>=0.5,INT(SUM(BF24,BG24,BJ24)/3)+1,SUM(BF24,BG24,BJ24)/3),"")) -> 66.11111111 | BL24: 74 | BM24: =IF(AND(BK24="غائب",BL24="غائب"),"غائب",IF(AND(BK24<>"",BL24<>""),IF(ABS(SUM(BK24:BL24))/2-INT(SUM(BK24:BL24)/2)>=0.5,INT(SUM(BK24:BL24)/2)+1,SUM(BK24:BL24)/2),"")) -> 70.05555556 | BO24: 52 | BP24: 54 | BQ24: 52 | BR24: =IF(AND(BO24="غائب",BP24="غائب",BQ24="غائب"),"غائب",IF(AND(BO24<>"",BP24<>"",BQ24<>""),IF(ABS(SUM(BO24:BQ24))/3-INT(SUM(BO24:BQ24)/3)>=0.5,INT(SUM(BO24:BQ24)/3)+1,SUM(BO24:BQ24)/3),"")) -> 53 | BS24: 53 | BT24: 44.5 | BU24: 35 | BV24: =IF(AND(BT24="غائب",BU24="غائب"),"غائب",IF(AND(BT24<>"",BU24<>""),IF(ABS(SUM(BT24:BU24))/2-INT(SUM(BT24:BU24)/2)>=0.5,INT(SUM(BT24:BU24)/2)+1,SUM(BT24:BU24)/2),"")) -> 40 | BW24: =IF(AND(BR24="غائب",BS24="غائب",BV24="غائب"),"غائب",IF(AND(BR24<>"",BS24<>"",BV24<>""),IF(ABS(SUM(BR24,BS24,BV24))/3-INT(SUM(BR24,BS24,BV24)/3)>=0.5,INT(SUM(BR24,BS24,BV24)/3)+1,SUM(BR24,BS24,BV24)/3),"")) -> 49 | BX24: 48 | BY24: =IF(AND(BW24="غائب",BX24="غائب"),"غائب",IF(AND(BW24<>"",BX24<>""),IF(ABS(SUM(BW24:BX24))/2-INT(SUM(BW24:BX24)/2)>=0.5,INT(SUM(BW24:BX24)/2)+1,SUM(BW24:BX24)/2),"")) -> 49 | CA24: 86 | CB24: 86 | CC24: 84 | CD24: =IF(AND(CA24="غائب",CB24="غائب",CC24="غائب"),"غائب",IF(AND(CA24<>"",CB24<>"",CC24<>""),IF(ABS(SUM(CA24:CC24))/3-INT(SUM(CA24:CC24)/3)>=0.5,INT(SUM(CA24:CC24)/3)+1,SUM(CA24:CC24)/3),"")) -> 85.33333333 | CE24: 60 | CF24: 86.33333333 | CG24: 84 | CH24: =IF(AND(CF24="غائب",CG24="غائب"),"غائب",IF(AND(CF24<>"",CG24<>""),IF(ABS(SUM(CF24:CG24))/2-INT(SUM(CF24:CG24)/2)>=0.5,INT(SUM(CF24:CG24)/2)+1,SUM(CF24:CG24)/2),"")) -> 85.16666667 | CI24: =IF(AND(CD24="غائب",CE24="غائب",CH24="غائب"),"غائب",IF(AND(CD24<>"",CE24<>"",CH24<>""),IF(ABS(SUM(CD24,CE24,CH24))/3-INT(SUM(CD24,CE24,CH24)/3)>=0.5,INT(SUM(CD24,CE24,CH24)/3)+1,SUM(CD24,CE24,CH24)/3),"")) -> 77 | CJ24: 60 | CK24: =IF(AND(CI24="غائب",CJ24="غائب"),"غائب",IF(AND(CI24<>"",CJ24<>""),IF(ABS(SUM(CI24:CJ24))/2-INT(SUM(CI24:CJ24)/2)>=0.5,INT(SUM(CI24:CJ24)/2)+1,SUM(CI24:CJ24)/2),"")) -> 69 | CM24: 85 | CN24: 86 | CO24: 86 | CP24: =IF(AND(CM24="غائب",CN24="غائب",CO24="غائب"),"غائب",IF(AND(CM24<>"",CN24<>"",CO24<>""),IF(ABS(SUM(CM24:CO24))/3-INT(SUM(CM24:CO24)/3)>=0.5,INT(SUM(CM24:CO24)/3)+1,SUM(CM24:CO24)/3),"")) -> 86 | CQ24: 87 | CR24: 85 | CS24: 86 | CT24: =IF(AND(CR24="غائب",CS24="غائب"),"غائب",IF(AND(CR24<>"",CS24<>""),IF(ABS(SUM(CR24:CS24))/2-INT(SUM(CR24:CS24)/2)>=0.5,INT(SUM(CR24:CS24)/2)+1,SUM(CR24:CS24)/2),"")) -> 86 | CU24: =IF(AND(CP24="غائب",CQ24="غائب",CT24="غائب"),"غائب",IF(AND(CP24<>"",CQ24<>"",CT24<>""),IF(ABS(SUM(CP24,CQ24,CT24))/3-INT(SUM(CP24,CQ24,CT24)/3)>=0.5,INT(SUM(CP24,CQ24,CT24)/3)+1,SUM(CP24,CQ24,CT24)/3),"")) -> 86.33333333 | CV24: 72 | CW24: =IF(AND(CU24="غائب",CV24="غائب"),"غائب",IF(AND(CU24<>"",CV24<>""),IF(ABS(SUM(CU24:CV24))/2-INT(SUM(CU24:CV24)/2)>=0.5,INT(SUM(CU24:CV24)/2)+1,SUM(CU24:CV24)/2),"")) -> 79.16666667
A25: 2 | B25: =COUNTIF($F$24:F25,F25) -> 2 | C25: 52/4 | D25: احمد2 | E25: ذكر | F25: الخامس-أ | G25: 40 | H25: 62 | I25: 63 | J25: =IF(AND(G25="غائب",H25="غائب",I25="غائب"),"غائب",IF(AND(G25<>"",H25<>"",I25<>""),IF(ABS(SUM(G25:I25))/3-INT(SUM(G25:I25)/3)>=0.5,INT(SUM(G25:I25)/3)+1,SUM(G25:I25)/3),"")) -> 55 | K25: 73 | L25: 62 | M25: 56 | N25: 59 | O25: =IF(AND(J25="غائب",K25="غائب",N25="غائب"),"غائب",IF(AND(J25<>"",K25<>"",N25<>""),IF(ABS(SUM(J25,K25,N25))/3-INT(SUM(J25,K25,N25)/3)>=0.5,INT(SUM(J25,K25,N25)/3)+1,SUM(J25,K25,N25)/3),"")) -> 62.33333333 | P25: 56 | Q25: =IF(AND(O25="غائب",P25="غائب"),"غائب",IF(AND(O25<>"",P25<>""),IF(ABS(SUM(O25:P25))/2-INT(SUM(O25:P25)/2)>=0.5,INT(SUM(O25:P25)/2)+1,SUM(O25:P25)/2),"")) -> 59.16666667 | S25: 54 | T25: 58 | U25: 54 | V25: =IF(AND(S25="غائب",T25="غائب",U25="غائب"),"غائب",IF(AND(S25<>"",T25<>"",U25<>""),IF(ABS(SUM(S25:U25))/3-INT(SUM(S25:U25)/3)>=0.5,INT(SUM(S25:U25)/3)+1,SUM(S25:U25)/3),"")) -> 55.33333333 | W25: 57 | X25: 51 | Y25: 51 | Z25: =IF(AND(X25="غائب",Y25="غائب"),"غائب",IF(AND(X25<>"",Y25<>""),IF(ABS(SUM(X25:Y25))/2-INT(SUM(X25:Y25)/2)>=0.5,INT(SUM(X25:Y25)/2)+1,SUM(X25:Y25)/2),"")) -> 51 | AA25: =IF(AND(V25="غائب",W25="غائب",Z25="غائب"),"غائب",IF(AND(V25<>"",W25<>"",Z25<>""),IF(ABS(SUM(V25,W25,Z25))/3-INT(SUM(V25,W25,Z25)/3)>=0.5,INT(SUM(V25,W25,Z25)/3)+1,SUM(V25,W25,Z25)/3),"")) -> 54.44444444 | AB25: 54 | AC25: =IF(AND(AA25="غائب",AB25="غائب"),"غائب",IF(AND(AA25<>"",AB25<>""),IF(ABS(SUM(AA25:AB25))/2-INT(SUM(AA25:AB25)/2)>=0.5,INT(SUM(AA25:AB25)/2)+1,SUM(AA25:AB25)/2),"")) -> 54.22222222 | AE25: 55 | AF25: 35 | AG25: 35 | AH25: =IF(AND(AE25="غائب",AF25="غائب",AG25="غائب"),"غائب",IF(AND(AE25<>"",AF25<>"",AG25<>""),IF(ABS(SUM(AE25:AG25))/3-INT(SUM(AE25:AG25)/3)>=0.5,INT(SUM(AE25:AG25)/3)+1,SUM(AE25:AG25)/3),"")) -> 42 | AI25: 38 | AJ25: 44 | AK25: 40 | AL25: =IF(AND(AJ25="غائب",AK25="غائب"),"غائب",IF(AND(AJ25<>"",AK25<>""),IF(ABS(SUM(AJ25:AK25))/2-INT(SUM(AJ25:AK25)/2)>=0.5,INT(SUM(AJ25:AK25)/2)+1,SUM(AJ25:AK25)/2),"")) -> 42 | AM25: =IF(AND(AH25="غائب",AI25="غائب",AL25="غائب"),"غائب",IF(AND(AH25<>"",AI25<>"",AL25<>""),IF(ABS(SUM(AH25,AI25,AL25))/3-INT(SUM(AH25,AI25,AL25)/3)>=0.5,INT(SUM(AH25,AI25,AL25)/3)+1,SUM(AH25,AI25,AL25)/3),"")) -> 41 | AN25: 54 | AO25: =IF(AND(AM25="غائب",AN25="غائب"),"غائب",IF(AND(AM25<>"",AN25<>""),IF(ABS(SUM(AM25:AN25))/2-INT(SUM(AM25:AN25)/2)>=0.5,INT(SUM(AM25:AN25)/2)+1,SUM(AM25:AN25)/2),"")) -> 48 | AQ25: 40 | AR25: 35 | AS25: 40 | AT25: =IF(AND(AQ25="غائب",AR25="غائب",AS25="غائب"),"غائب",IF(AND(AQ25<>"",AR25<>"",AS25<>""),IF(ABS(SUM(AQ25:AS25))/3-INT(SUM(AQ25:AS25)/3)>=0.5,INT(SUM(AQ25:AS25)/3)+1,SUM(AQ25:AS25)/3),"")) -> 38.33333333 | AU25: 58 | AV25: 44 | AW25: 56 | AX25: =IF(AND(AV25="غائب",AW25="غائب"),"غائب",IF(AND(AV25<>"",AW25<>""),IF(ABS(SUM(AV25:AW25))/2-INT(SUM(AV25:AW25)/2)>=0.5,INT(SUM(AV25:AW25)/2)+1,SUM(AV25:AW25)/2),"")) -> 50 | AY25: =IF(AND(AT25="غائب",AU25="غائب",AX25="غائب"),"غائب",IF(AND(AT25<>"",AU25<>"",AX25<>""),IF(ABS(SUM(AT25,AU25,AX25))/3-INT(SUM(AT25,AU25,AX25)/3)>=0.5,INT(SUM(AT25,AU25,AX25)/3)+1,SUM(AT25,AU25,AX25)/3),"")) -> 49 | AZ25: 41 | BA25: =IF(AND(AY25="غائب",AZ25="غائب"),"غائب",IF(AND(AY25<>"",AZ25<>""),IF(ABS(SUM(AY25:AZ25))/2-INT(SUM(AY25:AZ25)/2)>=0.5,INT(SUM(AY25:AZ25)/2)+1,SUM(AY25:AZ25)/2),"")) -> 45 | BC25: 45 | BD25: 68 | BE25: 54 | BF25: =IF(AND(BC25="غائب",BD25="غائب",BE25="غائب"),"غائب",IF(AND(BC25<>"",BD25<>"",BE25<>""),IF(ABS(SUM(BC25:BE25))/3-INT(SUM(BC25:BE25)/3)>=0.5,INT(SUM(BC25:BE25)/3)+1,SUM(BC25:BE25)/3),"")) -> 56 | BG25: 60 | BH25: 58 | BI25: 84 | BJ25: =IF(AND(BH25="غائب",BI25="غائب"),"غائب",IF(AND(BH25<>"",BI25<>""),IF(ABS(SUM(BH25:BI25))/2-INT(SUM(BH25:BI25)/2)>=0.5,INT(SUM(BH25:BI25)/2)+1,SUM(BH25:BI25)/2),"")) -> 71 | BK25: =IF(AND(BF25="غائب",BG25="غائب",BJ25="غائب"),"غائب",IF(AND(BF25<>"",BG25<>"",BJ25<>""),IF(ABS(SUM(BF25,BG25,BJ25))/3-INT(SUM(BF25,BG25,BJ25)/3)>=0.5,INT(SUM(BF25,BG25,BJ25)/3)+1,SUM(BF25,BG25,BJ25)/3),"")) -> 62.33333333 | BL25: 68 | BM25: =IF(AND(BK25="غائب",BL25="غائب"),"غائب",IF(AND(BK25<>"",BL25<>""),IF(ABS(SUM(BK25:BL25))/2-INT(SUM(BK25:BL25)/2)>=0.5,INT(SUM(BK25:BL25)/2)+1,SUM(BK25:BL25)/2),"")) -> 65.16666667 | BO25: 39 | BP25: 50 | BQ25: 48 | BR25: =IF(AND(BO25="غائب",BP25="غائب",BQ25="غائب"),"غائب",IF(AND(BO25<>"",BP25<>"",BQ25<>""),IF(ABS(SUM(BO25:BQ25))/3-INT(SUM(BO25:BQ25)/3)>=0.5,INT(SUM(BO25:BQ25)/3)+1,SUM(BO25:BQ25)/3),"")) -> 46 | BS25: 35 | BT25: 53.5 | BU25: 50 | BV25: =IF(AND(BT25="غائب",BU25="غائب"),"غائب",IF(AND(BT25<>"",BU25<>""),IF(ABS(SUM(BT25:BU25))/2-INT(SUM(BT25:BU25)/2)>=0.5,INT(SUM(BT25:BU25)/2)+1,SUM(BT25:BU25)/2),"")) -> 52 | BW25: =IF(AND(BR25="غائب",BS25="غائب",BV25="غائب"),"غائب",IF(AND(BR25<>"",BS25<>"",BV25<>""),IF(ABS(SUM(BR25,BS25,BV25))/3-INT(SUM(BR25,BS25,BV25)/3)>=0.5,INT(SUM(BR25,BS25,BV25)/3)+1,SUM(BR25,BS25,BV25)/3),"")) -> 44.33333333 | BX25: 55 | BY25: =IF(AND(BW25="غائب",BX25="غائب"),"غائب",IF(AND(BW25<>"",BX25<>""),IF(ABS(SUM(BW25:BX25))/2-INT(SUM(BW25:BX25)/2)>=0.5,INT(SUM(BW25:BX25)/2)+1,SUM(BW25:BX25)/2),"")) -> 50 | CA25: 85 | CB25: 80 | CC25: 80 | CD25: =IF(AND(CA25="غائب",CB25="غائب",CC25="غائب"),"غائب",IF(AND(CA25<>"",CB25<>"",CC25<>""),IF(ABS(SUM(CA25:CC25))/3-INT(SUM(CA25:CC25)/3)>=0.5,INT(SUM(CA25:CC25)/3)+1,SUM(CA25:CC25)/3),"")) -> 82 | CE25: 70 | CF25: 83.33333333 | CG25: 80 | CH25: =IF(AND(CF25="غائب",CG25="غائب"),"غائب",IF(AND(CF25<>"",CG25<>""),IF(ABS(SUM(CF25:CG25))/2-INT(SUM(CF25:CG25)/2)>=0.5,INT(SUM(CF25:CG25)/2)+1,SUM(CF25:CG25)/2),"")) -> 82 | CI25: =IF(AND(CD25="غائب",CE25="غائب",CH25="غائب"),"غائب",IF(AND(CD25<>"",CE25<>"",CH25<>""),IF(ABS(SUM(CD25,CE25,CH25))/3-INT(SUM(CD25,CE25,CH25)/3)>=0.5,INT(SUM(CD25,CE25,CH25)/3)+1,SUM(CD25,CE25,CH25)/3),"")) -> 78 | CJ25: 70 | CK25: =IF(AND(CI25="غائب",CJ25="غائب"),"غائب",IF(AND(CI25<>"",CJ25<>""),IF(ABS(SUM(CI25:CJ25))/2-INT(SUM(CI25:CJ25)/2)>=0.5,INT(SUM(CI25:CJ25)/2)+1,SUM(CI25:CJ25)/2),"")) -> 74 | CM25: 80 | CN25: 85 | CO25: 80 | CP25: =IF(AND(CM25="غائب",CN25="غائب",CO25="غائب"),"غائب",IF(AND(CM25<>"",CN25<>"",CO25<>""),IF(ABS(SUM(CM25:CO25))/3-INT(SUM(CM25:CO25)/3)>=0.5,INT(SUM(CM25:CO25)/3)+1,SUM(CM25:CO25)/3),"")) -> 82 | CQ25: 86 | CR25: 82 | CS25: 82 | CT25: =IF(AND(CR25="غائب",CS25="غائب"),"غائب",IF(AND(CR25<>"",CS25<>""),IF(ABS(SUM(CR25:CS25))/2-INT(SUM(CR25:CS25)/2)>=0.5,INT(SUM(CR25:CS25)/2)+1,SUM(CR25:CS25)/2),"")) -> 82 | CU25: =IF(AND(CP25="غائب",CQ25="غائب",CT25="غائب"),"غائب",IF(AND(CP25<>"",CQ25<>"",CT25<>""),IF(ABS(SUM(CP25,CQ25,CT25))/3-INT(SUM(CP25,CQ25,CT25)/3)>=0.5,INT(SUM(CP25,CQ25,CT25)/3)+1,SUM(CP25,CQ25,CT25)/3),"")) -> 83.33333333 | CV25: 74 | CW25: 79
A26: 3 | B26: =COUNTIF($F$24:F26,F26) -> 3 | C26: 233/4 | D26: احمد3 | E26: ذكر | F26: الخامس-أ | G26: 57 | H26: 63 | I26: 73 | J26: 64.33333333 | K26: 65 | L26: 62 | M26: 68 | N26: 65 | O26: =IF(AND(J26="غائب",K26="غائب",N26="غائب"),"غائب",IF(AND(J26<>"",K26<>"",N26<>""),IF(ABS(SUM(J26,K26,N26))/3-INT(SUM(J26,K26,N26)/3)>=0.5,INT(SUM(J26,K26,N26)/3)+1,SUM(J26,K26,N26)/3),"")) -> 65 | P26: 85 | Q26: 75 | S26: 75 | T26: 82 | U26: 77 | V26: 78 | W26: 73 | X26: 72 | Y26: 78 | Z26: 75 | AA26: 75.33333333 | AB26: 64 | AC26: =IF(AND(AA26="غائب",AB26="غائب"),"غائب",IF(AND(AA26<>"",AB26<>""),IF(ABS(SUM(AA26:AB26))/2-INT(SUM(AA26:AB26)/2)>=0.5,INT(SUM(AA26:AB26)/2)+1,SUM(AA26:AB26)/2),"")) -> 70 | AE26: 60 | AF26: 58 | AG26: 61 | AH26: 60 | AI26: 49 | AJ26: 55 | AK26: 50 | AL26: 53 | AM26: 54 | AN26: 57 | AO26: 56 | AQ26: 35 | AR26: 41 | AS26: 50 | AT26: 42 | AU26: 39 | AV26: 44.5 | AW26: 43 | AX26: 44 | AY26: 42 | AZ26: 64 | BA26: 53 | BC26: 57 | BD26: 69 | BE26: 63 | BF26: 63 | BG26: 81 | BH26: 40 | BI26: 59 | BJ26: 50 | BK26: 65 | BL26: 69 | BM26: 67 | BO26: 61 | BP26: 53 | BQ26: 75 | BR26: 63 | BS26: 60 | BT26: 57.5 | BU26: 53 | BV26: 55.25 | BW26: 59.41666667 | BX26: 42 | BY26: =IF(AND(BW26="غائب",BX26="غائب"),"غائب",IF(AND(BW26<>"",BX26<>""),IF(ABS(SUM(BW26:BX26))/2-INT(SUM(BW26:BX26)/2)>=0.5,INT(SUM(BW26:BX26)/2)+1,SUM(BW26:BX26)/2),"")) -> 51 | CA26: 87 | CB26: 90 | CC26: 84 | CD26: 87 | CE26: 90 | CF26: 91.33333333 | CG26: 84 | CH26: 88 | CI26: 88.33333333 | CJ26: 90 | CK26: 89.16666667 | CM26: 86 | CN26: 87 | CO26: 90 | CP26: 88 | CQ26: 98 | CR26: 87 | CS26: 88 | CT26: 88 | CU26: 91.33333333 | CV26: 83 | CW26: 87.16666667
A27: 4 | B27: =COUNTIF($F$24:F27,F27) -> 4 | C27: 283/4 | D27: احمد4 | E27: ذكر | F27: الخامس-أ | G27: 80 | H27: 90 | I27: 84 | J27: 85 | K27: 97 | L27: 97 | M27: 95 | N27: 96 | O27: =IF(AND(J27="غائب",K27="غائب",N27="غائب"),"غائب",IF(AND(J27<>"",K27<>"",N27<>""),IF(ABS(SUM(J27,K27,N27))/3-INT(SUM(J27,K27,N27)/3)>=0.5,INT(SUM(J27,K27,N27)/3)+1,SUM(J27,K27,N27)/3),"")) -> 93 | P27: 87 | Q27: 90 | S27: 92 | T27: 100 | U27: 94 | V27: 95.33333333 | W27: 96 | X27: 98 | Y27: 100 | Z27: 99 | AA27: 97 | AB27: 77 | AC27: 87 | AE27: 78 | AF27: 97 | AG27: 94 | AH27: 90 | AI27: 82 | AJ27: 90 | AK27: 96 | AL27: 93 | AM27: 88.33333333 | AN27: 88 | AO27: 88.16666667 | AQ27: 74 | AR27: 70 | AS27: 83 | AT27: 76 | AU27: 80 | AV27: 72 | AW27: 86 | AX27: 79 | AY27: 78.33333333 | AZ27: 74 | BA27: 76.16666667 | BC27: 87 | BD27: 98 | BE27: 98 | BF27: 94.33333333 | BG27: 98 | BH27: 96 | BI27: 100 | BJ27: 98 | BK27: 97 | BL27: 100 | BM27: 99 | BO27: 50 | BP27: 75 | BQ27: 100 | BR27: 75 | BS27: 81 | BT27: 86 | BU27: 94 | BV27: 90 | BW27: 82 | BX27: 84 | BY27: 83 | CA27: 96 | CB27: 97 | CC27: 90 | CD27: 94.33333333 | CE27: 95 | CF27: 97.05555556 | CG27: 90 | CH27: 94 | CI27: 94.44444444 | CJ27: 90 | CK27: 92.22222222 | CM27: 95 | CN27: 96 | CO27: 97 | CP27: 96 | CQ27: 100 | CR27: 94 | CS27: 96 | CT27: 95 | CU27: 97 | CV27: 99 | CW27: 98
A28: 5 | B28: =COUNTIF($F$24:F28,F28) -> 5 | C28: 351/3 | D28: احمد5 | E28: ذكر | F28: الخامس-أ | G28: 41 | H28: 55 | I28: 55 | J28: 50.33333333 | K28: 65 | L28: 51 | M28: 48 | N28: 50 | O28: =IF(AND(J28="غائب",K28="غائب",N28="غائب"),"غائب",IF(AND(J28<>"",K28<>"",N28<>""),IF(ABS(SUM(J28,K28,N28))/3-INT(SUM(J28,K28,N28)/3)>=0.5,INT(SUM(J28,K28,N28)/3)+1,SUM(J28,K28,N28)/3),"")) -> 55.11111111 | P28: 54 | Q28: 55 | S28: 62 | T28: 66 | U28: 70 | V28: 66 | W28: 67 | X28: 70 | Y28: 77 | Z28: 74 | AA28: 69 | AB28: 58 | AC28: 64 | AE28: 34 | AF28: 27 | AG28: 38 | AH28: 33 | AI28: 38 | AJ28: 38 | AK28: 26 | AL28: 32 | AM28: 34.33333333 | AN28: 35 | AO28: 35 | AQ28: 30 | AR28: 32 | AS28: 38 | AT28: 33.33333333 | AU28: 41 | AV28: 54 | AW28: 51 | AX28: 53 | AY28: 42.44444444 | AZ28: 57 | BA28: 50 | BC28: 40 | BD28: 52 | BE28: 40 | BF28: 44 | BG28: 60 | BH28: 35 | BI28: 38 | BJ28: 37 | BK28: 47 | BL28: 76 | BM28: 62 | BO28: 39 | BP28: 38 | BQ28: 45 | BR28: 41 | BS28: 40 | BT28: 43.5 | BU28: 56 | BV28: 50 | BW28: 44 | BX28: 57 | BY28: 51 | CA28: 80 | CB28: 82 | CC28: 83 | CD28: 82 | CE28: 80 | CF28: 82 | CG28: 83 | CH28: 83 | CI28: 82 | CJ28: 80 | CK28: 81 | CM28: 80 | CN28: 80 | CO28: 82 | CP28: 81 | CQ28: 83 | CR28: 82 | CS28: 81 | CT28: 82 | CU28: 82 | CV28: 73 | CW28: 78
A29: 6 | B29: =COUNTIF($F$24:F29,F29) -> 6 | C29: 34/4 | D29: احمد6 | E29: ذكر | F29: الخامس-أ | G29: 38 | H29: 52 | I29: 60 | J29: 50 | K29: 68 | L29: 75 | M29: 75 | N29: 75 | O29: 64.33333333 | P29: 74 | Q29: 69.16666667 | S29: 63 | T29: 83 | U29: 69 | V29: 72 | W29: 71 | X29: 67 | Y29: 78 | Z29: 73 | AA29: 72 | AB29: 62 | AC29: 67 | AE29: 55 | AF29: 50 | AG29: 57 | AH29: 54 | AI29: 56 | AJ29: 55 | AK29: 51 | AL29: 53 | AM29: 54.33333333 | AN29: 48 | AO29: 51.16666667 | AQ29: 35 | AR29: 40 | AS29: 51 | AT29: 42 | AU29: 60 | AV29: 50 | AW29: 58 | AX29: 54 | AY29: 52 | AZ29: 60 | BA29: 56 | BC29: 43 | BD29: 40 | BE29: 66 | BF29: 50 | BG29: 60 | BH29: 50 | BI29: 94 | BJ29: 72 | BK29: 61 | BL29: 75 | BM29: 68 | BO29: 51 | BP29: 52 | BQ29: 66 | BR29: 56.33333333 | BS29: 61 | BT29: 50 | BU29: 51 | BV29: 51 | BW29: 56.11111111 | BX29: 62 | BY29: 59.05555556 | CA29: 85 | CB29: 85 | CC29: 85 | CD29: 85 | CE29: 85 | CF29: 86.33333333 | CG29: 85 | CH29: 86 | CI29: 85.33333333 | CJ29: 85 | CK29: 85.16666667 | CM29: 85 | CN29: 85 | CO29: 85 | CP29: 85 | CQ29: 89 | CR29: 85 | CS29: 85 | CT29: 85 | CU29: 86.33333333 | CV29: 81 | CW29: 84
A30: 7 | B30: =COUNTIF($F$24:F30,F30) -> 7 | C30: 56/4 | D30: احمد7 | E30: ذكر | F30: الخامس-أ | G30: 55 | H30: 54 | I30: 70 | J30: 60 | K30: 67 | L30: 74 | M30: 56 | N30: 65 | O30: 64 | P30: 72 | Q30: 68 | S30: 60 | T30: 67 | U30: 67 | V30: 65 | W30: 64 | X30: 65 | Y30: 75 | Z30: 70 | AA30: 66.33333333 | AB30: 62 | AC30: 64.16666667 | AE30: 55 | AF30: 47 | AG30: 47 | AH30: 50 | AI30: 40 | AJ30: 55 | AK30: 45 | AL30: 50 | AM30: 47 | AN30: 57 | AO30: 52 | AQ30: 55 | AR30: 35 | AS30: 39 | AT30: 43 | AU30: 51 | AV30: 54.5 | AW30: 50 | AX30: 52.25 | AY30: 49 | AZ30: 59 | BA30: 54 | BC30: 58 | BD30: 62 | BE30: 55 | BF30: 58.33333333 | BG30: 80 | BH30: 51 | BI30: 76 | BJ30: 64 | BK30: 67.44444444 | BL30: 76 | BM30: 72 | BO30: 39 | BP30: 54 | BQ30: 60 | BR30: 51 | BS30: 57 | BT30: 71 | BU30: 42 | BV30: 57 | BW30: 55 | BX30: 64 | BY30: 60 | CA30: 86 | CB30: 83 | CC30: 83 | CD30: 84 | CE30: 85 | CF30: 87 | CG30: 83 | CH30: 85 | CI30: 85 | CJ30: 85 | CK30: 85 | CM30: 80 | CN30: 86 | CO30: 83 | CP30: 83 | CQ30: 93 | CR30: 84 | CS30: 83 | CT30: 84 | CU30: 87 | CV30: 81 | CW30: 84
A31: 8 | B31: =COUNTIF($F$24:F31,F31) -> 8 | C31: 97/4 | D31: احمد8 | E31: ذكر | F31: الخامس-أ | G31: 59 | H31: 73 | I31: 78 | J31: 70 | K31: 88 | L31: 79 | M31: 86 | N31: 83 | O31: 80.33333333 | P31: 74 | Q31: 77.16666667 | S31: 81 | T31: 71 | U31: 78 | V31: 77 | W31: 85 | X31: 80 | Y31: 79 | Z31: 80 | AA31: 81 | AB31: 83 | AC31: 82 | AE31: 55 | AF31: 40 | AG31: 60 | AH31: 52 | AI31: 57 | AJ31: 80 | AK31: 60 | AL31: 70 | AM31: 60 | AN31: 68 | AO31: 64 | AQ31: 85 | AR31: 82 | AS31: 93 | AT31: 87 | AU31: 87 | AV31: 79 | AW31: 94 | AX31: 87 | AY31: 87 | AZ31: 100 | BA31: 94 | BC31: 83 | BD31: 80 | BE31: 83 | BF31: 82 | BG31: 91 | BH31: 78 | BI31: 94 | BJ31: 86 | BK31: 86.33333333 | BL31: 93 | BM31: 90 | BO31: 66 | BP31: 76 | BQ31: 76 | BR31: 73 | BS31: 61 | BT31: 80 | BU31: 89 | BV31: 85 | BW31: 73 | BX31: 75 | BY31: 74 | CA31: 80 | CB31: 85 | CC31: 83.33333333 | CD31: 83 | CE31: 80 | CF31: 88 | CG31: 83.33333333 | CH31: 86 | CI31: 83 | CJ31: 80 | CK31: 82 | CM31: 85 | CN31: 80 | CO31: 85 | CP31: 83.33333333 | CQ31: 97 | CR31: 83 | CS31: 83.33333333 | CT31: 83.16666667 | CU31: 88 | CV31: 82 | CW31: 85
A32: 9 | B32: =COUNTIF($F$24:F32,F32) -> 9 | C32: 32/4 | D32: احمد9 | E32: ذكر | F32: الخامس-أ | G32: 51 | H32: 51 | I32: 65 | J32: 56 | K32: 69 | L32: 68 | M32: 36 | N32: 52 | O32: 59 | P32: 74 | Q32: 67 | S32: 66 | T32: 59 | U32: 58 | V32: 61 | W32: 53 | X32: 53 | Y32: 55 | Z32: 54 | AA32: 56 | AB32: 45 | AC32: 51 | AE32: 50 | AF32: 40 | AG32: 59 | AH32: 50 | AI32: 45 | AJ32: 45 | AK32: 40 | AL32: 43 | AM32: 46 | AN32: 46 | AO32: 46 | AQ32: 35 | AR32: 35 | AS32: 50 | AT32: 40 | AU32: 58 | AV32: 41 | AW32: 58 | AX32: 50 | AY32: 49.33333333 | AZ32: 23 | BA32: 36.16666667 | BC32: 51 | BD32: 40 | BE32: 58 | BF32: 50 | BG32: 64 | BH32: 35 | BI32: 40 | BJ32: 38 | BK32: 51 | BL32: 57 | BM32: 54 | BO32: 43 | BP32: 43 | BQ32: 50 | BR32: 45.33333333 | BS32: 50 | BT32: 42 | BU32: 45 | BV32: 44 | BW32: 46.44444444 | BX32: 59 | BY32: 53 | CA32: 80 | CB32: 85 | CC32: 81 | CD32: 82 | CE32: 70 | CF32: 83.33333333 | CG32: 81 | CH32: 82.16666667 | CI32: 78.05555556 | CJ32: 70 | CK32: 74.02777778 | CM32: 77 | CN32: 80 | CO32: 85 | CP32: 81 | CQ32: 87 | CR32: 82 | CS32: 81 | CT32: 82 | CU32: 83.33333333 | CV32: 75 | CW32: 79.16666667
A33: 10 | B33: =COUNTIF($F$24:F33,F33) -> 10 | C33: 100/4 | D33: احمد10 | E33: ذكر | F33: الخامس-أ | G33: 78 | H33: 90 | I33: 91 | J33: 86.33333333 | K33: 99 | L33: 97 | M33: 80 | N33: 89 | O33: 91.44444444 | P33: 99 | Q33: 95.22222222 | S33: 94 | T33: 98 | U33: 95 | V33: 96 | W33: 93 | X33: 99 | Y33: 87 | Z33: 93 | AA33: 94 | AB33: 89 | AC33: 92 | AE33: 70 | AF33: 64 | AG33: 86 | AH33: 73.33333333 | AI33: 80 | AJ33: 100 | AK33: 100 | AL33: 100 | AM33: 84.44444444 | AN33: 88 | AO33: 86.22222222 | AQ33: 90 | AR33: 72 | AS33: 88 | AT33: 83.33333333 | AU33: 93 | AV33: 91.5 | AW33: 98 | AX33: 95 | AY33: 90.44444444 | AZ33: 97 | BA33: 94 | BC33: 78 | BD33: 93 | BE33: 95 | BF33: 89 | BG33: 100 | BH33: 96 | BI33: 98 | BJ33: 97 | BK33: 95.33333333 | BL33: 92 | BM33: 94 | BO33: 78 | BP33: 90 | BQ33: 99 | BR33: 89 | BS33: 82 | BT33: 97 | BU33: 100 | BV33: 99 | BW33: 90 | BX33: 84 | BY33: 87 | CA33: 97 | CB33: 95 | CC33: 96 | CD33: 96 | CE33: 95 | CF33: 96.33333333 | CG33: 96 | CH33: 96.16666667 | CI33: 96 | CJ33: 95 | CK33: 96 | CM33: 95 | CN33: 97 | CO33: 95 | CP33: 96 | CQ33: 97 | CR33: 96 | CS33: 96 | CT33: 96 | CU33: 96.33333333 | CV33: 99 | CW33: 98
A34: 11 | B34: =COUNTIF($F$24:F34,F34) -> 11 | C34: 249/3 | D34: احمد11 | E34: ذكر | F34: الخامس-أ | G34: 76 | H34: 87 | I34: 57 | J34: 73.33333333 | K34: 67 | L34: 60 | M34: 62 | N34: 61 | O34: 67.11111111 | P34: 68 | Q34: 68 | S34: 78 | T34: 71 | U34: 68 | V34: 72.33333333 | W34: 85 | X34: 58 | Y34: 61 | Z34: 60 | AA34: 72.44444444 | AB34: 68 | AC34: 70.22222222 | AE34: 55 | AF34: 50 | AG34: 55 | AH34: 53.33333333 | AI34: 51 | AJ34: 58 | AK34: 55 | AL34: 57 | AM34: 54 | AN34: 58 | AO34: 56 | AQ34: 57 | AR34: 55 | AS34: 50 | AT34: 54 | AU34: 51 | AV34: 50 | AW34: 51 | AX34: 51 | AY34: 52 | AZ34: 59 | BA34: 56 | BC34: 62 | BD34: 75 | BE34: 56 | BF34: 64.33333333 | BG34: 76 | BH34: 63 | BI34: 53 | BJ34: 58 | BK34: 66.11111111 | BL34: 73 | BM34: 70 | BO34: 62 | BP34: 60 | BQ34: 55 | BR34: 59 | BS34: 57 | BT34: 70 | BU34: 60 | BV34: 65 | BW34: 60.33333333 | BX34: 65 | BY34: 63 | CA34: 85 | CB34: 88 | CC34: 88 | CD34: 87 | CE34: 80 | CF34: 87 | CG34: 88 | CH34: 88 | CI34: 85 | CJ34: 80 | CK34: 83 | CM34: 90 | CN34: 85 | CO34: 88 | CP34: 88 | CQ34: 85 | CR34: 87 | CS34: 88 | CT34: 88 | CU34: 87 | CV34: 79 | CW34: 83
A35: 12 | B35: =COUNTIF($F$24:F35,F35) -> 12 | C35: 24/4 | D35: احمد12 | E35: ذكر | F35: الخامس-أ | G35: 32 | H35: 36 | I35: 40 | J35: 36 | K35: 49 | L35: 50 | M35: 64 | N35: 57 | O35: 47.33333333 | P35: 61 | Q35: 54.16666667 | S35: 32 | T35: 50 | U35: 51 | V35: 44.33333333 | W35: 48 | X35: 60 | Y35: 53 | Z35: 57 | AA35: 50 | AB35: 51 | AC35: 51 | AE35: 30 | AF35: 20 | AG35: 40 | AH35: 30 | AI35: 36 | AJ35: 40 | AK35: 32 | AL35: 36 | AM35: 34 | AN35: 28 | AO35: 31 | AQ35: 40 | AR35: 35 | AS35: 35 | AT35: 37 | AU35: 30 | AV35: 43 | AW35: 57 | AX35: 50 | AY35: 39 | AZ35: 42 | BA35: 41 | BC35: 31 | BD35: 44 | BE35: 38 | BF35: 38 | BG35: 63 | BH35: 68 | BI35: 58 | BJ35: 63 | BK35: 55 | BL35: 62 | BM35: 59 | BO35: 39 | BP35: 35 | BQ35: 40 | BR35: 38 | BS35: 33 | BT35: 41 | BU35: 50 | BV35: 46 | BW35: 39 | BX35: 40 | BY35: 40 | CA35: 85 | CB35: 85 | CC35: 85 | CD35: 85 | CE35: 80 | CF35: 85 | CG35: 85 | CH35: 85 | CI35: 83.33333333 | CJ35: 80 | CK35: 82 | CM35: 85 | CN35: 85 | CO35: 85 | CP35: 85 | CQ35: 85 | CR35: 85 | CS35: 85 | CT35: 85 | CU35: 85 | CV35: 76 | CW35: 81
A36: 13 | B36: =COUNTIF($F$24:F36,F36) -> 13 | C36: 57/4 | D36: احمد13 | E36: ذكر | F36: الخامس-أ | G36: 23 | H36: 66 | I36: 60 | J36: 50 | K36: 51 | L36: 63 | M36: 62 | N36: 63 | O36: 55 | P36: 63 | Q36: 59 | S36: 68 | T36: 74 | U36: 64 | V36: 69 | W36: 52 | X36: 57 | Y36: 68 | Z36: 63 | AA36: 61.33333333 | AB36: 57 | AC36: 59.16666667 | AE36: 32 | AF36: 30 | AG36: 60 | AH36: 41 | AI36: 51 | AJ36: 40 | AK36: 40 | AL36: 40 | AM36: 44 | AN36: 51 | AO36: 48 | AQ36: 35 | AR36: 30 | AS36: 38 | AT36: 34.33333333 | AU36: 42 | AV36: 50 | AW36: 54 | AX36: 52 | AY36: 43 | AZ36: 27 | BA36: 35 | BC36: 40 | BD36: 60 | BE36: 69 | BF36: 56.33333333 | BG36: 86 | BH36: 73 | BI36: 79 | BJ36: 76 | BK36: 73 | BL36: 45 | BM36: 59 | BO36: 53 | BP36: 40 | BQ36: 57 | BR36: 50 | BS36: 61 | BT36: 45.5 | BU36: 59 | BV36: 52.25 | BW36: 54.41666667 | BX36: 60 | BY36: 57.20833333 | CA36: 85 | CB36: 85 | CC36: 86 | CD36: 85.33333333 | CE36: 85 | CF36: 88 | CG36: 86 | CH36: 87 | CI36: 86 | CJ36: 85 | CK36: 86 | CM36: 87 | CN36: 85 | CO36: 85 | CP36: 86 | CQ36: 92 | CR36: 85.33333333 | CS36: 86 | CT36: 86 | CU36: 88 | CV36: 74 | CW36: 81
A37: 14 | B37: =COUNTIF($F$24:F37,F37) -> 14 | C37: 313/3 | D37: احمد14 | E37: ذكر | F37: الخامس-أ | G37: 64 | H37: 71 | I37: 74 | J37: 70 | K37: 85 | L37: 79 | M37: 75 | N37: 77 | O37: 77.33333333 | P37: 83 | Q37: 80.16666667 | S37: 87 | T37: 83 | U37: 87 | V37: 86 | W37: 92 | X37: 96 | Y37: 89 | Z37: 93 | AA37: 90.33333333 | AB37: 86 | AC37: 88.16666667 | AE37: 56 | AF37: 50 | AG37: 45 | AH37: 50.33333333 | AI37: 63 | AJ37: 58 | AK37: 50 | AL37: 54 | AM37: 56 | AN37: 63 | AO37: 60 | AQ37: 55 | AR37: 80 | AS37: 75 | AT37: 70 | AU37: 65 | AV37: 56.5 | AW37: 85 | AX37: 71 | AY37: 69 | AZ37: 61 | BA37: 65 | BC37: 64 | BD37: 83 | BE37: 62 | BF37: 70 | BG37: 82 | BH37: 74 | BI37: 58 | BJ37: 66 | BK37: 73 | BL37: 80 | BM37: 77 | BO37: 70 | BP37: 81 | BQ37: 92 | BR37: 81 | BS37: 81 | BT37: 74 | BU37: 67 | BV37: 71 | BW37: 78 | BX37: 82 | BY37: 80 | CA37: 87 | CB37: 88 | CC37: 87 | CD37: 87.33333333 | CE37: 85 | CF37: 90.38888889 | CG37: 87 | CH37: 89 | CI37: 87.11111111 | CJ37: 85 | CK37: 86.05555556 | CM37: 86 | CN37: 87 | CO37: 88 | CP37: 87 | CQ37: 97 | CR37: 87.33333333 | CS37: 87 | CT37: 87.16666667 | CU37: 90.38888889 | CV37: 92 | CW37: 91.19444444
A38: 15 | B38: =COUNTIF($F$24:F38,F38) -> 15 | C38: 233/3 | D38: احمد15 | E38: ذكر | F38: الخامس-أ | G38: 72 | H38: 79 | I38: 63 | J38: 71.33333333 | K38: 72 | L38: 70 | M38: 85 | N38: 78 | O38: 74 | P38: 66 | Q38: 70 | S38: 83 | T38: 87 | U38: 82 | V38: 84 | W38: 83 | X38: 88 | Y38: 78 | Z38: 83 | AA38: 83.33333333 | AB38: 58 | AC38: 71 | AE38: 66 | AF38: 45 | AG38: 55 | AH38: 55.33333333 | AI38: 52 | AJ38: 60 | AK38: 55 | AL38: 58 | AM38: 55.11111111 | AN38: 51 | AO38: 53.05555556 | AQ38: 64 | AR38: 60 | AS38: 65 | AT38: 63 | AU38: 58 | AV38: 66.5 | AW38: 74 | AX38: 70.25 | AY38: 64 | AZ38: 29 | BA38: 47 | BC38: 78 | BD38: 73 | BE38: 60 | BF38: 70.33333333 | BG38: 85 | BH38: 66 | BI38: 87 | BJ38: 77 | BK38: 77.44444444 | BL38: 76 | BM38: 77 | BO38: 50 | BP38: 54 | BQ38: 68 | BR38: 57.33333333 | BS38: 58 | BT38: 64.5 | BU38: 90 | BV38: 77.25 | BW38: 64.19444444 | BX38: 47 | BY38: 56 | CA38: 87 | CB38: 85 | CC38: 87 | CD38: 86.33333333 | CE38: 90 | CF38: 90.33333333 | CG38: 87 | CH38: 89 | CI38: 88.44444444 | CJ38: 90 | CK38: 89.22222222 | CM38: 88 | CN38: 87 | CO38: 85 | CP38: 87 | CQ38: 97 | CR38: 86.33333333 | CS38: 87 | CT38: 87 | CU38: 90.33333333 | CV38: 96 | CW38: 93.16666667
A39: 16 | B39: =COUNTIF($F$24:F39,F39) -> 16 | C39: 341/3 | D39: احمد16 | E39: ذكر | F39: الخامس-أ | G39: 30 | H39: 43 | I39: 43 | J39: 39 | K39: 69 | L39: 65 | M39: 51 | N39: 58 | O39: 55.33333333 | P39: 64 | Q39: 60 | S39: 60 | T39: 62 | U39: 60 | V39: 61 | W39: 62 | X39: 51 | Y39: 53 | Z39: 52 | AA39: 58.33333333 | AB39: 58 | AC39: 58.16666667 | AE39: 50 | AF39: 50 | AG39: 50 | AH39: 50 | AI39: 50 | AJ39: 55 | AK39: 55 | AL39: 55 | AM39: 52 | AN39: 61 | AO39: 57 | AQ39: 35 | AR39: 41 | AS39: 40 | AT39: 39 | AU39: 57 | AV39: 49.5 | AW39: 51 | AX39: 50.25 | AY39: 49 | AZ39: 60 | BA39: 55 | BC39: 52 | BD39: 38 | BE39: 40 | BF39: 43.33333333 | BG39: 60 | BH39: 45 | BI39: 54 | BJ39: 50 | BK39: 51.11111111 | BL39: 50 | BM39: 51 | BO39: 35 | BP39: 40 | BQ39: 50 | BR39: 42 | BS39: 54 | BT39: 50 | BU39: 42 | BV39: 46 | BW39: 47.33333333 | BX39: 51 | BY39: 49.16666667 | CA39: 85 | CB39: 85 | CC39: 87 | CD39: 86 | CE39: 90 | CF39: 85 | CG39: 87 | CH39: 86 | CI39: 87.33333333 | CJ39: 90 | CK39: 89 | CM39: 90 | CN39: 85 | CO39: 85 | CP39: 87 | CQ39: 80 | CR39: 86 | CS39: 87 | CT39: 87 | CU39: 85 | CV39: 77 | CW39: 81
A40: 17 | B40: =COUNTIF($F$24:F40,F40) -> 17 | C40: 329/3 | D40: احمد17 | E40: ذكر | F40: الخامس-أ | G40: 78 | H40: 67 | I40: 69 | J40: 71.33333333 | K40: 82 | L40: 68 | M40: 79 | N40: 74 | O40: 76 | P40: 78 | Q40: 77 | S40: 78 | T40: 86 | U40: 88 | V40: 84 | W40: 78 | X40: 80 | Y40: 79 | Z40: 80 | AA40: 81 | AB40: 85 | AC40: 83 | AE40: 65 | AF40: 55 | AG40: 70 | AH40: 63.33333333 | AI40: 47 | AJ40: 70 | AK40: 55 | AL40: 63 | AM40: 58 | AN40: 55 | AO40: 57 | AQ40: 57 | AR40: 64 | AS40: 84 | AT40: 68.33333333 | AU40: 75 | AV40: 58.5 | AW40: 66 | AX40: 62.25 | AY40: 69 | AZ40: 67 | BA40: 68 | BC40: 53 | BD40: 54 | BE40: 51 | BF40: 53 | BG40: 87 | BH40: 60 | BI40: 65 | BJ40: 63 | BK40: 68 | BL40: 80 | BM40: 74 | BO40: 51 | BP40: 60 | BQ40: 59 | BR40: 57 | BS40: 64 | BT40: 53 | BU40: 65 | BV40: 59 | BW40: 60 | BX40: 70 | BY40: 65 | CA40: 80 | CB40: 85 | CC40: 83.33333333 | CD40: 83 | CE40: 80 | CF40: 87.16666667 | CG40: 83.33333333 | CH40: 85.25 | CI40: 83 | CJ40: 80 | CK40: 82 | CM40: 85 | CN40: 80 | CO40: 85 | CP40: 83.33333333 | CQ40: 95 | CR40: 83 | CS40: 83.33333333 | CT40: 83.16666667 | CU40: 87.16666667 | CV40: 90 | CW40: 89
A41: 18 | B41: =COUNTIF($F$24:F41,F41) -> 18 | C41: 85/4 | D41: احمد18 | E41: ذكر | F41: الخامس-أ | G41: 59 | H41: 40 | I41: 53 | J41: 51 | K41: 53 | L41: 58 | M41: 45 | N41: 52 | O41: 52 | P41: 54 | Q41: 53 | S41: 76 | T41: 64 | U41: 60 | V41: 67 | W41: 56 | X41: 58 | Y41: 61 | Z41: 60 | AA41: 61 | AB41: 54 | AC41: 58 | AE41: 50 | AF41: 60 | AG41: 61 | AH41: 57 | AI41: 40 | AJ41: 70 | AK41: 57 | AL41: 64 | AM41: 54 | AN41: 39 | AO41: 47 | AQ41: 70 | AR41: 94 | AS41: 51 | AT41: 72 | AU41: 64 | AV41: 73.5 | AW41: 62 | AX41: 68 | AY41: 68 | AZ41: 77 | BA41: 73 | BC41: 50 | BD41: 69 | BE41: 62 | BF41: 60.33333333 | BG41: 57 | BH41: 72 | BI41: 60 | BJ41: 66 | BK41: 61.11111111 | BL41: 64 | BM41: 63 | BO41: 51 | BP41: 51 | BQ41: 54 | BR41: 52 | BS41: 52 | BT41: 57.5 | BU41: 69 | BV41: 63.25 | BW41: 56 | BX41: 52 | BY41: 54 | CA41: 80 | CB41: 80 | CC41: 82 | CD41: 81 | CE41: 80 | CF41: 82 | CG41: 82 | CH41: 82 | CI41: 81 | CJ41: 80 | CK41: 81 | CM41: 80 | CN41: 80 | CO41: 80 | CP41: 80 | CQ41: 85 | CR41: 81 | CS41: 80 | CT41: 81 | CU41: 82 | CV41: 76 | CW41: 79
A42: 19 | B42: =COUNTIF($F$24:F42,F42) -> 19 | C42: 36/4 | D42: احمد19 | E42: ذكر | F42: الخامس-أ | G42: 74 | H42: 80 | I42: 93 | J42: 82.33333333 | K42: 90 | L42: 85 | M42: 87 | N42: 86 | O42: 86.11111111 | P42: 80 | Q42: 83.05555556 | S42: 89 | T42: 93 | U42: 85 | V42: 89 | W42: 92 | X42: 85 | Y42: 91 | Z42: 88 | AA42: 90 | AB42: 86 | AC42: 88 | AE42: 75 | AF42: 93 | AG42: 94 | AH42: 87.33333333 | AI42: 92 | AJ42: 95 | AK42: 75 | AL42: 85 | AM42: 88.11111111 | AN42: 79 | AO42: 84 | AQ42: 71 | AR42: 83 | AS42: 100 | AT42: 85 | AU42: 96 | AV42: 72 | AW42: 91 | AX42: 82 | AY42: 88 | AZ42: 94 | BA42: 91 | BC42: 83 | BD42: 94 | BE42: 93 | BF42: 90 | BG42: 96 | BH42: 90 | BI42: 82 | BJ42: 86 | BK42: 91 | BL42: 89 | BM42: 90 | BO42: 55 | BP42: 84 | BQ42: 90 | BR42: 76.33333333 | BS42: 96 | BT42: 82 | BU42: 57 | BV42: 70 | BW42: 81 | BX42: 82 | BY42: 82 | CA42: 90 | CB42: 95 | CC42: 92 | CD42: 92.33333333 | CE42: 90 | CF42: 94 | CG42: 92 | CH42: 93 | CI42: 92 | CJ42: 90 | CK42: 91 | CM42: 90 | CN42: 90 | CO42: 95 | CP42: 92 | CQ42: 97 | CR42: 92.33333333 | CS42: 92 | CT42: 92.16666667 | CU42: 94 | CV42: 98 | CW42: 96
A43: 20 | B43: =COUNTIF($F$24:F43,F43) -> 20 | C43: 89/4 | D43: احمد20 | E43: ذكر | F43: الخامس-أ | G43: 29 | H43: 45 | I43: 40 | J43: 38 | K43: 52 | L43: 45 | M43: 41 | N43: 43 | O43: 44.33333333 | P43: 50 | Q43: 47.16666667 | S43: 54 | T43: 54 | U43: 50 | V43: 53 | W43: 47 | X43: 43 | Y43: 42 | Z43: 43 | AA43: 48 | AB43: 39 | AC43: 44 | AE43: 38 | AF43: 40 | AG43: 40 | AH43: 39.33333333 | AI43: 48 | AJ43: 40 | AK43: 38 | AL43: 39 | AM43: 42.11111111 | AN43: 43 | AO43: 43 | AQ43: 40 | AR43: 35 | AS43: 39 | AT43: 38 | AU43: 35 | AV43: 44.5 | AW43: 44 | AX43: 44.25 | AY43: 39.08333333 | AZ43: 32 | BA43: 36 | BC43: 30 | BD43: 39 | BE43: 38 | BF43: 36 | BG43: 54 | BH43: 35 | BI43: 42 | BJ43: 39 | BK43: 43 | BL43: 46 | BM43: 45 | BO43: 33 | BP43: 40 | BQ43: 40 | BR43: 38 | BS43: 52 | BT43: 45 | BU43: 55 | BV43: 50 | BW43: 47 | BX43: 38 | BY43: 43 | CA43: 84 | CB43: 87 | CC43: 85.33333333 | CD43: 85.44444444 | CE43: 80 | CF43: 86 | CG43: 85.33333333 | CH43: 86 | CI43: 84 | CJ43: 80 | CK43: 82 | CM43: 85 | CN43: 84 | CO43: 87 | CP43: 85.33333333 | CQ43: 87 | CR43: 85.44444444 | CS43: 85.33333333 | CT43: 85.38888889 | CU43: 86 | CV43: 94 | CW43: 90
A44: 21 | B44: =COUNTIF($F$24:F44,F44) -> 21 | C44: 59/4 | D44: احمد21 | E44: ذكر | F44: الخامس-أ | G44: 50 | H44: 66 | I44: 53 | J44: 56.33333333 | K44: 68 | L44: 53 | M44: 63 | N44: 58 | O44: 61 | P44: 62 | Q44: 62 | S44: 62 | T44: 63 | U44: 61 | V44: 62 | W44: 58 | X44: 50 | Y44: 64 | Z44: 57 | AA44: 59 | AB44: 58 | AC44: 59 | AE44: 56 | AF44: 50 | AG44: 55 | AH44: 54 | AI44: 58 | AJ44: 55 | AK44: 50 | AL44: 53 | AM44: 55 | AN44: 55 | AO44: 55 | AQ44: 51 | AR44: 40 | AS44: 58 | AT44: 50 | AU44: 34 | AV44: 44.5 | AW44: 55 | AX44: 50 | AY44: 45 | AZ44: 52 | BA44: 49 | BC44: 43 | BD44: 46 | BE44: 60 | BF44: 50 | BG44: 68 | BH44: 57 | BI44: 84 | BJ44: 71 | BK44: 63 | BL44: 68 | BM44: 66 | BO44: 35 | BP44: 43 | BQ44: 55 | BR44: 44.33333333 | BS44: 56 | BT44: 37 | BU44: 55 | BV44: 46 | BW44: 49 | BX44: 50 | BY44: 50 | CA44: 84 | CB44: 80 | CC44: 82.33333333 | CD44: 82.11111111 | CE44: 80 | CF44: 82.18518519 | CG44: 82.33333333 | CH44: 82.25925926 | CI44: 81.45679012 | CJ44: 80 | CK44: 81 | CM44: 83 | CN44: 84 | CO44: 80 | CP44: 82.33333333 | CQ44: 82 | CR44: 82.11111111 | CS44: 82.33333333 | CT44: 82.22222222 | CU44: 82.18518519 | CV44: 70 | CW44: 76.09259259
A45: 22 | B45: =COUNTIF($F$24:F45,F45) -> 22 | C45: 95/4 | D45: احمد22 | E45: ذكر | F45: الخامس-أ | G45: 56 | H45: 42 | I45: 68 | J45: 55.33333333 | K45: 60 | L45: 65 | M45: 57 | N45: 61 | O45: 59 | P45: 62 | Q45: 61 | S45: 56 | T45: 52 | U45: 66 | V45: 58 | W45: 59 | X45: 68 | Y45: 63 | Z45: 66 | AA45: 61 | AB45: 50 | AC45: 56 | AE45: 50 | AF45: 53 | AG45: 62 | AH45: 55 | AI45: 48 | AJ45: 60 | AK45: 50 | AL45: 55 | AM45: 53 | AN45: 50 | AO45: 52 | AQ45: 40 | AR45: 41 | AS45: 51 | AT45: 44 | AU45: 39 | AV45: 54.5 | AW45: 52 | AX45: 53.25 | AY45: 45.41666667 | AZ45: 64 | BA45: 55 | BC45: 53 | BD45: 53 | BE45: 50 | BF45: 52 | BG45: 29 | BH45: 62 | BI45: 57 | BJ45: 60 | BK45: 47 | BL45: 54 | BM45: 51 | BO45: 35 | BP45: 52 | BQ45: 62 | BR45: 50 | BS45: 57 | BT45: 50 | BU45: 40 | BV45: 45 | BW45: 51 | BX45: 44 | BY45: 48 | CA45: 83 | CB45: 80 | CC45: 81 | CD45: 81.33333333 | CE45: 85 | CF45: 84.05555556 | CG45: 81 | CH45: 83 | CI45: 83.11111111 | CJ45: 85 | CK45: 84.05555556 | CM45: 80 | CN45: 83 | CO45: 80 | CP45: 81 | CQ45: 90 | CR45: 81.33333333 | CS45: 81 | CT45: 81.16666667 | CU45: 84.05555556 | CV45: 89 | CW45: 87
A46: 23 | B46: =COUNTIF($F$24:F46,F46) -> 23 | C46: 91/4 | D46: احمد23 | E46: ذكر | F46: الخامس-أ | G46: 50 | H46: 57 | I46: 58 | J46: 55 | K46: 67 | L46: 68 | M46: 68 | N46: 68 | O46: 63.33333333 | P46: 71 | Q46: 67.16666667 | S46: 73 | T46: 75 | U46: 81 | V46: 76.33333333 | W46: 76 | X46: 78 | Y46: 70 | Z46: 74 | AA46: 75.44444444 | AB46: 55 | AC46: 65.22222222 | AE46: 56 | AF46: 45 | AG46: 55 | AH46: 52 | AI46: 57 | AJ46: 70 | AK46: 56 | AL46: 63 | AM46: 57.33333333 | AN46: 49 | AO46: 53.16666667 | AQ46: 51 | AR46: 67 | AS46: 62 | AT46: 60 | AU46: 75 | AV46: 50.5 | AW46: 77 | AX46: 64 | AY46: 66.33333333 | AZ46: 71 | BA46: 69 | BC46: 60 | BD46: 73 | BE46: 50 | BF46: 61 | BG46: 60 | BH46: 56 | BI46: 72 | BJ46: 64 | BK46: 62 | BL46: 66 | BM46: 64 | BO46: 54 | BP46: 60 | BQ46: 52 | BR46: 55.33333333 | BS46: 42 | BT46: 52.5 | BU46: 57 | BV46: 55 | BW46: 51 | BX46: 55 | BY46: 53 | CA46: 85 | CB46: 85 | CC46: 83.33333333 | CD46: 84.44444444 | CE46: 80 | CF46: 84.11111111 | CG46: 83.33333333 | CH46: 84 | CI46: 83 | CJ46: 80 | CK46: 82 | CM46: 80 | CN46: 85 | CO46: 85 | CP46: 83.33333333 | CQ46: 85 | CR46: 84.44444444 | CS46: 83.33333333 | CT46: 84 | CU46: 84.11111111 | CV46: 77 | CW46: 81
A47: 24 | B47: =COUNTIF($F$24:F47,F47) -> 24 | C47: 23/4 | D47: احمد24 | E47: ذكر | F47: الخامس-أ | G47: 40 | H47: 35 | I47: 42 | J47: 39 | K47: 62 | L47: 54 | M47: 45 | N47: 50 | O47: 50.33333333 | P47: 58 | Q47: 54.16666667 | S47: 58 | T47: 67 | U47: 61 | V47: 62 | W47: 49 | X47: 64 | Y47: 50 | Z47: 57 | AA47: 56 | AB47: 39 | AC47: 48 | AE47: 42 | AF47: 45 | AG47: 40 | AH47: 42.33333333 | AI47: 44 | AJ47: 28 | AK47: 28 | AL47: 28 | AM47: 38.11111111 | AN47: 37 | AO47: 38 | AQ47: 40 | AR47: 30 | AS47: 30 | AT47: 33.33333333 | AU47: 32 | AV47: 36.5 | AW47: 40 | AX47: 38.25 | AY47: 35 | AZ47: 24 | BA47: 30 | BC47: 46 | BD47: 46 | BE47: 40 | BF47: 44 | BG47: 60 | BH47: 46 | BI47: 53 | BJ47: 50 | BK47: 51.33333333 | BL47: 68 | BM47: 60 | BO47: 38 | BP47: 51 | BQ47: 45 | BR47: 45 | BS47: 53 | BT47: 50 | BU47: 42 | BV47: 46 | BW47: 48 | BX47: 46 | BY47: 47 | CA47: 87 | CB47: 88 | CC47: 87 | CD47: 87.33333333 | CE47: 85 | CF47: 88 | CG47: 87 | CH47: 88 | CI47: 87 | CJ47: 85 | CK47: 86 | CM47: 85 | CN47: 87 | CO47: 88 | CP47: 87 | CQ47: 89 | CR47: 87.33333333 | CS47: 87 | CT47: 87.16666667 | CU47: 88 | CV47: 74 | CW47: 81
A48: 25 | B48: =COUNTIF($F$24:F48,F48) -> 25 | C48: 61/4 | D48: احمد25 | E48: ذكر | F48: الخامس-أ | G48: 81 | H48: 90 | I48: 92 | J48: 88 | K48: 92 | L48: 73 | M48: 76 | N48: 75 | O48: 85 | P48: 84 | Q48: 85 | S48: 88 | T48: 93 | U48: 91 | V48: 91 | W48: 96 | X48: 90 | Y48: 83 | Z48: 87 | AA48: 91.33333333 | AB48: 82 | AC48: 87 | AE48: 90 | AF48: 90 | AG48: 76 | AH48: 85.33333333 | AI48: 79 | AJ48: 100 | AK48: 90 | AL48: 95 | AM48: 86.44444444 | AN48: 77 | AO48: 82 | AQ48: 84 | AR48: 66 | AS48: 84 | AT48: 78 | AU48: 86 | AV48: 71 | AW48: 79 | AX48: 75 | AY48: 80 | AZ48: 74 | BA48: 77 | BC48: 87 | BD48: 100 | BE48: 99 | BF48: 95.33333333 | BG48: 99 | BH48: 91 | BI48: 92 | BJ48: 92 | BK48: 95.44444444 | BL48: 94 | BM48: 95 | BO48: 85 | BP48: 76 | BQ48: 94 | BR48: 85 | BS48: 96 | BT48: 84.5 | BU48: 88 | BV48: 86.25 | BW48: 89.08333333 | BX48: 84 | BY48: 87 | CA48: 96 | CB48: 95 | CC48: 95.33333333 | CD48: 95.44444444 | CE48: 95 | CF48: 95.24074074 | CG48: 95.33333333 | CH48: 95.28703704 | CI48: 95.24382716 | CJ48: 95 | CK48: 95.12191358 | CM48: 95 | CN48: 96 | CO48: 95 | CP48: 95.33333333 | CQ48: 95 | CR48: 95.44444444 | CS48: 95.33333333 | CT48: 95.38888889 | CU48: 95.24074074 | CV48: 98 | CW48: 97
A49: 26 | B49: =COUNTIF($F$24:F49,F49) -> 26 | C49: 328/3 | D49: احمد26 | E49: ذكر | F49: الخامس-أ | G49: 30 | H49: 37 | I49: 42 | J49: 36.33333333 | K49: 46 | L49: 41 | M49: 44 | N49: 43 | O49: 42 | P49: 50 | Q49: 46 | S49: 62 | T49: 67 | U49: 52 | V49: 60.33333333 | W49: 39 | X49: 56 | Y49: 54 | Z49: 55 | AA49: 51.44444444 | AB49: 37 | AC49: 44.22222222 | AE49: 62 | AF49: 50 | AG49: 50 | AH49: 54 | AI49: 43 | AJ49: 60 | AK49: 45 | AL49: 53 | AM49: 50 | AN49: 50 | AO49: 50 | AQ49: 35 | AR49: 30 | AS49: 35 | AT49: 33.33333333 | AU49: 55 | AV49: 51.5 | AW49: 51 | AX49: 51.25 | AY49: 47 | AZ49: 59 | BA49: 53 | BC49: 40 | BD49: 57 | BE49: 40 | BF49: 46 | BG49: 60 | BH49: 41 | BI49: 45 | BJ49: 43 | BK49: 50 | BL49: 54 | BM49: 52 | BO49: 33 | BP49: 35 | BQ49: 35 | BR49: 34.33333333 | BS49: 60 | BT49: 43 | BU49: 40 | BV49: 42 | BW49: 45.44444444 | BX49: 42 | BY49: 44 | CA49: 80 | CB49: 85 | CC49: 83.33333333 | CD49: 83 | CE49: 80 | CF49: 83 | CG49: 83.33333333 | CH49: 83.16666667 | CI49: 82.05555556 | CJ49: 80 | CK49: 81.02777778 | CM49: 85 | CN49: 80 | CO49: 85 | CP49: 83.33333333 | CQ49: 82 | CR49: 83 | CS49: 83.33333333 | CT49: 83.16666667 | CU49: 83 | CV49: 72 | CW49: 78
A50: 27 | B50: =COUNTIF($F$24:F50,F50) -> 27 | C50: 88/4 | D50: احمد27 | E50: ذكر | F50: الخامس-أ | G50: 62 | H50: 87 | I50: 72 | J50: 74 | K50: 81 | L50: 69 | M50: 76 | N50: 73 | O50: 76 | P50: 82 | Q50: 79 | S50: 72 | T50: 78 | U50: 85 | V50: 78.33333333 | W50: 74 | X50: 55 | Y50: 72 | Z50: 64 | AA50: 72.11111111 | AB50: 67 | AC50: 70 | AE50: 50 | AF50: 57 | AG50: 70 | AH50: 59 | AI50: 59 | AJ50: 75 | AK50: 65 | AL50: 70 | AM50: 63 | AN50: 66 | AO50: 65 | AQ50: 51 | AR50: 54 | AS50: 74 | AT50: 60 | AU50: 70 | AV50: 55.5 | AW50: 75 | AX50: 65.25 | AY50: 65.08333333 | AZ50: 58 | BA50: 62 | BC50: 80 | BD50: 78 | BE50: 80 | BF50: 79.33333333 | BG50: 77 | BH50: 76 | BI50: 94 | BJ50: 85 | BK50: 80.44444444 | BL50: 83 | BM50: 82 | BO50: 54 | BP50: 62 | BQ50: 55 | BR50: 57 | BS50: 59 | BT50: 67.5 | BU50: 64 | BV50: 66 | BW50: 61 | BX50: 65 | BY50: 63 | CA50: 80 | CB50: 80 | CC50: 80 | CD50: 80 | CE50: 80 | CF50: 83.33333333 | CG50: 80 | CH50: 82 | CI50: 81 | CJ50: 80 | CK50: 81 | CM50: 80 | CN50: 80 | CO50: 80 | CP50: 80 | CQ50: 90 | CR50: 80 | CS50: 80 | CT50: 80 | CU50: 83.33333333 | CV50: 91 | CW50: 87.16666667
A51: 28 | B51: =COUNTIF($F$24:F51,F51) -> 28 | C51: 254/3 | D51: احمد28 | E51: ذكر | F51: الخامس-أ | G51: 41 | H51: 51 | I51: 42 | J51: 45 | K51: 56 | L51: 44 | M51: 74 | N51: 59 | O51: 53.33333333 | P51: 54 | Q51: 54 | S51: 44 | T51: 73 | U51: 70 | V51: 62.33333333 | W51: 59 | X51: 50 | Y51: 58 | Z51: 54 | AA51: 58.44444444 | AB51: 52 | AC51: 55.22222222 | AE51: 50 | AF51: 25 | AG51: 35 | AH51: 37 | AI51: 45 | AJ51: 40 | AK51: 40 | AL51: 40 | AM51: 41 | AN51: 50 | AO51: 46 | AQ51: 55 | AR51: 54 | AS51: 52 | AT51: 54 | AU51: 51 | AV51: 51 | AW51: 55 | AX51: 53 | AY51: 53 | AZ51: 54 | BA51: 54 | BC51: 46 | BD51: 60 | BE51: 69 | BF51: 58.33333333 | BG51: 51 | BH51: 76 | BI51: 84 | BJ51: 80 | BK51: 63.11111111 | BL51: 64 | BM51: 64 | BO51: 40 | BP51: 41 | BQ51: 79 | BR51: 53.33333333 | BS51: 63 | BT51: 39.5 | BU51: 60 | BV51: 50 | BW51: 55.44444444 | BX51: 49 | BY51: 52.22222222 | CA51: 85 | CB51: 85 | CC51: 85 | CD51: 85 | CE51: 85 | CF51: 85 | CG51: 85 | CH51: 85 | CI51: 85 | CJ51: 85 | CK51: 85 | CM51: 85 | CN51: 85 | CO51: 85 | CP51: 85 | CQ51: 85 | CR51: 85 | CS51: 85 | CT51: 85 | CU51: 85 | CV51: 77 | CW51: 81
A52: 29 | B52: =COUNTIF($F$24:F52,F52) -> 29 | C52: 63/4 | D52: احمد29 | E52: ذكر | F52: الخامس-أ | G52: 34 | H52: 40 | I52: 41 | J52: 38.33333333 | K52: 67 | L52: 50 | M52: 50 | N52: 50 | O52: 52 | P52: 51 | Q52: 52 | S52: 67 | T52: 58 | U52: 62 | V52: 62.33333333 | W52: 40 | X52: 55 | Y52: 50 | Z52: 53 | AA52: 52 | AB52: 45 | AC52: 49 | AE52: 23 | AF52: 42 | AG52: 35 | AH52: 33.33333333 | AI52: 40 | AJ52: 45 | AK52: 37 | AL52: 41 | AM52: 38.11111111 | AN52: 43 | AO52: 41 | AQ52: 40 | AR52: 30 | AS52: 52 | AT52: 41 | AU52: 48 | AV52: 44 | AW52: 43 | AX52: 44 | AY52: 44.33333333 | AZ52: 36 | BA52: 40.16666667 | BC52: 52 | BD52: 41 | BE52: 40 | BF52: 44.33333333 | BG52: 64 | BH52: 40 | BI52: 66 | BJ52: 53 | BK52: 54 | BL52: 51 | BM52: 53 | BO52: 35 | BP52: 35 | BQ52: 40 | BR52: 37 | BS52: 30 | BT52: 51 | BU52: 50 | BV52: 51 | BW52: 39.33333333 | BX52: 29 | BY52: 34.16666667 | CA52: 85 | CB52: 80 | CC52: 82 | CD52: 82.33333333 | CE52: 80 | CF52: 85 | CG52: 82 | CH52: 84 | CI52: 82.11111111 | CJ52: 80 | CK52: 81.05555556 | CM52: 80 | CN52: 85 | CO52: 80 | CP52: 82 | CQ52: 90 | CR52: 82.33333333 | CS52: 82 | CT52: 82.16666667 | CU52: 85 | CV52: 79 | CW52: 82
A53: 30 | B53: =COUNTIF($F$24:F53,F53) -> 30 | C53: 33/4 | D53: احمد30 | E53: ذكر | F53: الخامس-أ | G53: 33 | H53: 44 | I53: 40 | J53: 39 | K53: 53 | L53: 56 | M53: 63 | N53: 60 | O53: 51 | P53: 62 | Q53: 57 | S53: 53 | T53: 61 | U53: 53 | V53: 56 | W53: 55 | X53: 54 | Y53: 54 | Z53: 54 | AA53: 55 | AB53: 44 | AC53: =IF(AND(AA53="غائب",AB53="غائب"),"غائب",IF(AND(AA53<>"",AB53<>""),IF(ABS(SUM(AA53:AB53))/2-INT(SUM(AA53:AB53)/2)>=0.5,INT(SUM(AA53:AB53)/2)+1,SUM(AA53:AB53)/2),"")) -> 50 | AE53: 35 | AF53: 22 | AG53: 32 | AH53: 30 | AI53: 42 | AJ53: 28 | AK53: 34 | AL53: 31 | AM53: 34.33333333 | AN53: 32 | AO53: 33.16666667 | AQ53: 40 | AR53: 30 | AS53: 31 | AT53: 34 | AU53: 31 | AV53: 50 | AW53: 41 | AX53: 46 | AY53: 37 | AZ53: 30 | BA53: 34 | BC53: 30 | BD53: 52 | BE53: 50 | BF53: 44 | BG53: 67 | BH53: 40 | BI53: 59 | BJ53: 50 | BK53: 54 | BL53: 70 | BM53: 62 | BO53: 35 | BP53: 35 | BQ53: 45 | BR53: 38.33333333 | BS53: 50 | BT53: 51 | BU53: 41 | BV53: 46 | BW53: 45 | BX53: 56 | BY53: 51 | CA53: 80 | CB53: 80 | CC53: 80 | CD53: 80 | CE53: 80 | CF53: 84 | CG53: 80 | CH53: 82 | CI53: 81 | CJ53: 80 | CK53: 81 | CM53: 80 | CN53: 80 | CO53: 80 | CP53: 80 | CQ53: 92 | CR53: 80 | CS53: 80 | CT53: 80 | CU53: 84 | CV53: 75 | CW53: 80
A54: 31 | B54: =COUNTIF($F$24:F54,F54) -> 31 | C54: 64/4 | D54: احمد31 | E54: ذكر | F54: الخامس-أ | G54: 88 | H54: 89 | I54: 90 | J54: 89 | K54: 94 | L54: 100 | M54: 100 | N54: 100 | O54: 94.33333333 | P54: 89 | Q54: 92 | S54: 92 | T54: 100 | U54: 100 | V54: 97.33333333 | W54: 85 | X54: 100 | Y54: 100 | Z54: 100 | AA54: 94.11111111 | AB54: 96 | AC54: 95.05555556 | AE54: 91 | AF54: 75 | AG54: 94 | AH54: 87 | AI54: 96 | AJ54: 100 | AK54: 100 | AL54: 100 | AM54: 94.33333333 | AN54: 96 | AO54: 95.16666667 | AQ54: 70 | AR54: 77 | AS54: 100 | AT54: 82.33333333 | AU54: 91 | AV54: 90.5 | AW54: 100 | AX54: 95.25 | AY54: 90 | AZ54: 94 | BA54: 92 | BC54: 90 | BD54: 99 | BE54: 98 | BF54: 96 | BG54: 92 | BH54: 96 | BI54: 97 | BJ54: 97 | BK54: 95 | BL54: 97 | BM54: 96 | BO54: 91 | BP54: 82 | BQ54: 100 | BR54: 91 | BS54: 95 | BT54: 98.5 | BU54: 100 | BV54: 99.25 | BW54: 95.08333333 | BX54: 100 | BY54: 98 | CA54: 96 | CB54: 98 | CC54: 97 | CD54: 97 | CE54: 100 | CF54: 96.33333333 | CG54: 97 | CH54: 97 | CI54: 98 | CJ54: 100 | CK54: 99 | CM54: 97 | CN54: 96 | CO54: 98 | CP54: 97 | CQ54: 95 | CR54: 97 | CS54: 97 | CT54: 97 | CU54: 96.33333333 | CV54: 100 | CW54: 98.16666667
A55: 32 | B55: =COUNTIF($F$24:F55,F55) -> 32 | C55: 349/3 | D55: احمد32 | E55: ذكر | F55: الخامس-أ | G55: 54 | H55: 55 | I55: 52 | J55: 54 | K55: 67 | L55: 78 | M55: 64 | N55: 71 | O55: 64 | P55: 52 | Q55: 58 | S55: 73 | T55: 72 | U55: 66 | V55: 70.33333333 | W55: 63 | X55: 66 | Y55: 73 | Z55: 70 | AA55: 68 | AB55: 60 | AC55: 64 | AE55: 55 | AF55: 66 | AG55: 50 | AH55: 57 | AI55: 42 | AJ55: 55 | AK55: 60 | AL55: 58 | AM55: 52.33333333 | AN55: 55 | AO55: 54 | AQ55: 50 | AR55: 65 | AS55: 50 | AT55: 55 | AU55: 29 | AV55: 41.5 | AW55: 80 | AX55: 61 | AY55: 48.33333333 | AZ55: 64 | BA55: 56.16666667 | BC55: 40 | BD55: 52 | BE55: 57 | BF55: 50 | BG55: 56 | BH55: 66 | BI55: 77 | BJ55: 72 | BK55: 59.33333333 | BL55: 67 | BM55: 63.16666667 | BO55: 40 | BP55: 72 | BQ55: 54 | BR55: 55.33333333 | BS55: 53 | BT55: 51.5 | BU55: 50 | BV55: 51 | BW55: 53.11111111 | BX55: 43 | BY55: 48.05555556 | CA55: 87 | CB55: 90 | CC55: 88 | CD55: 88.33333333 | CE55: 85 | CF55: 90.38888889 | CG55: 88 | CH55: 89.19444444 | CI55: 88 | CJ55: 85 | CK55: 87 | CM55: 87 | CN55: 87 | CO55: 90 | CP55: 88 | CQ55: 95 | CR55: 88.33333333 | CS55: 88 | CT55: 88.16666667 | CU55: 90.38888889 | CV55: 98 | CW55: 94.19444444
A56: 33 | B56: =COUNTIF($F$24:F56,F56) -> 33 | C56: 96/4 | D56: احمد33 | E56: ذكر | F56: الخامس-أ | G56: 43 | H56: 56 | I56: 52 | J56: 50.33333333 | K56: 42 | L56: 64 | M56: 60 | N56: 62 | O56: 51.44444444 | P56: 55 | Q56: 53.22222222 | S56: 59 | T56: 64 | U56: 56 | V56: 60 | W56: 62 | X56: 59 | Y56: 52 | Z56: 56 | AA56: 59.33333333 | AB56: 44 | AC56: 52 | AE56: 34 | AF56: 35 | AG56: 45 | AH56: 38 | AI56: 41 | AJ56: 60 | AK56: 30 | AL56: 45 | AM56: 41.33333333 | AN56: 46 | AO56: 44 | AQ56: 51 | AR56: 40 | AS56: 39 | AT56: 43.33333333 | AU56: 52 | AV56: 44 | AW56: 43 | AX56: 44 | AY56: 46.44444444 | AZ56: 31 | BA56: 39 | BC56: 57 | BD56: 77 | BE56: 60 | BF56: 65 | BG56: 77 | BH56: 65 | BI56: 53 | BJ56: 59 | BK56: 67 | BL56: 68 | BM56: 68 | BO56: 35 | BP56: 38 | BQ56: 40 | BR56: 38 | BS56: 38 | BT56: 41.5 | BU56: 43 | BV56: 42.25 | BW56: 39.41666667 | BX56: 52 | BY56: 46 | CA56: 85 | CB56: 85 | CC56: 83.33333333 | CD56: 84.44444444 | CE56: 80 | CF56: 82.44444444 | CG56: 83.33333333 | CH56: 83 | CI56: 82.48148148 | CJ56: 80 | CK56: 81.24074074 | CM56: 80 | CN56: 85 | CO56: 85 | CP56: 83.33333333 | CQ56: 80 | CR56: 84.44444444 | CS56: 83.33333333 | CT56: 84 | CU56: 82.44444444 | CV56: 77 | CW56: =IF(AND(CU56="غائب",CV56="غائب"),"غائب",IF(AND(CU56<>"",CV56<>""),IF(ABS(SUM(CU56:CV56))/2-INT(SUM(CU56:CV56)/2)>=0.5,INT(SUM(CU56:CV56)/2)+1,SUM(CU56:CV56)/2),"")) -> 80
A57: 34 | B57: =COUNTIF($F$24:F57,F57) -> 34 | C57: 99/4 | D57: احمد34 | E57: ذكر | F57: الخامس-أ | G57: 75 | H57: 85 | I57: 78 | J57: 79.33333333 | K57: 93 | L57: 61 | M57: 82 | N57: 72 | O57: 81.44444444 | P57: 77 | Q57: 79.22222222 | S57: 75 | T57: 89 | U57: 94 | V57: 86 | W57: 82 | X57: 72 | Y57: 68 | Z57: 70 | AA57: 79.33333333 | AB57: 72 | AC57: 76 | AE57: 55 | AF57: 55 | AG57: 70 | AH57: 60 | AI57: 65 | AJ57: 65 | AK57: 55 | AL57: 60 | AM57: 62 | AN57: 59 | AO57: 61 | AQ57: 94 | AR57: 84 | AS57: 92 | AT57: 90 | AU57: 81 | AV57: 75 | AW57: 96 | AX57: 86 | AY57: 86 | AZ57: 86 | BA57: 86 | BC57: 79 | BD57: 83 | BE57: 92 | BF57: 85 | BG57: 63 | BH57: 70 | BI57: 88 | BJ57: 79 | BK57: 76 | BL57: 91 | BM57: 84 | BO57: 55 | BP57: 53 | BQ57: 77 | BR57: 62 | BS57: 87 | BT57: 58 | BU57: 99 | BV57: 79 | BW57: 76 | BX57: 76 | BY57: 76 | CA57: 84 | CB57: 85 | CC57: 85 | CD57: 85 | CE57: 90 | CF57: 87 | CG57: 85 | CH57: 86 | CI57: 87 | CJ57: 90 | CK57: 89 | CM57: 85 | CN57: 84 | CO57: 85 | CP57: 85 | CQ57: 90 | CR57: 85 | CS57: 85 | CT57: 85 | CU57: 87 | CV57: 93 | CW57: 90
A58: 35 | B58: =COUNTIF($F$24:F58,F58) -> 35 | C58: 14/4 | D58: احمد35 | E58: ذكر | F58: الخامس-أ | G58: 38 | H58: 43 | I58: 36 | J58: 39 | K58: 34 | L58: 35 | M58: 45 | N58: 40 | O58: 38 | P58: 49 | Q58: 44 | S58: 39 | T58: 62 | U58: 54 | V58: 52 | W58: 52 | X58: 42 | Y58: 57 | Z58: 50 | AA58: 51.33333333 | AB58: 46 | AC58: 49 | AE58: 30 | AF58: 40 | AG58: 45 | AH58: 38.33333333 | AI58: 40 | AJ58: 38 | AK58: 34 | AL58: 36 | AM58: 38.11111111 | AN58: 31 | AO58: 35 | AQ58: 40 | AR58: 30 | AS58: 38 | AT58: 36 | AU58: 38 | AV58: 39.5 | AW58: 50 | AX58: 45 | AY58: 40 | AZ58: 20 | BA58: 30 | BC58: 30 | BD58: 30 | BE58: 38 | BF58: 33 | BG58: 62 | BH58: 35 | BI58: 35 | BJ58: 35 | BK58: 43.33333333 | BL58: 34 | BM58: 39 | BO58: 44 | BP58: 50 | BQ58: 57 | BR58: 50.33333333 | BS58: 21 | BT58: 40 | BU58: 41 | BV58: 41 | BW58: 37.44444444 | BX58: 49 | BY58: 43.22222222 | CA58: 80 | CB58: 85 | CC58: 83.33333333 | CD58: 83 | CE58: 80 | CF58: 84.5 | CG58: 83.33333333 | CH58: 84 | CI58: 82.33333333 | CJ58: 80 | CK58: 81.16666667 | CM58: 85 | CN58: 80 | CO58: 85 | CP58: 83.33333333 | CQ58: 87 | CR58: 83 | CS58: 83.33333333 | CT58: 83.16666667 | CU58: 84.5 | CV58: 72 | CW58: 78.25
A59: 36 | B59: =COUNTIF($F$24:F59,F59) -> 36 | C59: 192/3 | D59: احمد36 | E59: ذكر | F59: الخامس-أ | G59: 50 | H59: 37 | I59: 38 | J59: 42 | K59: 39 | L59: 50 | M59: 57 | N59: 54 | O59: 45 | P59: 43 | Q59: 44 | S59: 36 | T59: 63 | U59: 51 | V59: 50 | W59: 37 | X59: 45 | Y59: 54 | Z59: 50 | AA59: 46 | AB59: 46 | AC59: 46 | AE59: 56 | AF59: 45 | AG59: 56 | AH59: 52.33333333 | AI59: 43 | AJ59: 57 | AK59: 45 | AL59: 51 | AM59: 49 | AN59: 46 | AO59: 48 | AQ59: 42 | AR59: 42 | AS59: 35 | AT59: 40 | AU59: 38 | AV59: 41.5 | AW59: 58 | AX59: 50 | AY59: 43 | AZ59: 47 | BA59: 45 | BC59: 50 | BD59: 64 | BE59: 43 | BF59: 52.33333333 | BG59: 55 | BH59: 50 | BI59: 63 | BJ59: 57 | BK59: 55 | BL59: 43 | BM59: 49 | BO59: 40 | BP59: 40 | BQ59: 35 | BR59: 38.33333333 | BS59: 44 | BT59: 56.5 | BU59: 44 | BV59: 50.25 | BW59: 44.19444444 | BX59: 52 | BY59: 48.09722222 | CA59: 80 | CB59: 80 | CC59: 80 | CD59: 80 | CE59: 85 | CF59: 82 | CG59: 80 | CH59: 81 | CI59: 82 | CJ59: 85 | CK59: 84 | CM59: 80 | CN59: 80 | CO59: 80 | CP59: 80 | CQ59: 85 | CR59: 80 | CS59: 80 | CT59: 80 | CU59: 82 | CV59: 71 | CW59: 77
A60: 37 | B60: =COUNTIF($F$24:F60,F60) -> 37 | C60: 67/4 | D60: احمد37 | E60: ذكر | F60: الخامس-أ | G60: 42 | H60: 41 | I60: 50 | J60: 44.33333333 | K60: 56 | L60: 51 | M60: 50 | N60: 51 | O60: 50.44444444 | P60: 38 | Q60: 44.22222222 | S60: 59 | T60: 62 | U60: 61 | V60: 61 | W60: 32 | X60: 59 | Y60: 51 | Z60: 55 | AA60: 49.33333333 | AB60: 35 | AC60: 42.16666667 | AE60: 42 | AF60: 40 | AG60: 55 | AH60: 46 | AI60: 47 | AJ60: 55 | AK60: 45 | AL60: 50 | AM60: 48 | AN60: 41 | AO60: 45 | AQ60: 35 | AR60: 51 | AS60: 40 | AT60: 42 | AU60: 53 | AV60: 43 | AW60: 57 | AX60: 50 | AY60: 48.33333333 | AZ60: 44 | BA60: 46.16666667 | BC60: 40 | BD60: 35 | BE60: 38 | BF60: 38 | BG60: 54 | BH60: 50 | BI60: 35 | BJ60: 43 | BK60: 45 | BL60: 35 | BM60: 40 | BO60: 40 | BP60: 37 | BQ60: 45 | BR60: 41 | BS60: 53 | BT60: 40 | BU60: 44 | BV60: 42 | BW60: 45.33333333 | BX60: 49 | BY60: 47.16666667 | CA60: 83 | CB60: 85 | CC60: 84.33333333 | CD60: 84.11111111 | CE60: 80 | CF60: 86.18518519 | CG60: 84.33333333 | CH60: 85.25925926 | CI60: 83.12345679 | CJ60: 80 | CK60: 82 | CM60: 85 | CN60: 83 | CO60: 85 | CP60: 84.33333333 | CQ60: 90 | CR60: 84.11111111 | CS60: 84.33333333 | CT60: 84.22222222 | CU60: 86.18518519 | CV60: 81 | CW60: 84
A61: 38 | B61: =COUNTIF($F$24:F61,F61) -> 38 | C61: 40/4 | D61: احمد38 | E61: ذكر | F61: الخامس-أ | G61: 53 | H61: 50 | I61: 57 | J61: 53.33333333 | K61: 82 | L61: 65 | M61: 68 | N61: 67 | O61: 67.44444444 | P61: 65 | Q61: 66.22222222 | S61: 63 | T61: 64 | U61: 80 | V61: 69 | W61: 64 | X61: 51 | Y61: 58 | Z61: 55 | AA61: 63 | AB61: 68 | AC61: 66 | AE61: 65 | AF61: 50 | AG61: 72 | AH61: 62.33333333 | AI61: 69 | AJ61: 70 | AK61: 55 | AL61: 63 | AM61: 65 | AN61: 60 | AO61: 63 | AQ61: 58 | AR61: 53 | AS61: 52 | AT61: 54.33333333 | AU61: 79 | AV61: 71.5 | AW61: 83 | AX61: 77.25 | AY61: 70.19444444 | AZ61: 79 | BA61: 75 | BC61: 60 | BD61: 79 | BE61: 77 | BF61: 72 | BG61: 85 | BH61: 73 | BI61: 74 | BJ61: 74 | BK61: 77 | BL61: 85 | BM61: 81 | BO61: 44 | BP61: 40 | BQ61: 72 | BR61: 52 | BS61: 89 | BT61: 50 | BU61: 51 | BV61: 51 | BW61: 64 | BX61: 83 | BY61: 74 | CA61: 85 | CB61: 85 | CC61: 85 | CD61: 85 | CE61: 85 | CF61: 87.33333333 | CG61: 85 | CH61: 86.16666667 | CI61: 85.38888889 | CJ61: 85 | CK61: 85.19444444 | CM61: 85 | CN61: 85 | CO61: 85 | CP61: 85 | CQ61: 92 | CR61: 85 | CS61: 85 | CT61: 85 | CU61: 87.33333333 | CV61: 80 | CW61: 84
A62: 39 | B62: =COUNTIF($F$24:F62,F62) -> 39 | C62: 354/3 | D62: احمد39 | E62: ذكر | F62: الخامس-أ | G62: 64 | H62: 70 | I62: 72 | J62: 69 | K62: 81 | L62: 71 | M62: 72 | N62: 72 | O62: 74 | P62: 81 | Q62: 78 | S62: 73 | T62: 71 | U62: 96 | V62: 80 | W62: 81 | X62: 69 | Y62: 74 | Z62: 72 | AA62: 78 | AB62: 73 | AC62: 76 | AE62: 50 | AF62: 52 | AG62: 47 | AH62: 50 | AI62: 62 | AJ62: 50 | AK62: 40 | AL62: 45 | AM62: 52.33333333 | AN62: 49 | AO62: 51 | AQ62: 55 | AR62: 61 | AS62: 65 | AT62: 60.33333333 | AU62: 63 | AV62: 57 | AW62: 68 | AX62: 63 | AY62: 62.11111111 | AZ62: 44 | BA62: 53.05555556 | BC62: 45 | BD62: 85 | BE62: 70 | BF62: 67 | BG62: 78 | BH62: 59 | BI62: 66 | BJ62: 63 | BK62: 69.33333333 | BL62: 55 | BM62: 62.16666667 | BO62: 50 | BP62: 56 | BQ62: 77 | BR62: 61 | BS62: 80 | BT62: 58 | BU62: 61 | BV62: 60 | BW62: 67 | BX62: 51 | BY62: 59 | CA62: 85 | CB62: 80 | CC62: 82 | CD62: 82.33333333 | CE62: 80 | CF62: 85 | CG62: 82 | CH62: 84 | CI62: 82.11111111 | CJ62: 80 | CK62: 81.05555556 | CM62: 80 | CN62: 85 | CO62: 80 | CP62: 82 | CQ62: 90 | CR62: 82.33333333 | CS62: 82 | CT62: 82.16666667 | CU62: 85 | CV62: 79 | CW62: 82
A63: 40 | B63: =COUNTIF($F$24:F63,F63) -> 40 | C63: 68/4 | D63: احمد40 | E63: ذكر | F63: الخامس-أ | G63: 57 | H63: 69 | I63: 70 | J63: 65.33333333 | K63: 81 | L63: 56 | M63: 50 | N63: 53 | O63: 66.44444444 | P63: 69 | Q63: 68 | S63: 60 | T63: 51 | U63: 55 | V63: 55.33333333 | W63: 66 | X63: 67 | Y63: 70 | Z63: 69 | AA63: 63.44444444 | AB63: 52 | AC63: 58 | AE63: 45 | AF63: 60 | AG63: 65 | AH63: 57 | AI63: 65 | AJ63: 57 | AK63: 55 | AL63: 56 | AM63: 59.33333333 | AN63: 63 | AO63: 61.16666667 | AQ63: 51 | AR63: 35 | AS63: 39 | AT63: 42 | AU63: 60 | AV63: 49.5 | AW63: 55 | AX63: 52.25 | AY63: 51.41666667 | AZ63: 81 | BA63: 66.20833333 | BC63: 78 | BD63: 79 | BE63: 60 | BF63: 72.33333333 | BG63: 72 | BH63: 79 | BI63: 94 | BJ63: 87 | BK63: 77.11111111 | BL63: 79 | BM63: 78.05555556 | BO63: 51 | BP63: 50 | BQ63: 50 | BR63: 50.33333333 | BS63: 72 | BT63: 71 | BU63: 55 | BV63: 63 | BW63: 62 | BX63: 81 | BY63: 72 | CA63: 80 | CB63: 82 | CC63: 81.33333333 | CD63: 81.11111111 | CE63: 85 | CF63: 83.18518519 | CG63: 81.33333333 | CH63: 82.25925926 | CI63: 83 | CJ63: 85 | CK63: 84 | CM63: 82 | CN63: 80 | CO63: 82 | CP63: 81.33333333 | CQ63: 87 | CR63: 81.11111111 | CS63: 81.33333333 | CT63: 81.22222222 | CU63: 83.18518519 | CV63: 74 | CW63: 79
A64: 41 | B64: =COUNTIF($F$24:F64,F64) -> 41 | C64: 9/4 | D64: احمد41 | E64: ذكر | F64: الخامس-أ | G64: 46 | H64: 65 | I64: 50 | J64: 54 | K64: 55 | L64: 51 | M64: 40 | N64: 46 | O64: 52 | P64: 50 | Q64: 51 | S64: 55 | T64: 45 | U64: 56 | V64: 52 | W64: 64 | X64: 51 | Y64: 50 | Z64: 51 | AA64: 56 | AB64: 45 | AC64: 51 | AE64: 42 | AF64: 42 | AG64: 45 | AH64: 43 | AI64: 41 | AJ64: 38 | AK64: 43 | AL64: 41 | AM64: 42 | AN64: 39 | AO64: 41 | AQ64: 35 | AR64: 35 | AS64: 35 | AT64: 35 | AU64: 44 | AV64: 49.5 | AW64: 42 | AX64: 46 | AY64: 42 | AZ64: 25 | BA64: 34 | BC64: 46 | BD64: 60 | BE64: 53 | BF64: 53 | BG64: 53 | BH64: 54 | BI64: 50 | BJ64: 52 | BK64: 53 | BL64: 37 | BM64: 45 | BO64: 40 | BP64: 50 | BQ64: 60 | BR64: 50 | BS64: 51 | BT64: 50.5 | BU64: 40 | BV64: 45.25 | BW64: 49 | BX64: 39 | BY64: 44 | CA64: 84 | CB64: 85 | CC64: 85 | CD64: 85 | CE64: 85 | CF64: 87 | CG64: 85 | CH64: 86 | CI64: 85.33333333 | CJ64: 85 | CK64: 85.16666667 | CM64: 85 | CN64: 84 | CO64: 85 | CP64: 85 | CQ64: 90 | CR64: 85 | CS64: 85 | CT64: 85 | CU64: 87 | CV64: 75 | CW64: 81
A65: 42 | B65: =COUNTIF($F$24:F65,F65) -> 42 | C65: 26/4 | D65: احمد42 | E65: ذكر | F65: الخامس-أ | G65: 37 | H65: 50 | I65: 40 | J65: 42.33333333 | K65: 64 | L65: 59 | M65: 63 | N65: 61 | O65: 56 | P65: 66 | Q65: 61 | S65: 58 | T65: 45 | U65: 56 | V65: 53 | W65: 54 | X65: 59 | Y65: 58 | Z65: 59 | AA65: 55.33333333 | AB65: 45 | AC65: 50.16666667 | AE65: 45 | AF65: 30 | AG65: 40 | AH65: 38.33333333 | AI65: 43 | AJ65: 43 | AK65: 34 | AL65: 39 | AM65: 40.11111111 | AN65: 42 | AO65: 41.05555556 | AQ65: 35 | AR65: 40 | AS65: 34 | AT65: 36.33333333 | AU65: 50 | AV65: 43 | AW65: 56 | AX65: 50 | AY65: 45.44444444 | AZ65: 28 | BA65: 37 | BC65: 35 | BD65: 62 | BE65: 52 | BF65: 50 | BG65: 71 | BH65: 51 | BI65: 74 | BJ65: 63 | BK65: 61.33333333 | BL65: 72 | BM65: 67 | BO65: 40 | BP65: 41 | BQ65: 45 | BR65: 42 | BS65: 56 | BT65: 44.5 | BU65: 38 | BV65: 41.25 | BW65: 46.41666667 | BX65: 52 | BY65: 49.20833333 | CA65: 82 | CB65: 83 | CC65: 82 | CD65: 82.33333333 | CE65: 85 | CF65: 85.38888889 | CG65: 82 | CH65: 84 | CI65: 84 | CJ65: 85 | CK65: 85 | CM65: 80 | CN65: 82 | CO65: 83 | CP65: 82 | CQ65: 92 | CR65: 82.33333333 | CS65: 82 | CT65: 82.16666667 | CU65: 85.38888889 | CV65: 73 | CW65: 79.19444444
A66: 43 | B66: =COUNTIF($F$24:F66,F66) -> 43 | C66: 51/4 | D66: احمد43 | E66: ذكر | F66: الخامس-أ | G66: 68 | H66: 73 | I66: 65 | J66: 69 | K66: 91 | L66: 85 | M66: 85 | N66: 85 | O66: 82 | P66: 92 | Q66: 87 | S66: 80 | T66: 92 | U66: 92 | V66: 88 | W66: 88 | X66: 76 | Y66: 86 | Z66: 81 | AA66: 86 | AB66: 82 | AC66: 84 | AE66: 70 | AF66: 60 | AG66: 60 | AH66: 63.33333333 | AI66: 85 | AJ66: 85 | AK66: 85 | AL66: 85 | AM66: 78 | AN66: 68 | AO66: 73 | AQ66: 74 | AR66: 78 | AS66: 87 | AT66: 80 | AU66: 79 | AV66: 56.5 | AW66: 71 | AX66: 64 | AY66: 74.33333333 | AZ66: 72 | BA66: 73.16666667 | BC66: 88 | BD66: 63 | BE66: 94 | BF66: 82 | BG66: 96 | BH66: 96 | BI66: 93 | BJ66: 95 | BK66: 91 | BL66: 96 | BM66: 94 | BO66: 61 | BP66: 82 | BQ66: 74 | BR66: 72.33333333 | BS66: 81 | BT66: 60 | BU66: 79 | BV66: 70 | BW66: 74.44444444 | BX66: 68 | BY66: 71.22222222 | CA66: 85 | CB66: 84 | CC66: 83 | CD66: 84 | CE66: 85 | CF66: 84 | CG66: 83 | CH66: 84 | CI66: 84.33333333 | CJ66: 90 | CK66: 87.16666667 | CM66: 80 | CN66: 85 | CO66: 84 | CP66: 83 | CQ66: 85 | CR66: 84 | CS66: 83 | CT66: 84 | CU66: 84 | CV66: 89 | CW66: 87
A67: 44 | B67: =COUNTIF($F$24:F67,F67) -> 44 | C67: 314/3 | D67: احمد44 | E67: ذكر | F67: الخامس-أ | G67: 58 | H67: 64 | I67: 67 | J67: 63 | K67: 75 | L67: 67 | M67: 72 | N67: 70 | O67: 69.33333333 | P67: 76 | Q67: 73 | S67: 50 | T67: 59 | U67: 57 | V67: 55.33333333 | W67: 64 | X67: 61 | Y67: 76 | Z67: 69 | AA67: 63 | AB67: 60 | AC67: 62 | AE67: 45 | AF67: 55 | AG67: 55 | AH67: 52 | AI67: 48 | AJ67: 60 | AK67: 55 | AL67: 58 | AM67: 53 | AN67: 57 | AO67: 55 | AQ67: 42 | AR67: 41 | AS67: 51 | AT67: 45 | AU67: 47 | AV67: 54.5 | AW67: 52 | AX67: 53.25 | AY67: 48.41666667 | AZ67: 55 | BA67: 52 | BC67: 55 | BD67: 63 | BE67: 43 | BF67: 54 | BG67: 79 | BH67: 81 | BI67: 94 | BJ67: 88 | BK67: 74 | BL67: 85 | BM67: 80 | BO67: 51 | BP67: 54 | BQ67: 55 | BR67: 53.33333333 | BS67: 40 | BT67: 54.5 | BU67: 56 | BV67: 55.25 | BW67: 50 | BX67: 63 | BY67: 57 | CA67: 90 | CB67: 91 | CC67: 90.33333333 | CD67: 90.44444444 | CE67: 90 | CF67: 92 | CG67: 90.33333333 | CH67: 91.16666667 | CI67: 91 | CJ67: 80 | CK67: 86 | CM67: 90 | CN67: 90 | CO67: 91 | CP67: 90.33333333 | CQ67: 95 | CR67: 90.44444444 | CS67: 90.33333333 | CT67: 90.38888889 | CU67: 92 | CV67: 93 | CW67: 93
A68: 45 | B68: =COUNTIF($F$24:F68,F68) -> 45 | C68: 44/4 | D68: احمد45 | E68: ذكر | F68: الخامس-أ | G68: 50 | H68: 70 | I68: 63 | J68: 61 | K68: 83 | L68: 64 | M68: 55 | N68: 60 | O68: 68 | P68: 75 | Q68: 72 | S68: 76 | T68: 70 | U68: 64 | V68: 70 | W68: 65 | X68: 55 | Y68: 61 | Z68: 58 | AA68: 64.33333333 | AB68: 54 | AC68: 59.16666667 | AE68: 35 | AF68: 40 | AG68: 40 | AH68: 38.33333333 | AI68: 49 | AJ68: 55 | AK68: 55 | AL68: 55 | AM68: 47.44444444 | AN68: 55 | AO68: 51.22222222 | AQ68: 35 | AR68: 51 | AS68: 45 | AT68: 44 | AU68: 60 | AV68: 51 | AW68: 52 | AX68: 52 | AY68: 52 | AZ68: 57 | BA68: 55 | BC68: 55 | BD68: 88 | BE68: 61 | BF68: 68 | BG68: 71 | BH68: 60 | BI68: 73 | BJ68: 67 | BK68: 69 | BL68: 77 | BM68: 73 | BO68: 35 | BP68: 61 | BQ68: 75 | BR68: 57 | BS68: 72 | BT68: 52.5 | BU68: 57 | BV68: 55 | BW68: 61.33333333 | BX68: 52 | BY68: 57 | CA68: 87 | CB68: 87 | CC68: 86.33333333 | CD68: 87 | CE68: 80 | CF68: 88.44444444 | CG68: 86.33333333 | CH68: 87.38888889 | CI68: 85 | CJ68: 95 | CK68: 90 | CM68: 85 | CN68: 87 | CO68: 87 | CP68: 86.33333333 | CQ68: 92 | CR68: 87 | CS68: 86.33333333 | CT68: 87 | CU68: 88.44444444 | CV68: 75 | CW68: 82
A69: 46 | B69: =COUNTIF($F$24:F69,F69) -> 46 | C69: 45/4 | D69: احمد46 | E69: ذكر | F69: الخامس-أ | G69: 74 | H69: 88 | I69: 93 | J69: 85 | K69: 88 | L69: 78 | M69: 83 | N69: 81 | O69: 85 | P69: 78 | Q69: 82 | S69: 80 | T69: 89 | U69: 86 | V69: 85 | W69: 84 | X69: 89 | Y69: 89 | Z69: 89 | AA69: 86 | AB69: 81 | AC69: 84 | AE69: 94 | AF69: 64 | AG69: 75 | AH69: 78 | AI69: 74 | AJ69: 55 | AK69: 75 | AL69: 65 | AM69: 72.33333333 | AN69: 70 | AO69: 71.16666667 | AQ69: 60 | AR69: 89 | AS69: 97 | AT69: 82 | AU69: 90 | AV69: 59.5 | AW69: 84 | AX69: 72 | AY69: 81.33333333 | AZ69: 73 | BA69: 77.16666667 | BC69: 95 | BD69: 94 | BE69: 94 | BF69: 94.33333333 | BG69: 90 | BH69: 85 | BI69: 79 | BJ69: 82 | BK69: 89 | BL69: 96 | BM69: 93 | BO69: 50 | BP69: 66 | BQ69: 69 | BR69: 62 | BS69: 61 | BT69: 69 | BU69: 53 | BV69: 61 | BW69: 61.33333333 | BX69: 80 | BY69: 71 | CA69: 92 | CB69: 93 | CC69: 92.33333333 | CD69: 92.44444444 | CE69: 95 | CF69: 93.24074074 | CG69: 92.33333333 | CH69: 93 | CI69: 93.48148148 | CJ69: 80 | CK69: 87 | CM69: 92 | CN69: 92 | CO69: 93 | CP69: 92.33333333 | CQ69: 95 | CR69: 92.44444444 | CS69: 92.33333333 | CT69: 92.38888889 | CU69: 93.24074074 | CV69: 100 | CW69: 97
A70: 47 | B70: =COUNTIF($F$24:F70,F70) -> 47 | C70: 333/3 | D70: احمد47 | E70: ذكر | F70: الخامس-أ | G70: 30 | H70: 37 | I70: 38 | J70: 35 | K70: 31 | L70: 38 | M70: 53 | N70: 46 | O70: 37.33333333 | P70: 42 | Q70: 40 | S70: 38 | T70: 43 | U70: 50 | V70: 44 | W70: 39 | X70: 52 | Y70: 47 | Z70: 50 | AA70: 44.33333333 | AB70: 30 | AC70: 37.16666667 | AE70: 50 | AF70: 38 | AG70: 45 | AH70: 44.33333333 | AI70: 38 | AJ70: 38 | AK70: 28 | AL70: 33 | AM70: 38.44444444 | AN70: 36 | AO70: 37.22222222 | AQ70: 35 | AR70: 35 | AS70: 35 | AT70: 35 | AU70: 31 | AV70: 40.5 | AW70: 41 | AX70: 41 | AY70: 36 | AZ70: 39 | BA70: 38 | BC70: 46 | BD70: 55 | BE70: 48 | BF70: 50 | BG70: 50 | BH70: 41 | BI70: 35 | BJ70: 38 | BK70: 46 | BL70: 32 | BM70: 39 | BO70: 39 | BP70: 30 | BQ70: 45 | BR70: 38 | BS70: 42 | BT70: 45.5 | BU70: 42 | BV70: 44 | BW70: 41.33333333 | BX70: 47 | BY70: 44.16666667 | CA70: 82 | CB70: 84 | CC70: 83 | CD70: 83 | CE70: 80 | CF70: 84.33333333 | CG70: 83 | CH70: 84 | CI70: 82.33333333 | CJ70: 80 | CK70: 81.16666667 | CM70: 82 | CN70: 82 | CO70: 84 | CP70: 83 | CQ70: 87 | CR70: 83 | CS70: 83 | CT70: 83 | CU70: 84.33333333 | CV70: 78 | CW70: 81.16666667
A71: 48 | B71: =COUNTIF($F$24:F71,F71) -> 48 | C71: 30/4 | D71: احمد48 | E71: ذكر | F71: الخامس-أ | G71: 76 | H71: 66 | I71: 71 | J71: 71 | K71: 73 | L71: 67 | M71: 77 | N71: 72 | O71: 72 | P71: 71 | Q71: 72 | S71: 77 | T71: 69 | U71: 68 | V71: 71.33333333 | W71: 84 | X71: 75 | Y71: 77 | Z71: 76 | AA71: 77.11111111 | AB71: 81 | AC71: 79.05555556 | AE71: 50 | AF71: 55 | AG71: 55 | AH71: 53.33333333 | AI71: 67 | AJ71: 72 | AK71: 66 | AL71: 69 | AM71: 63.11111111 | AN71: 66 | AO71: 65 | AQ71: 53 | AR71: 70 | AS71: 84 | AT71: 69 | AU71: 69 | AV71: 57.5 | AW71: 85 | AX71: 71.25 | AY71: 70 | AZ71: 74 | BA71: 72 | BC71: 75 | BD71: 69 | BE71: 84 | BF71: 76 | BG71: 92 | BH71: 74 | BI71: 90 | BJ71: 82 | BK71: 83.33333333 | BL71: 76 | BM71: 80 | BO71: 60 | BP71: 60 | BQ71: 73 | BR71: 64.33333333 | BS71: 74 | BT71: 62.5 | BU71: 83 | BV71: 73 | BW71: 70.44444444 | BX71: 60 | BY71: 65.22222222 | CA71: 80 | CB71: 85 | CC71: 82.33333333 | CD71: 82.44444444 | CE71: 80 | CF71: 84 | CG71: 82.33333333 | CH71: 83.16666667 | CI71: 82 | CJ71: 90 | CK71: 86 | CM71: 82 | CN71: 80 | CO71: 85 | CP71: 82.33333333 | CQ71: 87 | CR71: 82.44444444 | CS71: 82.33333333 | CT71: 82.38888889 | CU71: 84 | CV71: 75 | CW71: 80
A72: 49 | B72: =COUNTIF($F$24:F72,F72) -> 49 | C72: 286/3 | D72: احمد49 | E72: ذكر | F72: الخامس-أ | G72: 75 | H72: 70 | I72: 74 | J72: 73 | K72: 77 | L72: 72 | M72: 77 | N72: 75 | O72: 75 | P72: 84 | Q72: 80 | S72: 82 | T72: 73 | U72: 79 | V72: 78 | W72: 85 | X72: 73 | Y72: 88 | Z72: 81 | AA72: 81.33333333 | AB72: 77 | AC72: 79.16666667 | AE72: 51 | AF72: 51 | AG72: 50 | AH72: 51 | AI72: 52 | AJ72: 63 | AK72: 51 | AL72: 57 | AM72: 53.33333333 | AN72: 61 | AO72: 57.16666667 | AQ72: 55 | AR72: 61 | AS72: 60 | AT72: 59 | AU72: 72 | AV72: 57 | AW72: 58 | AX72: 58 | AY72: 63 | AZ72: 61 | BA72: 62 | BC72: 75 | BD72: 78 | BE72: 82 | BF72: 78.33333333 | BG72: 91 | BH72: 54 | BI72: 88 | BJ72: 71 | BK72: 80.11111111 | BL72: 85 | BM72: 83 | BO72: 58 | BP72: 64 | BQ72: 74 | BR72: 65.33333333 | BS72: 62 | BT72: 59.5 | BU72: 80 | BV72: 70 | BW72: 66 | BX72: 61 | BY72: 64 | CA72: 85 | CB72: 85 | CC72: 83.33333333 | CD72: 84.44444444 | CE72: 90 | CF72: 86 | CG72: 83.33333333 | CH72: 85 | CI72: 86.48148148 | CJ72: 80 | CK72: 83.24074074 | CM72: 80 | CN72: 85 | CO72: 85 | CP72: 83.33333333 | CQ72: 90 | CR72: 84.44444444 | CS72: 83.33333333 | CT72: 84 | CU72: 86 | CV72: 94 | CW72: 90
A73: 50 | B73: =COUNTIF($F$24:F73,F73) -> 50 | C73: 347/3 | D73: احمد50 | E73: ذكر | F73: الخامس-أ | G73: 38 | H73: 40 | I73: 44 | J73: 41 | K73: 69 | L73: 62 | M73: 37 | N73: 50 | O73: 53.33333333 | P73: 51 | Q73: 52.16666667 | S73: 38 | T73: 57 | U73: 54 | V73: 50 | W73: 59 | X73: 50 | Y73: 56 | Z73: 53 | AA73: 54 | AB73: 48 | AC73: 51 | AE73: 60 | AF73: 50 | AG73: 43 | AH73: 51 | AI73: 44 | AJ73: 45 | AK73: 45 | AL73: 45 | AM73: 47 | AN73: 47 | AO73: 47 | AQ73: 35 | AR73: 40 | AS73: 55 | AT73: 43.33333333 | AU73: 51 | AV73: 41.5 | AW73: 41 | AX73: 41.25 | AY73: 45.19444444 | AZ73: 33 | BA73: 39.09722222 | BC73: 40 | BD73: 57 | BE73: 40 | BF73: 46 | BG73: 59 | BH73: 45 | BI73: 61 | BJ73: 53 | BK73: 53 | BL73: 42 | BM73: 48 | BO73: 41 | BP73: 53 | BQ73: 45 | BR73: 46.33333333 | BS73: 35 | BT73: 44 | BU73: 56 | BV73: 50 | BW73: 44 | BX73: 47 | BY73: 46 | CA73: 80 | CB73: 80 | CC73: 80 | CD73: 80 | CE73: 80 | CF73: 81 | CG73: 80 | CH73: 81 | CI73: 80.33333333 | CJ73: 80 | CK73: 80.16666667 | CM73: 80 | CN73: 80 | CO73: 80 | CP73: 80 | CQ73: 82 | CR73: 80 | CS73: 80 | CT73: 80 | CU73: 81 | CV73: 89 | CW73: 85
A74: 51 | B74: =COUNTIF($F$24:F74,F74) -> 51 | C74: 194/3 | D74: احمد51 | E74: ذكر | F74: الخامس-أ | G74: 73 | H74: 71 | I74: 61 | J74: 68.33333333 | K74: 76 | L74: 58 | M74: 61 | N74: 60 | O74: 68.11111111 | P74: 70 | Q74: 69.05555556 | S74: 68 | T74: 70 | U74: 53 | V74: 64 | W74: 70 | X74: 56 | Y74: 77 | Z74: 67 | AA74: 67 | AB74: 60 | AC74: 64 | AE74: 67 | AF74: 61 | AG74: 55 | AH74: 61 | AI74: 58 | AJ74: 60 | AK74: 56 | AL74: 58 | AM74: 59 | AN74: 63 | AO74: 61 | AQ74: 56 | AR74: 70 | AS74: 70 | AT74: 65.33333333 | AU74: 79 | AV74: 59 | AW74: 64 | AX74: 62 | AY74: 69 | AZ74: 56 | BA74: 63 | BC74: 84 | BD74: 83 | BE74: 66 | BF74: 78 | BG74: 82 | BH74: 65 | BI74: 64 | BJ74: 65 | BK74: 75 | BL74: 74 | BM74: 75 | BO74: 39 | BP74: 53 | BQ74: 63 | BR74: 52 | BS74: 56 | BT74: 44.5 | BU74: 55 | BV74: 50 | BW74: 53 | BX74: 56 | BY74: 55 | CA74: 90 | CB74: 90 | CC74: 90 | CD74: 90 | CE74: 80 | CF74: 89 | CG74: 90 | CH74: 90 | CI74: 87 | CJ74: 85 | CK74: 86 | CM74: 90 | CN74: 90 | CO74: 90 | CP74: 90 | CQ74: 87 | CR74: 90 | CS74: 90 | CT74: 90 | CU74: 89 | CV74: 92 | CW74: 91
A75: 52 | B75: =COUNTIF($F$24:F75,F75) -> 52 | C75: 381/3 | D75: احمد52 | E75: ذكر | F75: الخامس-أ | G75: 64 | H75: 81 | I75: 70 | J75: 72 | K75: 71 | L75: 74 | M75: 75 | N75: 75 | O75: 73 | P75: 66 | Q75: 70 | S75: 78 | T75: 73 | U75: 77 | V75: 76 | W75: 83 | X75: 61 | Y75: 84 | Z75: 73 | AA75: 77.33333333 | AB75: 78 | AC75: 78 | AE75: 60 | AF75: 55 | AG75: 75 | AH75: 63.33333333 | AI75: 58 | AJ75: 57 | AK75: 50 | AL75: 54 | AM75: 58.44444444 | AN75: 57 | AO75: 58 | AQ75: 60 | AR75: 61 | AS75: 72 | AT75: 64.33333333 | AU75: 82 | AV75: 51 | AW75: 73 | AX75: 62 | AY75: 69.44444444 | AZ75: 72 | BA75: 71 | BC75: 80 | BD75: 78 | BE75: 66 | BF75: 75 | BG75: 84 | BH75: 70 | BI75: 68 | BJ75: 69 | BK75: 76 | BL75: 67 | BM75: 72 | BO75: 58 | BP75: 55 | BQ75: 66 | BR75: 60 | BS75: 56 | BT75: 63.5 | BU75: 61 | BV75: 62.25 | BW75: 59.41666667 | BX75: 73 | BY75: 66.20833333 | CA75: 80 | CB75: 75 | CC75: 80 | CD75: 78.33333333 | CE75: 85 | CF75: 83.05555556 | CG75: 80 | CH75: 82 | CI75: 82 | CJ75: 80 | CK75: 81 | CM75: 85 | CN75: 80 | CO75: 75 | CP75: 80 | CQ75: 90 | CR75: 78.33333333 | CS75: 80 | CT75: 79.16666667 | CU75: 83.05555556 | CV75: 82 | CW75: 83
A76: 53 | B76: =COUNTIF($F$24:F76,F76) -> 53 | C76: 42/4 | D76: احمد53 | E76: ذكر | F76: الخامس-أ | G76: 61 | H76: 83 | I76: 78 | J76: 74 | K76: 86 | L76: 75 | M76: 83 | N76: 79 | O76: 80 | P76: 74 | Q76: 77 | S76: 80 | T76: 79 | U76: 72 | V76: 77 | W76: 72 | X76: 74 | Y76: 69 | Z76: 72 | AA76: 74 | AB76: 61 | AC76: 68 | AE76: 75 | AF76: 56 | AG76: 65 | AH76: 65.33333333 | AI76: 77 | AJ76: 85 | AK76: 60 | AL76: 73 | AM76: 72 | AN76: 60 | AO76: 66 | AQ76: 60 | AR76: 71 | AS76: 85 | AT76: 72 | AU76: 81 | AV76: 70 | AW76: 87 | AX76: 79 | AY76: 77.33333333 | AZ76: 80 | BA76: 79 | BC76: 65 | BD76: 92 | BE76: 76 | BF76: 78 | BG76: 90 | BH76: 86 | BI76: 72 | BJ76: 79 | BK76: 82.33333333 | BL76: 85 | BM76: 84 | BO76: 50 | BP76: 54 | BQ76: 82 | BR76: 62 | BS76: 82 | BT76: 71 | BU76: 53 | BV76: 62 | BW76: 69 | BX76: 74 | BY76: 72 | CA76: 82 | CB76: 85 | CC76: 82.33333333 | CD76: 83.11111111 | CE76: 80 | CF76: 86 | CG76: 82.33333333 | CH76: 84.16666667 | CI76: 82.42592593 | CJ76: 90 | CK76: 86.21296296 | CM76: 80 | CN76: 82 | CO76: 85 | CP76: 82.33333333 | CQ76: 92 | CR76: 83.11111111 | CS76: 82.33333333 | CT76: 83 | CU76: 86 | CV76: 90 | CW76: 88
A77: 54 | B77: =COUNTIF($F$24:F77,F77) -> 54 | C77: 92/4 | D77: احمد54 | E77: ذكر | F77: الخامس-أ | G77: 53 | H77: 70 | I77: 81 | J77: 68 | K77: 79 | L77: 65 | M77: 72 | N77: 69 | O77: 72 | P77: 63 | Q77: 68 | S77: 70 | T77: 70 | U77: 71 | V77: 70.33333333 | W77: 65 | X77: 65 | Y77: 73 | Z77: 69 | AA77: 68.11111111 | AB77: 49 | AC77: 59 | AE77: 75 | AF77: 65 | AG77: 72 | AH77: 71 | AI77: 72 | AJ77: 55 | AK77: 60 | AL77: 58 | AM77: 67 | AN77: 68 | AO77: 68 | AQ77: 65 | AR77: 60 | AS77: 61 | AT77: 62 | AU77: 71 | AV77: 56 | AW77: 78 | AX77: 67 | AY77: 67 | AZ77: 78 | BA77: 73 | BC77: 73 | BD77: 75 | BE77: 64 | BF77: 71 | BG77: 79 | BH77: 67 | BI77: 76 | BJ77: 72 | BK77: 74 | BL77: 80 | BM77: 77 | BO77: 54 | BP77: 63 | BQ77: 69 | BR77: 62 | BS77: 69 | BT77: 57 | BU77: 50 | BV77: 54 | BW77: 62 | BX77: 76 | BY77: 69 | CA77: 85 | CB77: 85 | CC77: 85 | CD77: 85 | CE77: 90 | CF77: 87.33333333 | CG77: 85 | CH77: 86.16666667 | CI77: 87.05555556 | CJ77: 85 | CK77: 86.02777778 | CM77: 85 | CN77: 85 | CO77: 85 | CP77: 85 | CQ77: 92 | CR77: 85 | CS77: 85 | CT77: 85 | CU77: 87.33333333 | CV77: 90 | CW77: 89
A78: 55 | B78: =COUNTIF($F$24:F78,F78) -> 55 | C78: 22/4 | D78: احمد55 | E78: ذكر | F78: الخامس-أ | G78: 66 | H78: 83 | I78: 73 | J78: 74 | K78: 93 | L78: 89 | M78: 78 | N78: 84 | O78: 84 | P78: 86 | Q78: 85 | S78: 81 | T78: 89 | U78: 72 | V78: 81 | W78: 82 | X78: 81 | Y78: 94 | Z78: 88 | AA78: 84 | AB78: 81 | AC78: 83 | AE78: 66 | AF78: 64 | AG78: 65 | AH78: 65 | AI78: 65 | AJ78: 70 | AK78: 70 | AL78: 70 | AM78: 67 | AN78: 68 | AO78: 68 | AQ78: 55 | AR78: 76 | AS78: 73 | AT78: 68 | AU78: 82 | AV78: 64 | AW78: 70 | AX78: 67 | AY78: 72.33333333 | AZ78: 77 | BA78: 75 | BC78: 80 | BD78: 88 | BE78: 87 | BF78: 85 | BG78: 96 | BH78: 98 | BI78: 84 | BJ78: 91 | BK78: 91 | BL78: 77 | BM78: 84 | BO78: 80 | BP78: 81 | BQ78: 94 | BR78: 85 | BS78: 75 | BT78: 80.5 | BU78: 72 | BV78: 76.25 | BW78: 79 | BX78: 63 | BY78: 71 | CA78: 82 | CB78: 84 | CC78: 83 | CD78: 83 | CE78: 85 | CF78: 85.33333333 | CG78: 83 | CH78: 84.16666667 | CI78: 84.05555556 | CJ78: 85 | CK78: 85 | CM78: 82 | CN78: 82 | CO78: 84 | CP78: 83 | CQ78: 90 | CR78: 83 | CS78: 83 | CT78: 83 | CU78: 85.33333333 | CV78: 98 | CW78: 92
A79: 56 | B79: =COUNTIF($F$24:F79,F79) -> 56 | C79: 359/3 | D79: احمد56 | E79: ذكر | F79: الخامس-أ | G79: 66 | H79: 79 | I79: 64 | J79: 70 | K79: 72 | L79: 76 | M79: 78 | N79: 77 | O79: 73 | P79: 79 | Q79: 76 | S79: 72 | T79: 86 | U79: 80 | V79: 79.33333333 | W79: 78 | X79: 75 | Y79: 88 | Z79: 82 | AA79: 80 | AB79: 66 | AC79: 73 | AE79: 56 | AF79: 55 | AG79: 55 | AH79: 55.33333333 | AI79: 51 | AJ79: 50 | AK79: 40 | AL79: 45 | AM79: 50.44444444 | AN79: 52 | AO79: 51.22222222 | AQ79: 40 | AR79: 42 | AS79: 67 | AT79: 50 | AU79: 60 | AV79: 51.5 | AW79: 51 | AX79: 51.25 | AY79: 54 | AZ79: 45 | BA79: 50 | BC79: 51 | BD79: 90 | BE79: 61 | BF79: 67.33333333 | BG79: 80 | BH79: 90 | BI79: 84 | BJ79: 87 | BK79: 78.11111111 | BL79: 87 | BM79: 83 | BO79: 65 | BP79: 55 | BQ79: 55 | BR79: 58.33333333 | BS79: 62 | BT79: 62 | BU79: 66 | BV79: 64 | BW79: 61.44444444 | BX79: 59 | BY79: 60.22222222 | CA79: 85 | CB79: 90 | CC79: 87 | CD79: 87.33333333 | CE79: 85 | CF79: 88.05555556 | CG79: 87 | CH79: 88 | CI79: 87 | CJ79: 85 | CK79: 86 | CM79: 85 | CN79: 85 | CO79: 90 | CP79: 87 | CQ79: 90 | CR79: 87.33333333 | CS79: 87 | CT79: 87.16666667 | CU79: 88.05555556 | CV79: 98 | CW79: 93.02777778
A80: 57 | B80: =COUNTIF($F$24:F80,F80) -> 1 | C80: 345/3 | D80: احمد57 | E80: ذكر | F80: الخامس-ب | G80: 71 | H80: 79 | I80: 81 | J80: =IF(AND(G80="غائب",H80="غائب",I80="غائب"),"غائب",IF(AND(G80<>"",H80<>"",I80<>""),IF(ABS(SUM(G80:I80))/3-INT(SUM(G80:I80)/3)>=0.5,INT(SUM(G80:I80)/3)+1,SUM(G80:I80)/3),"")) -> 77 | K80: 89 | L80: 75 | M80: 62 | N80: =IF(AND(L80="غائب",M80="غائب"),"غائب",IF(AND(L80<>"",M80<>""),IF(ABS(SUM(L80:M80))/2-INT(SUM(L80:M80)/2)>=0.5,INT(SUM(L80:M80)/2)+1,SUM(L80:M80)/2),"")) -> 69 | O80: =IF(AND(J80="غائب",K80="غائب",N80="غائب"),"غائب",IF(AND(J80<>"",K80<>"",N80<>""),IF(ABS(SUM(J80,K80,N80))/3-INT(SUM(J80,K80,N80)/3)>=0.5,INT(SUM(J80,K80,N80)/3)+1,SUM(J80,K80,N80)/3),"")) -> 78.33333333 | P80: 86 | Q80: =IF(AND(O80="غائب",P80="غائب"),"غائب",IF(AND(O80<>"",P80<>""),IF(ABS(SUM(O80:P80))/2-INT(SUM(O80:P80)/2)>=0.5,INT(SUM(O80:P80)/2)+1,SUM(O80:P80)/2),"")) -> 82.16666667 | S80: 74 | T80: 71 | U80: 68 | V80: =IF(AND(S80="غائب",T80="غائب",U80="غائب"),"غائب",IF(AND(S80<>"",T80<>"",U80<>""),IF(ABS(SUM(S80:U80))/3-INT(SUM(S80:U80)/3)>=0.5,INT(SUM(S80:U80)/3)+1,SUM(S80:U80)/3),"")) -> 71 | W80: 84 | X80: 69 | Y80: 69 | Z80: =IF(AND(X80="غائب",Y80="غائب"),"غائب",IF(AND(X80<>"",Y80<>""),IF(ABS(SUM(X80:Y80))/2-INT(SUM(X80:Y80)/2)>=0.5,INT(SUM(X80:Y80)/2)+1,SUM(X80:Y80)/2),"")) -> 69 | AA80: =IF(AND(V80="غائب",W80="غائب",Z80="غائب"),"غائب",IF(AND(V80<>"",W80<>"",Z80<>""),IF(ABS(SUM(V80,W80,Z80))/3-INT(SUM(V80,W80,Z80)/3)>=0.5,INT(SUM(V80,W80,Z80)/3)+1,SUM(V80,W80,Z80)/3),"")) -> 75 | AB80: 80 | AC80: =IF(AND(AA80="غائب",AB80="غائب"),"غائب",IF(AND(AA80<>"",AB80<>""),IF(ABS(SUM(AA80:AB80))/2-INT(SUM(AA80:AB80)/2)>=0.5,INT(SUM(AA80:AB80)/2)+1,SUM(AA80:AB80)/2),"")) -> 78 | AE80: 50 | AF80: 37 | AG80: 62 | AH80: =IF(AND(AE80="غائب",AF80="غائب",AG80="غائب"),"غائب",IF(AND(AE80<>"",AF80<>"",AG80<>""),IF(ABS(SUM(AE80:AG80))/3-INT(SUM(AE80:AG80)/3)>=0.5,INT(SUM(AE80:AG80)/3)+1,SUM(AE80:AG80)/3),"")) -> 50 | AI80: 46 | AJ80: 57 | AK80: 57 | AL80: =IF(AND(AJ80="غائب",AK80="غائب"),"غائب",IF(AND(AJ80<>"",AK80<>""),IF(ABS(SUM(AJ80:AK80))/2-INT(SUM(AJ80:AK80)/2)>=0.5,INT(SUM(AJ80:AK80)/2)+1,SUM(AJ80:AK80)/2),"")) -> 57 | AM80: =IF(AND(AH80="غائب",AI80="غائب",AL80="غائب"),"غائب",IF(AND(AH80<>"",AI80<>"",AL80<>""),IF(ABS(SUM(AH80,AI80,AL80))/3-INT(SUM(AH80,AI80,AL80)/3)>=0.5,INT(SUM(AH80,AI80,AL80)/3)+1,SUM(AH80,AI80,AL80)/3),"")) -> 51 | AN80: 46 | AO80: =IF(AND(AM80="غائب",AN80="غائب"),"غائب",IF(AND(AM80<>"",AN80<>""),IF(ABS(SUM(AM80:AN80))/2-INT(SUM(AM80:AN80)/2)>=0.5,INT(SUM(AM80:AN80)/2)+1,SUM(AM80:AN80)/2),"")) -> 49 | AQ80: 71 | AR80: 90 | AS80: 100 | AT80: =IF(AND(AQ80="غائب",AR80="غائب",AS80="غائب"),"غائب",IF(AND(AQ80<>"",AR80<>"",AS80<>""),IF(ABS(SUM(AQ80:AS80))/3-INT(SUM(AQ80:AS80)/3)>=0.5,INT(SUM(AQ80:AS80)/3)+1,SUM(AQ80:AS80)/3),"")) -> 87 | AU80: 92 | AV80: 84 | AW80: 88 | AX80: =IF(AND(AV80="غائب",AW80="غائب"),"غائب",IF(AND(AV80<>"",AW80<>""),IF(ABS(SUM(AV80:AW80))/2-INT(SUM(AV80:AW80)/2)>=0.5,INT(SUM(AV80:AW80)/2)+1,SUM(AV80:AW80)/2),"")) -> 86 | AY80: =IF(AND(AT80="غائب",AU80="غائب",AX80="غائب"),"غائب",IF(AND(AT80<>"",AU80<>"",AX80<>""),IF(ABS(SUM(AT80,AU80,AX80))/3-INT(SUM(AT80,AU80,AX80)/3)>=0.5,INT(SUM(AT80,AU80,AX80)/3)+1,SUM(AT80,AU80,AX80)/3),"")) -> 88.33333333 | AZ80: 92 | BA80: =IF(AND(AY80="غائب",AZ80="غائب"),"غائب",IF(AND(AY80<>"",AZ80<>""),IF(ABS(SUM(AY80:AZ80))/2-INT(SUM(AY80:AZ80)/2)>=0.5,INT(SUM(AY80:AZ80)/2)+1,SUM(AY80:AZ80)/2),"")) -> 90.16666667 | BC80: 95 | BD80: 80 | BE80: 70 | BF80: =IF(AND(BC80="غائب",BD80="غائب",BE80="غائب"),"غائب",IF(AND(BC80<>"",BD80<>"",BE80<>""),IF(ABS(SUM(BC80:BE80))/3-INT(SUM(BC80:BE80)/3)>=0.5,INT(SUM(BC80:BE80)/3)+1,SUM(BC80:BE80)/3),"")) -> 82 | BG80: 94 | BH80: 80 | BI80: 68 | BJ80: =IF(AND(BH80="غائب",BI80="غائب"),"غائب",IF(AND(BH80<>"",BI80<>""),IF(ABS(SUM(BH80:BI80))/2-INT(SUM(BH80:BI80)/2)>=0.5,INT(SUM(BH80:BI80)/2)+1,SUM(BH80:BI80)/2),"")) -> 74 | BK80: =IF(AND(BF80="غائب",BG80="غائب",BJ80="غائب"),"غائب",IF(AND(BF80<>"",BG80<>"",BJ80<>""),IF(ABS(SUM(BF80,BG80,BJ80))/3-INT(SUM(BF80,BG80,BJ80)/3)>=0.5,INT(SUM(BF80,BG80,BJ80)/3)+1,SUM(BF80,BG80,BJ80)/3),"")) -> 83.33333333 | BL80: 88 | BM80: =IF(AND(BK80="غائب",BL80="غائب"),"غائب",IF(AND(BK80<>"",BL80<>""),IF(ABS(SUM(BK80:BL80))/2-INT(SUM(BK80:BL80)/2)>=0.5,INT(SUM(BK80:BL80)/2)+1,SUM(BK80:BL80)/2),"")) -> 86 | BO80: 54 | BP80: 74 | BQ80: 85 | BR80: =IF(AND(BO80="غائب",BP80="غائب",BQ80="غائب"),"غائب",IF(AND(BO80<>"",BP80<>"",BQ80<>""),IF(ABS(SUM(BO80:BQ80))/3-INT(SUM(BO80:BQ80)/3)>=0.5,INT(SUM(BO80:BQ80)/3)+1,SUM(BO80:BQ80)/3),"")) -> 71 | BS80: 83 | BT80: 86 | BU80: 72 | BV80: =IF(AND(BT80="غائب",BU80="غائب"),"غائب",IF(AND(BT80<>"",BU80<>""),IF(ABS(SUM(BT80:BU80))/2-INT(SUM(BT80:BU80)/2)>=0.5,INT(SUM(BT80:BU80)/2)+1,SUM(BT80:BU80)/2),"")) -> 79 | BW80: =IF(AND(BR80="غائب",BS80="غائب",BV80="غائب"),"غائب",IF(AND(BR80<>"",BS80<>"",BV80<>""),IF(ABS(SUM(BR80,BS80,BV80))/3-INT(SUM(BR80,BS80,BV80)/3)>=0.5,INT(SUM(BR80,BS80,BV80)/3)+1,SUM(BR80,BS80,BV80)/3),"")) -> 78 | BX80: 73 | BY80: =IF(AND(BW80="غائب",BX80="غائب"),"غائب",IF(AND(BW80<>"",BX80<>""),IF(ABS(SUM(BW80:BX80))/2-INT(SUM(BW80:BX80)/2)>=0.5,INT(SUM(BW80:BX80)/2)+1,SUM(BW80:BX80)/2),"")) -> 76 | CA80: 98 | CB80: 97 | CC80: 100 | CD80: =IF(AND(CA80="غائب",CB80="غائب",CC80="غائب"),"غائب",IF(AND(CA80<>"",CB80<>"",CC80<>""),IF(ABS(SUM(CA80:CC80))/3-INT(SUM(CA80:CC80)/3)>=0.5,INT(SUM(CA80:CC80)/3)+1,SUM(CA80:CC80)/3),"")) -> 98.33333333 | CE80: 98 | CF80: 98.33333333 | CG80: 97 | CH80: =IF(AND(CF80="غائب",CG80="غائب"),"غائب",IF(AND(CF80<>"",CG80<>""),IF(ABS(SUM(CF80:CG80))/2-INT(SUM(CF80:CG80)/2)>=0.5,INT(SUM(CF80:CG80)/2)+1,SUM(CF80:CG80)/2),"")) -> 98 | CI80: =IF(AND(CD80="غائب",CE80="غائب",CH80="غائب"),"غائب",IF(AND(CD80<>"",CE80<>"",CH80<>""),IF(ABS(SUM(CD80,CE80,CH80))/3-INT(SUM(CD80,CE80,CH80)/3)>=0.5,INT(SUM(CD80,CE80,CH80)/3)+1,SUM(CD80,CE80,CH80)/3),"")) -> 98.11111111 | CJ80: 98.33333333 | CK80: =IF(AND(CI80="غائب",CJ80="غائب"),"غائب",IF(AND(CI80<>"",CJ80<>""),IF(ABS(SUM(CI80:CJ80))/2-INT(SUM(CI80:CJ80)/2)>=0.5,INT(SUM(CI80:CJ80)/2)+1,SUM(CI80:CJ80)/2),"")) -> 98.22222222 | CM80: 97 | CN80: 98 | CO80: 100 | CP80: =IF(AND(CM80="غائب",CN80="غائب",CO80="غائب"),"غائب",IF(AND(CM80<>"",CN80<>"",CO80<>""),IF(ABS(SUM(CM80:CO80))/3-INT(SUM(CM80:CO80)/3)>=0.5,INT(SUM(CM80:CO80)/3)+1,SUM(CM80:CO80)/3),"")) -> 98.33333333 | CQ80: 95 | CR80: 98 | CS80: 100 | CT80: =IF(AND(CR80="غائب",CS80="غائب"),"غائب",IF(AND(CR80<>"",CS80<>""),IF(ABS(SUM(CR80:CS80))/2-INT(SUM(CR80:CS80)/2)>=0.5,INT(SUM(CR80:CS80)/2)+1,SUM(CR80:CS80)/2),"")) -> 99 | CU80: =IF(AND(CP80="غائب",CQ80="غائب",CT80="غائب"),"غائب",IF(AND(CP80<>"",CQ80<>"",CT80<>""),IF(ABS(SUM(CP80,CQ80,CT80))/3-INT(SUM(CP80,CQ80,CT80)/3)>=0.5,INT(SUM(CP80,CQ80,CT80)/3)+1,SUM(CP80,CQ80,CT80)/3),"")) -> 97.44444444 | CV80: 95 | CW80: =IF(AND(CU80="غائب",CV80="غائب"),"غائب",IF(AND(CU80<>"",CV80<>""),IF(ABS(SUM(CU80:CV80))/2-INT(SUM(CU80:CV80)/2)>=0.5,INT(SUM(CU80:CV80)/2)+1,SUM(CU80:CV80)/2),"")) -> 96.22222222
A81: 58 | B81: =COUNTIF($F$24:F81,F81) -> 2 | C81: 101/3 | D81: احمد58 | E81: ذكر | F81: الخامس-ب | G81: 79 | H81: 88 | I81: 71 | J81: =IF(AND(G81="غائب",H81="غائب",I81="غائب"),"غائب",IF(AND(G81<>"",H81<>"",I81<>""),IF(ABS(SUM(G81:I81))/3-INT(SUM(G81:I81)/3)>=0.5,INT(SUM(G81:I81)/3)+1,SUM(G81:I81)/3),"")) -> 79.33333333 | K81: 92 | L81: 83 | M81: 85 | N81: =IF(AND(L81="غائب",M81="غائب"),"غائب",IF(AND(L81<>"",M81<>""),IF(ABS(SUM(L81:M81))/2-INT(SUM(L81:M81)/2)>=0.5,INT(SUM(L81:M81)/2)+1,SUM(L81:M81)/2),"")) -> 84 | O81: =IF(AND(J81="غائب",K81="غائب",N81="غائب"),"غائب",IF(AND(J81<>"",K81<>"",N81<>""),IF(ABS(SUM(J81,K81,N81))/3-INT(SUM(J81,K81,N81)/3)>=0.5,INT(SUM(J81,K81,N81)/3)+1,SUM(J81,K81,N81)/3),"")) -> 85.11111111 | P81: 93 | Q81: =IF(AND(O81="غائب",P81="غائب"),"غائب",IF(AND(O81<>"",P81<>""),IF(ABS(SUM(O81:P81))/2-INT(SUM(O81:P81)/2)>=0.5,INT(SUM(O81:P81)/2)+1,SUM(O81:P81)/2),"")) -> 89.05555556 | S81: 81 | T81: 85 | U81: 84 | V81: =IF(AND(S81="غائب",T81="غائب",U81="غائب"),"غائب",IF(AND(S81<>"",T81<>"",U81<>""),IF(ABS(SUM(S81:U81))/3-INT(SUM(S81:U81)/3)>=0.5,INT(SUM(S81:U81)/3)+1,SUM(S81:U81)/3),"")) -> 83.33333333 | W81: 94 | X81: 86 | Y81: 84 | Z81: =IF(AND(X81="غائب",Y81="غائب"),"غائب",IF(AND(X81<>"",Y81<>""),IF(ABS(SUM(X81:Y81))/2-INT(SUM(X81:Y81)/2)>=0.5,INT(SUM(X81:Y81)/2)+1,SUM(X81:Y81)/2),"")) -> 85 | AA81: =IF(AND(V81="غائب",W81="غائب",Z81="غائب"),"غائب",IF(AND(V81<>"",W81<>"",Z81<>""),IF(ABS(SUM(V81,W81,Z81))/3-INT(SUM(V81,W81,Z81)/3)>=0.5,INT(SUM(V81,W81,Z81)/3)+1,SUM(V81,W81,Z81)/3),"")) -> 87.44444444 | AB81: 81 | AC81: =IF(AND(AA81="غائب",AB81="غائب"),"غائب",IF(AND(AA81<>"",AB81<>""),IF(ABS(SUM(AA81:AB81))/2-INT(SUM(AA81:AB81)/2)>=0.5,INT(SUM(AA81:AB81)/2)+1,SUM(AA81:AB81)/2),"")) -> 84.22222222 | AE81: 77 | AF81: 61 | AG81: 57 | AH81: =IF(AND(AE81="غائب",AF81="غائب",AG81="غائب"),"غائب",IF(AND(AE81<>"",AF81<>"",AG81<>""),IF(ABS(SUM(AE81:AG81))/3-INT(SUM(AE81:AG81)/3)>=0.5,INT(SUM(AE81:AG81)/3)+1,SUM(AE81:AG81)/3),"")) -> 65 | AI81: 69 | AJ81: 55 | AK81: 45 | AL81: =IF(AND(AJ81="غائب",AK81="غائب"),"غائب",IF(AND(AJ81<>"",AK81<>""),IF(ABS(SUM(AJ81:AK81))/2-INT(SUM(AJ81:AK81)/2)>=0.5,INT(SUM(AJ81:AK81)/2)+1,SUM(AJ81:AK81)/2),"")) -> 50 | AM81: =IF(AND(AH81="غائب",AI81="غائب",AL81="غائب"),"غائب",IF(AND(AH81<>"",AI81<>"",AL81<>""),IF(ABS(SUM(AH81,AI81,AL81))/3-INT(SUM(AH81,AI81,AL81)/3)>=0.5,INT(SUM(AH81,AI81,AL81)/3)+1,SUM(AH81,AI81,AL81)/3),"")) -> 61.33333333 | AN81: 59 | AO81: =IF(AND(AM81="غائب",AN81="غائب"),"غائب",IF(AND(AM81<>"",AN81<>""),IF(ABS(SUM(AM81:AN81))/2-INT(SUM(AM81:AN81)/2)>=0.5,INT(SUM(AM81:AN81)/2)+1,SUM(AM81:AN81)/2),"")) -> 60.16666667 | AQ81: 62 | AR81: 54 | AS81: 60 | AT81: =IF(AND(AQ81="غائب",AR81="غائب",AS81="غائب"),"غائب",IF(AND(AQ81<>"",AR81<>"",AS81<>""),IF(ABS(SUM(AQ81:AS81))/3-INT(SUM(AQ81:AS81)/3)>=0.5,INT(SUM(AQ81:AS81)/3)+1,SUM(AQ81:AS81)/3),"")) -> 59 | AU81: 55 | AV81: 52 | AW81: 68 | AX81: =IF(AND(AV81="غائب",AW81="غائب"),"غائب",IF(AND(AV81<>"",AW81<>""),IF(ABS(SUM(AV81:AW81))/2-INT(SUM(AV81:AW81)/2)>=0.5,INT(SUM(AV81:AW81)/2)+1,SUM(AV81:AW81)/2),"")) -> 60 | AY81: =IF(AND(AT81="غائب",AU81="غائب",AX81="غائب"),"غائب",IF(AND(AT81<>"",AU81<>"",AX81<>""),IF(ABS(SUM(AT81,AU81,AX81))/3-INT(SUM(AT81,AU81,AX81)/3)>=0.5,INT(SUM(AT81,AU81,AX81)/3)+1,SUM(AT81,AU81,AX81)/3),"")) -> 58 | AZ81: 67 | BA81: =IF(AND(AY81="غائب",AZ81="غائب"),"غائب",IF(AND(AY81<>"",AZ81<>""),IF(ABS(SUM(AY81:AZ81))/2-INT(SUM(AY81:AZ81)/2)>=0.5,INT(SUM(AY81:AZ81)/2)+1,SUM(AY81:AZ81)/2),"")) -> 63 | BC81: 84 | BD81: 67 | BE81: 85 | BF81: =IF(AND(BC81="غائب",BD81="غائب",BE81="غائب"),"غائب",IF(AND(BC81<>"",BD81<>"",BE81<>""),IF(ABS(SUM(BC81:BE81))/3-INT(SUM(BC81:BE81)/3)>=0.5,INT(SUM(BC81:BE81)/3)+1,SUM(BC81:BE81)/3),"")) -> 79 | BG81: 81 | BH81: 60 | BI81: 85 | BJ81: =IF(AND(BH81="غائب",BI81="غائب"),"غائب",IF(AND(BH81<>"",BI81<>""),IF(ABS(SUM(BH81:BI81))/2-INT(SUM(BH81:BI81)/2)>=0.5,INT(SUM(BH81:BI81)/2)+1,SUM(BH81:BI81)/2),"")) -> 73 | BK81: =IF(AND(BF81="غائب",BG81="غائب",BJ81="غائب"),"غائب",IF(AND(BF81<>"",BG81<>"",BJ81<>""),IF(ABS(SUM(BF81,BG81,BJ81))/3-INT(SUM(BF81,BG81,BJ81)/3)>=0.5,INT(SUM(BF81,BG81,BJ81)/3)+1,SUM(BF81,BG81,BJ81)/3),"")) -> 78 | BL81: 60 | BM81: =IF(AND(BK81="غائب",BL81="غائب"),"غائب",IF(AND(BK81<>"",BL81<>""),IF(ABS(SUM(BK81:BL81))/2-INT(SUM(BK81:BL81)/2)>=0.5,INT(SUM(BK81:BL81)/2)+1,SUM(BK81:BL81)/2),"")) -> 69 | BO81: 60 | BP81: 62 | BQ81: 80 | BR81: =IF(AND(BO81="غائب",BP81="غائب",BQ81="غائب"),"غائب",IF(AND(BO81<>"",BP81<>"",BQ81<>""),IF(ABS(SUM(BO81:BQ81))/3-INT(SUM(BO81:BQ81)/3)>=0.5,INT(SUM(BO81:BQ81)/3)+1,SUM(BO81:BQ81)/3),"")) -> 67.33333333 | BS81: 79 | BT81: 83 | BU81: 73 | BV81: =IF(AND(BT81="غائب",BU81="غائب"),"غائب",IF(AND(BT81<>"",BU81<>""),IF(ABS(SUM(BT81:BU81))/2-INT(SUM(BT81:BU81)/2)>=0.5,INT(SUM(BT81:BU81)/2)+1,SUM(BT81:BU81)/2),"")) -> 78 | BW81: =IF(AND(BR81="غائب",BS81="غائب",BV81="غائب"),"غائب",IF(AND(BR81<>"",BS81<>"",BV81<>""),IF(ABS(SUM(BR81,BS81,BV81))/3-INT(SUM(BR81,BS81,BV81)/3)>=0.5,INT(SUM(BR81,BS81,BV81)/3)+1,SUM(BR81,BS81,BV81)/3),"")) -> 75 | BX81: 68 | BY81: =IF(AND(BW81="غائب",BX81="غائب"),"غائب",IF(AND(BW81<>"",BX81<>""),IF(ABS(SUM(BW81:BX81))/2-INT(SUM(BW81:BX81)/2)>=0.5,INT(SUM(BW81:BX81)/2)+1,SUM(BW81:BX81)/2),"")) -> 72 | CA81: 80 | CB81: 82 | CC81: 85 | CD81: =IF(AND(CA81="غائب",CB81="غائب",CC81="غائب"),"غائب",IF(AND(CA81<>"",CB81<>"",CC81<>""),IF(ABS(SUM(CA81:CC81))/3-INT(SUM(CA81:CC81)/3)>=0.5,INT(SUM(CA81:CC81)/3)+1,SUM(CA81:CC81)/3),"")) -> 82.33333333 | CE81: 82 | CF81: 81.44444444 | CG81: 82 | CH81: =IF(AND(CF81="غائب",CG81="غائب"),"غائب",IF(AND(CF81<>"",CG81<>""),IF(ABS(SUM(CF81:CG81))/2-INT(SUM(CF81:CG81)/2)>=0.5,INT(SUM(CF81:CG81)/2)+1,SUM(CF81:CG81)/2),"")) -> 82 | CI81: =IF(AND(CD81="غائب",CE81="غائب",CH81="غائب"),"غائب",IF(AND(CD81<>"",CE81<>"",CH81<>""),IF(ABS(SUM(CD81,CE81,CH81))/3-INT(SUM(CD81,CE81,CH81)/3)>=0.5,INT(SUM(CD81,CE81,CH81)/3)+1,SUM(CD81,CE81,CH81)/3),"")) -> 82.11111111 | CJ81: 81.44444444 | CK81: =IF(AND(CI81="غائب",CJ81="غائب"),"غائب",IF(AND(CI81<>"",CJ81<>""),IF(ABS(SUM(CI81:CJ81))/2-INT(SUM(CI81:CJ81)/2)>=0.5,INT(SUM(CI81:CJ81)/2)+1,SUM(CI81:CJ81)/2),"")) -> 82 | CM81: 82 | CN81: 80 | CO81: 82.33333333 | CP81: =IF(AND(CM81="غائب",CN81="غائب",CO81="غائب"),"غائب",IF(AND(CM81<>"",CN81<>"",CO81<>""),IF(ABS(SUM(CM81:CO81))/3-INT(SUM(CM81:CO81)/3)>=0.5,INT(SUM(CM81:CO81)/3)+1,SUM(CM81:CO81)/3),"")) -> 81.44444444 | CQ81: 79 | CR81: 82 | CS81: 82.33333333 | CT81: =IF(AND(CR81="غائب",CS81="غائب"),"غائب",IF(AND(CR81<>"",CS81<>""),IF(ABS(SUM(CR81:CS81))/2-INT(SUM(CR81:CS81)/2)>=0.5,INT(SUM(CR81:CS81)/2)+1,SUM(CR81:CS81)/2),"")) -> 82.16666667 | CU81: =IF(AND(CP81="غائب",CQ81="غائب",CT81="غائب"),"غائب",IF(AND(CP81<>"",CQ81<>"",CT81<>""),IF(ABS(SUM(CP81,CQ81,CT81))/3-INT(SUM(CP81,CQ81,CT81)/3)>=0.5,INT(SUM(CP81,CQ81,CT81)/3)+1,SUM(CP81,CQ81,CT81)/3),"")) -> 81 | CV81: 85 | CW81: 83
A82: 59 | B82: =COUNTIF($F$24:F82,F82) -> 3 | C82: 196/3 | D82: احمد59 | E82: ذكر | F82: الخامس-ب | G82: 30 | H82: 54 | I82: 43 | J82: 42.33333333 | K82: 93 | L82: 53 | M82: 66 | N82: 60 | O82: 65.11111111 | P82: 62 | Q82: 64 | S82: 37 | T82: 31 | U82: 35 | V82: 34.33333333 | W82: 46 | X82: 37 | Y82: 39 | Z82: 38 | AA82: 39.44444444 | AB82: 49 | AC82: 44.22222222 | AE82: 56 | AF82: 40 | AG82: 40 | AH82: 45.33333333 | AI82: 46 | AJ82: 45 | AK82: 38 | AL82: 42 | AM82: 44.44444444 | AN82: 34 | AO82: 39.22222222 | AQ82: 31 | AR82: 40 | AS82: 40 | AT82: 37 | AU82: 39 | AV82: 41 | AW82: 44 | AX82: 43 | AY82: 40 | AZ82: 30 | BA82: 35 | BC82: 40 | BD82: 36 | BE82: 35 | BF82: 37 | BG82: 63 | BH82: 35 | BI82: 42 | BJ82: 39 | BK82: 46.33333333 | BL82: 59 | BM82: 53 | BO82: 34 | BP82: 42 | BQ82: 38 | BR82: 38 | BS82: 45 | BT82: 52 | BU82: 50 | BV82: 51 | BW82: 45 | BX82: 46 | BY82: 46 | CA82: 70 | CB82: 70 | CC82: 71 | CD82: 70.33333333 | CE82: 74 | CF82: 72.33333333 | CG82: 70 | CH82: 71.16666667 | CI82: 72 | CJ82: 72.33333333 | CK82: 72.16666667 | CM82: 70 | CN82: 70 | CO82: 77 | CP82: 72.33333333 | CQ82: 75 | CR82: 74 | CS82: 77 | CT82: 76 | CU82: 74.44444444 | CV82: 76 | CW82: 75.22222222
A83: 60 | B83: =COUNTIF($F$24:F83,F83) -> 4 | C83: 325/3 | D83: احمد60 | E83: ذكر | F83: الخامس-ب | G83: 50 | H83: 64 | I83: 70 | J83: 61.33333333 | K83: 80 | L83: 73 | M83: 42 | N83: 58 | O83: 66.44444444 | P83: 87 | Q83: 77 | S83: 59 | T83: 61 | U83: 57 | V83: 59 | W83: 63 | X83: 44 | Y83: 55 | Z83: 50 | AA83: 57.33333333 | AB83: 39 | AC83: 48.16666667 | AE83: 40 | AF83: 34 | AG83: 50 | AH83: 41.33333333 | AI83: 44 | AJ83: 32 | AK83: 32 | AL83: 32 | AM83: 39.11111111 | AN83: 29 | AO83: 34.05555556 | AQ83: 35 | AR83: 53 | AS83: 50 | AT83: 46 | AU83: 45 | AV83: 50 | AW83: 50 | AX83: 50 | AY83: 47 | AZ83: 38 | BA83: 43 | BC83: 50 | BD83: 43 | BE83: 59 | BF83: 51 | BG83: 85 | BH83: 41 | BI83: 59 | BJ83: 50 | BK83: 62 | BL83: 73 | BM83: 68 | BO83: 51 | BP83: 41 | BQ83: 62 | BR83: 51.33333333 | BS83: 55 | BT83: 44 | BU83: 56 | BV83: 50 | BW83: 52.11111111 | BX83: 53 | BY83: 53 | CA83: 70 | CB83: 71 | CC83: 73 | CD83: 71.33333333 | CE83: 74 | CF83: 72 | CG83: 71 | CH83: 72 | CI83: 72.44444444 | CJ83: 72 | CK83: 72.22222222 | CM83: 71 | CN83: 70 | CO83: 74 | CP83: 72 | CQ83: 74 | CR83: 74 | CS83: 74 | CT83: 74 | CU83: 73.33333333 | CV83: 74 | CW83: 74
A84: 61 | B84: =COUNTIF($F$24:F84,F84) -> 5 | C84: 143/3 | D84: احمد61 | E84: ذكر | F84: الخامس-ب | G84: 37 | H84: 71 | I84: 45 | J84: 51 | K84: 75 | L84: 55 | M84: 44 | N84: 50 | O84: 59 | P84: 68 | Q84: 64 | S84: 39 | T84: 45 | U84: 45 | V84: 43 | W84: 62 | X84: 39 | Y84: 40 | Z84: 40 | AA84: 48.33333333 | AB84: 44 | AC84: 46.16666667 | AE84: 55 | AF84: 25 | AG84: 29 | AH84: 36.33333333 | AI84: 40 | AJ84: 43 | AK84: 32 | AL84: 38 | AM84: 38.11111111 | AN84: 32 | AO84: 35.05555556 | AQ84: 35 | AR84: 45 | AS84: 38 | AT84: 39.33333333 | AU84: 43 | AV84: 45 | AW84: 55 | AX84: 50 | AY84: 44.11111111 | AZ84: 36 | BA84: 40.05555556 | BC84: 40 | BD84: 39 | BE84: 38 | BF84: 39 | BG84: 53 | BH84: 35 | BI84: 40 | BJ84: 38 | BK84: 43.33333333 | BL84: 43 | BM84: 43.16666667 | BO84: 50 | BP84: 35 | BQ84: 35 | BR84: 40 | BS84: 38 | BT84: 50 | BU84: 50 | BV84: 50 | BW84: 43 | BX84: 41 | BY84: 42 | CA84: 77 | CB84: 75 | CC84: 77 | CD84: 76.33333333 | CE84: 77 | CF84: 76.33333333 | CG84: 75 | CH84: 76 | CI84: 76.44444444 | CJ84: 76.33333333 | CK84: 76.38888889 | CM84: 75 | CN84: 77 | CO84: 77 | CP84: 76.33333333 | CQ84: 79 | CR84: 77 | CS84: 77 | CT84: 77 | CU84: 77.44444444 | CV84: 78 | CW84: 78
A85: 62 | B85: =COUNTIF($F$24:F85,F85) -> 6 | C85: 382/3 | D85: احمد62 | E85: ذكر | F85: الخامس-ب | G85: 72 | H85: 83 | I85: 70 | J85: 75 | K85: 93 | L85: 85 | M85: 87 | N85: 86 | O85: 85 | P85: 95 | Q85: 90 | S85: 65 | T85: 67 | U85: 64 | V85: 65.33333333 | W85: 79 | X85: 73 | Y85: 67 | Z85: 70 | AA85: 71.44444444 | AB85: 76 | AC85: 74 | AE85: 52 | AF85: 60 | AG85: 37 | AH85: 50 | AI85: 61 | AJ85: 58 | AK85: 75 | AL85: 67 | AM85: 59.33333333 | AN85: 63 | AO85: 61.16666667 | AQ85: 50 | AR85: 63 | AS85: 54 | AT85: 56 | AU85: 75 | AV85: 88 | AW85: 78 | AX85: 83 | AY85: 71.33333333 | AZ85: 81 | BA85: 76.16666667 | BC85: 74 | BD85: 74 | BE85: 77 | BF85: 75 | BG85: 92 | BH85: 98 | BI85: 93 | BJ85: 96 | BK85: 88 | BL85: 85 | BM85: 87 | BO85: 53 | BP85: 64 | BQ85: 77 | BR85: 65 | BS85: 82 | BT85: 84 | BU85: 73 | BV85: 79 | BW85: 75.33333333 | BX85: 75 | BY85: 75.16666667 | CA85: 80 | CB85: 81 | CC85: 82 | CD85: 81 | CE85: 82 | CF85: 82.33333333 | CG85: 81 | CH85: 82 | CI85: 82 | CJ85: 82.33333333 | CK85: 82.16666667 | CM85: 81 | CN85: 80 | CO85: 86 | CP85: 82.33333333 | CQ85: 80 | CR85: 82 | CS85: 86 | CT85: 84 | CU85: 82.11111111 | CV85: 81 | CW85: 82
A86: 63 | B86: =COUNTIF($F$24:F86,F86) -> 7 | C86: 70/4 | D86: اسماء1 | E86: أنثى | F86: الخامس-ب | G86: 51 | H86: 87 | I86: 78 | J86: 72 | K86: 80 | L86: 75 | M86: 65 | N86: 70 | O86: 74 | P86: 66 | Q86: 70 | S86: 62 | T86: 67 | U86: 63 | V86: 64 | W86: 75 | X86: 60 | Y86: 68 | Z86: 64 | AA86: 68 | AB86: 75 | AC86: 72 | AE86: 52 | AF86: 55 | AG86: 55 | AH86: 54 | AI86: 60 | AJ86: 60 | AK86: 68 | AL86: 64 | AM86: 59.33333333 | AN86: 60 | AO86: 60 | AQ86: 36 | AR86: 42 | AS86: 51 | AT86: 43 | AU86: 57 | AV86: 55 | AW86: 55 | AX86: 55 | AY86: 52 | AZ86: 72 | BA86: 62 | BC86: 55 | BD86: 69 | BE86: 74 | BF86: 66 | BG86: 87 | BH86: 60 | BI86: 87 | BJ86: 74 | BK86: 76 | BL86: 78 | BM86: 77 | BO86: 54 | BP86: 54 | BQ86: 77 | BR86: 62 | BS86: 71 | BT86: 42 | BU86: 57 | BV86: 50 | BW86: 61 | BX86: 81 | BY86: 71 | CA86: 74 | CB86: 73 | CC86: 72 | CD86: 73 | CE86: 77 | CF86: 75 | CG86: 73 | CH86: 74 | CI86: 75 | CJ86: 75 | CK86: 75 | CM86: 73 | CN86: 74 | CO86: 77 | CP86: 75 | CQ86: 76 | CR86: 77 | CS86: 77 | CT86: 77 | CU86: 76 | CV86: 78 | CW86: 77
A87: 64 | B87: =COUNTIF($F$24:F87,F87) -> 8 | C87: 343/3 | D87: اسماء2 | E87: أنثى | F87: الخامس-ب | G87: 43 | H87: 55 | I87: 74 | J87: 57.33333333 | K87: 87 | L87: 69 | M87: 68 | N87: 69 | O87: 71.11111111 | P87: 85 | Q87: 78.05555556 | S87: 57 | T87: 59 | U87: 54 | V87: 57 | W87: 76 | X87: 59 | Y87: 58 | Z87: 59 | AA87: 64 | AB87: 59 | AC87: 62 | AE87: 60 | AF87: 50 | AG87: 55 | AH87: 55 | AI87: 67 | AJ87: 70 | AK87: 60 | AL87: 65 | AM87: 62.33333333 | AN87: 55 | AO87: 59 | AQ87: 64 | AR87: 54 | AS87: 40 | AT87: 53 | AU87: 51 | AV87: 56 | AW87: 62 | AX87: 59 | AY87: 54.33333333 | AZ87: 69 | BA87: 62 | BC87: 59 | BD87: 60 | BE87: 75 | BF87: 65 | BG87: 79 | BH87: 70 | BI87: 52 | BJ87: 61 | BK87: 68.33333333 | BL87: 79 | BM87: 74 | BO87: 44 | BP87: 51 | BQ87: 65 | BR87: 53.33333333 | BS87: 81 | BT87: 76 | BU87: 64 | BV87: 70 | BW87: 68.11111111 | BX87: 92 | BY87: 80.05555556 | CA87: 85 | CB87: 88 | CC87: 83 | CD87: 85.33333333 | CE87: 87 | CF87: 87 | CG87: 88 | CH87: 88 | CI87: 87 | CJ87: 87 | CK87: 87 | CM87: 88 | CN87: 85 | CO87: 88 | CP87: 87 | CQ87: 85 | CR87: 87 | CS87: 88 | CT87: 88 | CU87: 87 | CV87: 86 | CW87: 87
A88: 65 | B88: =COUNTIF($F$24:F88,F88) -> 9 | C88: 15/4 | D88: اسماء3 | E88: أنثى | F88: الخامس-ب | G88: 60 | H88: 65 | I88: 77 | J88: 67.33333333 | K88: 68 | L88: 75 | M88: 71 | N88: 73 | O88: 69.44444444 | P88: 79 | Q88: 74.22222222 | S88: 63 | T88: 64 | U88: 67 | V88: 65 | W88: 78 | X88: 62 | Y88: 61 | Z88: 62 | AA88: 68.33333333 | AB88: 77 | AC88: 73 | AE88: 46 | AF88: 50 | AG88: 55 | AH88: 50.33333333 | AI88: 52 | AJ88: 40 | AK88: 59 | AL88: 50 | AM88: 51 | AN88: 48 | AO88: 50 | AQ88: 61 | AR88: 51 | AS88: 55 | AT88: 56 | AU88: 63 | AV88: 55 | AW88: 55 | AX88: 55 | AY88: 58 | AZ88: 52 | BA88: 55 | BC88: 51 | BD88: 65 | BE88: 89 | BF88: 68.33333333 | BG88: 84 | BH88: 46 | BI88: 66 | BJ88: 56 | BK88: 69.44444444 | BL88: 80 | BM88: 75 | BO88: 53 | BP88: 55 | BQ88: 55 | BR88: 54.33333333 | BS88: 65 | BT88: 51 | BU88: 50 | BV88: 51 | BW88: 57 | BX88: 74 | BY88: 66 | CA88: 89 | CB88: 86 | CC88: 90 | CD88: 88.33333333 | CE88: 90 | CF88: 88 | CG88: 86 | CH88: 87 | CI88: 88.44444444 | CJ88: 88 | CK88: 88.22222222 | CM88: 86 | CN88: 89 | CO88: 89 | CP88: 88 | CQ88: 86 | CR88: 90 | CS88: 89 | CT88: 90 | CU88: 88 | CV88: 88 | CW88: 88
A89: 66 | B89: =COUNTIF($F$24:F89,F89) -> 10 | C89: 111/4 | D89: اسماء4 | E89: أنثى | F89: الخامس-ب | G89: 77 | H89: 88 | I89: 95 | J89: 87 | K89: 92 | L89: 79 | M89: 81 | N89: 80 | O89: 86.33333333 | P89: 90 | Q89: 88.16666667 | S89: 86 | T89: 77 | U89: 76 | V89: 80 | W89: 83 | X89: 83 | Y89: 87 | Z89: 85 | AA89: 83 | AB89: 82 | AC89: 83 | AE89: 70 | AF89: 65 | AG89: 90 | AH89: 75 | AI89: 76 | AJ89: 80 | AK89: 100 | AL89: 90 | AM89: 80.33333333 | AN89: 73 | AO89: 77 | AQ89: 83 | AR89: 68 | AS89: 100 | AT89: 84 | AU89: 78 | AV89: 97 | AW89: 100 | AX89: 99 | AY89: 87 | AZ89: 91 | BA89: 89 | BC89: 68 | BD89: 78 | BE89: 70 | BF89: 72 | BG89: 98 | BH89: 87 | BI89: 100 | BJ89: 94 | BK89: 88 | BL89: 92 | BM89: 90 | BO89: 70 | BP89: 88 | BQ89: 97 | BR89: 85 | BS89: 84 | BT89: 93 | BU89: 89 | BV89: 91 | BW89: 87 | BX89: 96 | BY89: 92 | CA89: 98 | CB89: 99 | CC89: 100 | CD89: 99 | CE89: 99 | CF89: 99 | CG89: 99 | CH89: 99 | CI89: 99 | CJ89: 99 | CK89: 99 | CM89: 99 | CN89: 98 | CO89: 100 | CP89: 99 | CQ89: 95 | CR89: 99 | CS89: 100 | CT89: 100 | CU89: 98 | CV89: 98 | CW89: 98
A90: 67 | B90: =COUNTIF($F$24:F90,F90) -> 11 | C90: 115/4 | D90: اسماء5 | E90: أنثى | F90: الخامس-ب | G90: 38 | H90: 80 | I90: 77 | J90: 65 | K90: 88 | L90: 80 | M90: 84 | N90: 82 | O90: 78.33333333 | P90: 80 | Q90: 79.16666667 | S90: 52 | T90: 58 | U90: 58 | V90: 56 | W90: 80 | X90: 72 | Y90: 69 | Z90: 71 | AA90: 69 | AB90: 65 | AC90: 67 | AE90: 55 | AF90: 55 | AG90: 56 | AH90: 55.33333333 | AI90: 53 | AJ90: 66 | AK90: 50 | AL90: 58 | AM90: 55.44444444 | AN90: 60 | AO90: 58 | AQ90: 35 | AR90: 75 | AS90: 55 | AT90: 55 | AU90: 70 | AV90: 69 | AW90: 56 | AX90: 63 | AY90: 63 | AZ90: 56 | BA90: 60 | BC90: 41 | BD90: 67 | BE90: 55 | BF90: 54.33333333 | BG90: 67 | BH90: 69 | BI90: 74 | BJ90: 72 | BK90: 64.44444444 | BL90: 62 | BM90: 63.22222222 | BO90: 50 | BP90: 42 | BQ90: 60 | BR90: 51 | BS90: 57 | BT90: 55 | BU90: 64 | BV90: 60 | BW90: 56 | BX90: 72 | BY90: 64 | CA90: 74 | CB90: 80 | CC90: 80 | CD90: 78 | CE90: 82 | CF90: 78 | CG90: 80 | CH90: 79 | CI90: 80 | CJ90: 78 | CK90: 79 | CM90: 80 | CN90: 74 | CO90: 80 | CP90: 78 | CQ90: 77 | CR90: 82 | CS90: 80 | CT90: 81 | CU90: 79 | CV90: 84 | CW90: 82
A91: 68 | B91: =COUNTIF($F$24:F91,F91) -> 12 | C91: 27/4 | D91: اسماء6 | E91: أنثى | F91: الخامس-ب | G91: 61 | H91: 91 | I91: 79 | J91: 77 | K91: 86 | L91: 79 | M91: 77 | N91: 78 | O91: 80.33333333 | P91: 69 | Q91: 75 | S91: 66 | T91: 74 | U91: 71 | V91: 70.33333333 | W91: 85 | X91: 57 | Y91: 65 | Z91: 61 | AA91: 72.11111111 | AB91: 61 | AC91: 67 | AE91: 75 | AF91: 63 | AG91: 50 | AH91: 63 | AI91: 75 | AJ91: 76 | AK91: 74 | AL91: 75 | AM91: 71 | AN91: 66 | AO91: 69 | AQ91: 75 | AR91: 71 | AS91: 70 | AT91: 72 | AU91: 68 | AV91: 67 | AW91: 63 | AX91: 65 | AY91: 68.33333333 | AZ91: 50 | BA91: 59.16666667 | BC91: 65 | BD91: 45 | BE91: 40 | BF91: 50 | BG91: 83 | BH91: 65 | BI91: 74 | BJ91: 70 | BK91: 68 | BL91: 83 | BM91: 76 | BO91: 50 | BP91: 53 | BQ91: 60 | BR91: 54.33333333 | BS91: 60 | BT91: 58 | BU91: 44 | BV91: 51 | BW91: 55.11111111 | BX91: 78 | BY91: 67 | CA91: 91 | CB91: 90 | CC91: 96 | CD91: 92.33333333 | CE91: 94 | CF91: 92 | CG91: 90 | CH91: 91 | CI91: 92.44444444 | CJ91: 92 | CK91: 92.22222222 | CM91: 90 | CN91: 91 | CO91: 95 | CP91: 92 | CQ91: 91 | CR91: 94 | CS91: 95 | CT91: 95 | CU91: 93 | CV91: 90 | CW91: 92
A92: 69 | B92: =COUNTIF($F$24:F92,F92) -> 13 | C92: 261/3 | D92: اسماء7 | E92: أنثى | F92: الخامس-ب | G92: 62 | H92: 65 | I92: 64 | J92: 64 | K92: 77 | L92: 79 | M92: 66 | N92: 73 | O92: 71.33333333 | P92: 74 | Q92: 73 | S92: 56 | T92: 58 | U92: 54 | V92: 56 | W92: 62 | X92: 50 | Y92: 51 | Z92: 51 | AA92: 56.33333333 | AB92: 57 | AC92: 57 | AE92: 73 | AF92: 51 | AG92: 45 | AH92: 56.33333333 | AI92: 49 | AJ92: 58 | AK92: 57 | AL92: 58 | AM92: 54.44444444 | AN92: 48 | AO92: 51.22222222 | AQ92: 54 | AR92: 38 | AS92: 65 | AT92: 52.33333333 | AU92: 51 | AV92: 58 | AW92: 57 | AX92: 58 | AY92: 54 | AZ92: 48 | BA92: 51 | BC92: 50 | BD92: 59 | BE92: 60 | BF92: 56.33333333 | BG92: 75 | BH92: 46 | BI92: 63 | BJ92: 55 | BK92: 62.11111111 | BL92: 75 | BM92: 69 | BO92: 55 | BP92: 54 | BQ92: 75 | BR92: 61.33333333 | BS92: 44 | BT92: 55 | BU92: 46 | BV92: 51 | BW92: 52.11111111 | BX92: 50 | BY92: 51.05555556 | CA92: 87 | CB92: 88 | CC92: 85 | CD92: 87 | CE92: 90 | CF92: 88 | CG92: 88 | CH92: 88 | CI92: 88.33333333 | CJ92: 88 | CK92: 88.16666667 | CM92: 88 | CN92: 87 | CO92: 89 | CP92: 88 | CQ92: 89 | CR92: 90 | CS92: 89 | CT92: 90 | CU92: 89 | CV92: 86 | CW92: 88
A93: 70 | B93: =COUNTIF($F$24:F93,F93) -> 14 | C93: 331/3 | D93: اسماء8 | E93: أنثى | F93: الخامس-ب | G93: 62 | H93: 79 | I93: 78 | J93: 73 | K93: 93 | L93: 81 | M93: 83 | N93: 82 | O93: 83 | P93: 90 | Q93: 87 | S93: 57 | T93: 66 | U93: 70 | V93: 64.33333333 | W93: 81 | X93: 78 | Y93: 77 | Z93: 78 | AA93: 74.44444444 | AB93: 74 | AC93: 74.22222222 | AE93: 50 | AF93: 61 | AG93: 56 | AH93: 56 | AI93: 76 | AJ93: 60 | AK93: 78 | AL93: 69 | AM93: 67 | AN93: 69 | AO93: 68 | AQ93: 60 | AR93: 70 | AS93: 72 | AT93: 67.33333333 | AU93: 86 | AV93: 62 | AW93: 67 | AX93: 65 | AY93: 73 | AZ93: 76 | BA93: 75 | BC93: 51 | BD93: 76 | BE93: 73 | BF93: 67 | BG93: 94 | BH93: 90 | BI93: 92 | BJ93: 91 | BK93: 84 | BL93: 91 | BM93: 88 | BO93: 52 | BP93: 54 | BQ93: 55 | BR93: 54 | BS93: 62 | BT93: 66 | BU93: 55 | BV93: 61 | BW93: 59 | BX93: 90 | BY93: 75 | CA93: 82 | CB93: 83 | CC93: 80 | CD93: 82 | CE93: 84 | CF93: 83.33333333 | CG93: 83 | CH93: 83.16666667 | CI93: 83.05555556 | CJ93: 83.33333333 | CK93: 83.19444444 | CM93: 83 | CN93: 82 | CO93: 85 | CP93: 83.33333333 | CQ93: 86 | CR93: 84 | CS93: 85 | CT93: 85 | CU93: 85 | CV93: 85 | CW93: 85
A94: 71 | B94: =COUNTIF($F$24:F94,F94) -> 15 | C94: 278/3 | D94: اسماء9 | E94: أنثى | F94: الخامس-ب | G94: 62 | H94: 76 | I94: 59 | J94: 66 | K94: 81 | L94: 80 | M94: 74 | N94: 77 | O94: 75 | P94: 73 | Q94: 74 | S94: 52 | T94: 45 | U94: 58 | V94: 52 | W94: 77 | X94: 58 | Y94: 50 | Z94: 54 | AA94: 61 | AB94: 63 | AC94: 62 | AE94: 55 | AF94: 55 | AG94: 47 | AH94: 52.33333333 | AI94: 58 | AJ94: 50 | AK94: 50 | AL94: 50 | AM94: 53.44444444 | AN94: 56 | AO94: 55 | AQ94: 66 | AR94: 51 | AS94: 45 | AT94: 54 | AU94: 50 | AV94: 50 | AW94: 49 | AX94: 50 | AY94: 51.33333333 | AZ94: 60 | BA94: 56 | BC94: 52 | BD94: 69 | BE94: 53 | BF94: 58 | BG94: 85 | BH94: 50 | BI94: 73 | BJ94: 62 | BK94: 68.33333333 | BL94: 83 | BM94: 76 | BO94: 52 | BP94: 52 | BQ94: 66 | BR94: 57 | BS94: 56 | BT94: 62 | BU94: 67 | BV94: 65 | BW94: 59.33333333 | BX94: 70 | BY94: 65 | CA94: 80 | CB94: 80 | CC94: 80 | CD94: 80 | CE94: 82 | CF94: 81 | CG94: 80 | CH94: 81 | CI94: 81 | CJ94: 81 | CK94: 81 | CM94: 80 | CN94: 80 | CO94: 83 | CP94: 81 | CQ94: 82 | CR94: 82 | CS94: 83 | CT94: 83 | CU94: 82 | CV94: 79 | CW94: 81
A95: 72 | B95: =COUNTIF($F$24:F95,F95) -> 16 | C95: 117/4 | D95: اسماء10 | E95: أنثى | F95: الخامس-ب | G95: 51 | H95: 83 | I95: 69 | J95: 68 | K95: 91 | L95: 76 | M95: 70 | N95: 73 | O95: 77.33333333 | P95: 77 | Q95: 77.16666667 | S95: 63 | T95: 63 | U95: 50 | V95: 59 | W95: 75 | X95: 73 | Y95: 69 | Z95: 71 | AA95: 68.33333333 | AB95: 58 | AC95: 63.16666667 | AE95: 55 | AF95: 55 | AG95: 55 | AH95: 55 | AI95: 57 | AJ95: 72 | AK95: 66 | AL95: 69 | AM95: 60.33333333 | AN95: 54 | AO95: 57.16666667 | AQ95: 54 | AR95: 54 | AS95: 63 | AT95: 57 | AU95: 79 | AV95: 44 | AW95: 57 | AX95: 51 | AY95: 62.33333333 | AZ95: 52 | BA95: 57.16666667 | BC95: 63 | BD95: 50 | BE95: 55 | BF95: 56 | BG95: 82 | BH95: 50 | BI95: 53 | BJ95: 52 | BK95: 63.33333333 | BL95: 56 | BM95: 60 | BO95: 52 | BP95: 51 | BQ95: 58 | BR95: 54 | BS95: 52 | BT95: 55 | BU95: 45 | BV95: 50 | BW95: 52 | BX95: 66 | BY95: 59 | CA95: 81 | CB95: 84 | CC95: 83 | CD95: 83 | CE95: 84 | CF95: 84 | CG95: 84 | CH95: 84 | CI95: 84 | CJ95: 84 | CK95: 84 | CM95: 84 | CN95: 81 | CO95: 87 | CP95: 84 | CQ95: 81 | CR95: 84 | CS95: 87 | CT95: 86 | CU95: 84 | CV95: 85 | CW95: 85
A96: 73 | B96: =COUNTIF($F$24:F96,F96) -> 17 | C96: 304/3 | D96: اسماء11 | E96: أنثى | F96: الخامس-ب | G96: 30 | H96: 64 | I96: 69 | J96: 54.33333333 | K96: 87 | L96: 63 | M96: 69 | N96: 66 | O96: 69.11111111 | P96: 79 | Q96: 74.05555556 | S96: 43 | T96: 54 | U96: 57 | V96: 51.33333333 | W96: 67 | X96: 58 | Y96: 67 | Z96: 63 | AA96: 60.44444444 | AB96: 55 | AC96: 58 | AE96: 70 | AF96: 61 | AG96: 55 | AH96: 62 | AI96: 53 | AJ96: 60 | AK96: 78 | AL96: 69 | AM96: 61.33333333 | AN96: 45 | AO96: 53.16666667 | AQ96: 54 | AR96: 35 | AS96: 61 | AT96: 50 | AU96: 59 | AV96: 55 | AW96: 59 | AX96: 57 | AY96: 55.33333333 | AZ96: 50 | BA96: 53 | BC96: 53 | BD96: 67 | BE96: 59 | BF96: 60 | BG96: 88 | BH96: 66 | BI96: 61 | BJ96: 64 | BK96: 71 | BL96: 61 | BM96: 66 | BO96: 35 | BP96: 51 | BQ96: 65 | BR96: 50.33333333 | BS96: 50 | BT96: 62 | BU96: 42 | BV96: 52 | BW96: 51 | BX96: 74 | BY96: 63 | CA96: 80 | CB96: 82 | CC96: 80 | CD96: 81 | CE96: 82 | CF96: 82 | CG96: 82 | CH96: 82 | CI96: 82 | CJ96: 82 | CK96: 82 | CM96: 82 | CN96: 80 | CO96: 84 | CP96: 82 | CQ96: 83 | CR96: 82 | CS96: 84 | CT96: 83 | CU96: 83 | CV96: 82 | CW96: 83
A97: 74 | B97: =COUNTIF($F$24:F97,F97) -> 18 | C97: 41/4 | D97: اسماء12 | E97: أنثى | F97: الخامس-ب | G97: 60 | H97: 94 | I97: 79 | J97: 78 | K97: 95 | L97: 85 | M97: 74 | N97: 80 | O97: 84.33333333 | P97: 79 | Q97: 82 | S97: 76 | T97: 84 | U97: 92 | V97: 84 | W97: 86 | X97: 88 | Y97: 86 | Z97: 87 | AA97: 86 | AB97: 88 | AC97: 87 | AE97: 55 | AF97: 70 | AG97: 70 | AH97: 65 | AI97: 77 | AJ97: 85 | AK97: 85 | AL97: 85 | AM97: 76 | AN97: 71 | AO97: 74 | AQ97: 94 | AR97: 63 | AS97: 90 | AT97: 82.33333333 | AU97: 91 | AV97: 94 | AW97: 96 | AX97: 95 | AY97: 89.44444444 | AZ97: 88 | BA97: 89 | BC97: 55 | BD97: 78 | BE97: 58 | BF97: 64 | BG97: 96 | BH97: 80 | BI97: 83 | BJ97: 82 | BK97: 81 | BL97: 95 | BM97: 88 | BO97: 91 | BP97: 70 | BQ97: 82 | BR97: 81 | BS97: 83 | BT97: 82 | BU97: 85 | BV97: 84 | BW97: 83 | BX97: 91 | BY97: 87 | CA97: 99 | CB97: 98 | CC97: 94 | CD97: 97 | CE97: 98 | CF97: 99 | CG97: 98 | CH97: 99 | CI97: 98 | CJ97: 99 | CK97: 99 | CM97: 98 | CN97: 99 | CO97: 99 | CP97: 99 | CQ97: 96 | CR97: 98 | CS97: 99 | CT97: 99 | CU97: 98 | CV97: 98 | CW97: 98
A98: 75 | B98: =COUNTIF($F$24:F98,F98) -> 19 | C98: 375/3 | D98: اسماء13 | E98: أنثى | F98: الخامس-ب | G98: 83 | H98: 70 | I98: 71 | J98: 75 | K98: 81 | L98: 80 | M98: 68 | N98: 74 | O98: 77 | P98: 80 | Q98: 79 | S98: 76 | T98: 71 | U98: 65 | V98: 71 | W98: 72 | X98: 57 | Y98: 80 | Z98: 69 | AA98: 71 | AB98: 71 | AC98: 71 | AE98: 50 | AF98: 46 | AG98: 40 | AH98: 45.33333333 | AI98: 61 | AJ98: 65 | AK98: 45 | AL98: 55 | AM98: 54 | AN98: 69 | AO98: 62 | AQ98: 69 | AR98: 85 | AS98: 53 | AT98: 69 | AU98: 76 | AV98: 57 | AW98: 64 | AX98: 61 | AY98: 69 | AZ98: 62 | BA98: 66 | BC98: 70 | BD98: 74 | BE98: 52 | BF98: 65.33333333 | BG98: 75 | BH98: 46 | BI98: 79 | BJ98: 63 | BK98: 68 | BL98: 58 | BM98: 63 | BO98: 55 | BP98: 55 | BQ98: 65 | BR98: 58.33333333 | BS98: 63 | BT98: 63 | BU98: 58 | BV98: 61 | BW98: 61 | BX98: 65 | BY98: 63 | CA98: 85 | CB98: 88 | CC98: 84 | CD98: 86 | CE98: 77 | CF98: 87 | CG98: 88 | CH98: 88 | CI98: 84 | CJ98: 87 | CK98: 86 | CM98: 88 | CN98: 85 | CO98: 88 | CP98: 87 | CQ98: 84 | CR98: 77 | CS98: 88 | CT98: 83 | CU98: 85 | CV98: 90 | CW98: 88
A99: 76 | B99: =COUNTIF($F$24:F99,F99) -> 20 | C99: 78/4 | D99: اسماء14 | E99: أنثى | F99: الخامس-ب | G99: 36 | H99: 63 | I99: 67 | J99: 55.33333333 | K99: 68 | L99: 68 | M99: 72 | N99: 70 | O99: 64.44444444 | P99: 63 | Q99: 64 | S99: 60 | T99: 50 | U99: 55 | V99: 55 | W99: 62 | X99: 56 | Y99: 57 | Z99: 57 | AA99: 58 | AB99: 49 | AC99: 54 | AE99: 62 | AF99: 60 | AG99: 57 | AH99: 60 | AI99: 45 | AJ99: 55 | AK99: 45 | AL99: 50 | AM99: 52 | AN99: 55 | AO99: 54 | AQ99: 40 | AR99: 39 | AS99: 40 | AT99: 40 | AU99: 51 | AV99: 41 | AW99: 60 | AX99: 51 | AY99: 47.33333333 | AZ99: 37 | BA99: 42.16666667 | BC99: 50 | BD99: 50 | BE99: 49 | BF99: 50 | BG99: 76 | BH99: 40 | BI99: 40 | BJ99: 40 | BK99: 55.33333333 | BL99: 54 | BM99: 55 | BO99: 40 | BP99: 50 | BQ99: 65 | BR99: 52 | BS99: 51 | BT99: 41 | BU99: 59 | BV99: 50 | BW99: 51 | BX99: 44 | BY99: 48 | CA99: 77 | CB99: 77 | CC99: 76 | CD99: 77 | CE99: 77 | CF99: 77.33333333 | CG99: 77 | CH99: 77.16666667 | CI99: 77.05555556 | CJ99: 77.33333333 | CK99: 77.19444444 | CM99: 77 | CN99: 77 | CO99: 78 | CP99: 77.33333333 | CQ99: 76 | CR99: 77 | CS99: 78 | CT99: 78 | CU99: 77.11111111 | CV99: 78 | CW99: 78
A100: 77 | B100: =COUNTIF($F$24:F100,F100) -> 21 | C100: 79/4 | D100: اسماء15 | E100: أنثى | F100: الخامس-ب | G100: 50 | H100: 77 | I100: 80 | J100: 69 | K100: 80 | L100: 78 | M100: 69 | N100: 74 | O100: 74.33333333 | P100: 77 | Q100: 76 | S100: 70 | T100: 78 | U100: 77 | V100: 75 | W100: 87 | X100: 71 | Y100: 62 | Z100: 67 | AA100: 76.33333333 | AB100: 65 | AC100: 71 | AE100: 47 | AF100: 53 | AG100: 57 | AH100: 52.33333333 | AI100: 68 | AJ100: 55 | AK100: 62 | AL100: 59 | AM100: 60 | AN100: 66 | AO100: 63 | AQ100: 58 | AR100: 52 | AS100: 60 | AT100: 57 | AU100: 62 | AV100: 40 | AW100: 51 | AX100: 46 | AY100: 55 | AZ100: 41 | BA100: 48 | BC100: 73 | BD100: 74 | BE100: 83 | BF100: 77 | BG100: 90 | BH100: 85 | BI100: 72 | BJ100: 79 | BK100: 82 | BL100: 72 | BM100: 77 | BO100: 51 | BP100: 70 | BQ100: 70 | BR100: 64 | BS100: 87 | BT100: 51 | BU100: 40 | BV100: 46 | BW100: 66 | BX100: 66 | BY100: 66 | CA100: 82 | CB100: 80 | CC100: 83 | CD100: 82 | CE100: 84 | CF100: 82 | CG100: 80 | CH100: 81 | CI100: 82.33333333 | CJ100: 82 | CK100: 82.16666667 | CM100: 80 | CN100: 82 | CO100: 84 | CP100: 82 | CQ100: 81 | CR100: 84 | CS100: 84 | CT100: 84 | CU100: 82.33333333 | CV100: 82 | CW100: 82.16666667
A101: 78 | B101: =COUNTIF($F$24:F101,F101) -> 22 | C101: 48/4 | D101: اسماء16 | E101: أنثى | F101: الخامس-ب | G101: 33 | H101: 74 | I101: 77 | J101: 61.33333333 | K101: 88 | L101: 80 | M101: 78 | N101: 79 | O101: 76.11111111 | P101: 79 | Q101: 78 | S101: 44 | T101: 47 | U101: 58 | V101: 50 | W101: 75 | X101: 60 | Y101: 68 | Z101: 64 | AA101: 63 | AB101: 71 | AC101: 67 | AE101: 40 | AF101: 38 | AG101: 43 | AH101: 40.33333333 | AI101: 56 | AJ101: 57 | AK101: 43 | AL101: 50 | AM101: 49 | AN101: 50 | AO101: 50 | AQ101: 39 | AR101: 45 | AS101: 51 | AT101: 45 | AU101: 52 | AV101: 62 | AW101: 59 | AX101: 61 | AY101: 53 | AZ101: 59 | BA101: 56 | BC101: 45 | BD101: 50 | BE101: 55 | BF101: 50 | BG101: 67 | BH101: 41 | BI101: 58 | BJ101: 50 | BK101: 56 | BL101: 62 | BM101: 59 | BO101: 35 | BP101: 54 | BQ101: 63 | BR101: 51 | BS101: 67 | BT101: 54 | BU101: 51 | BV101: 53 | BW101: 57 | BX101: 71 | BY101: 64 | CA101: 73 | CB101: 73 | CC101: 77 | CD101: 74.33333333 | CE101: 77 | CF101: 74.33333333 | CG101: 73 | CH101: 74 | CI101: 75.11111111 | CJ101: 74.33333333 | CK101: 75 | CM101: 73 | CN101: 73 | CO101: 77 | CP101: 74.33333333 | CQ101: 78 | CR101: 77 | CS101: 77 | CT101: 77 | CU101: 76.44444444 | CV101: 85 | CW101: 81
A102: 79 | B102: =COUNTIF($F$24:F102,F102) -> 23 | C102: 38/4 | D102: اسماء17 | E102: أنثى | F102: الخامس-ب | G102: 75 | H102: 97 | I102: 74 | J102: 82 | K102: 76 | L102: 70 | M102: 70 | N102: 70 | O102: 76 | P102: 73 | Q102: 75 | S102: 77 | T102: 77 | U102: 87 | V102: 80.33333333 | W102: 93 | X102: 83 | Y102: 83 | Z102: 83 | AA102: 85.44444444 | AB102: 83 | AC102: 84.22222222 | AE102: 75 | AF102: 75 | AG102: 72 | AH102: 74 | AI102: 82 | AJ102: 98 | AK102: 62 | AL102: 80 | AM102: 79 | AN102: 79 | AO102: 79 | AQ102: 74 | AR102: 81 | AS102: 77 | AT102: 77.33333333 | AU102: 84 | AV102: 86 | AW102: 76 | AX102: 81 | AY102: 81 | AZ102: 89 | BA102: 85 | BC102: 85 | BD102: 68 | BE102: 67 | BF102: 73.33333333 | BG102: 91 | BH102: 78 | BI102: 52 | BJ102: 65 | BK102: 76.44444444 | BL102: 86 | BM102: 81.22222222 | BO102: 80 | BP102: 74 | BQ102: 75 | BR102: 76.33333333 | BS102: 76 | BT102: 91 | BU102: 69 | BV102: 80 | BW102: 77.44444444 | BX102: 91 | BY102: 84.22222222 | CA102: 89 | CB102: 90 | CC102: 80 | CD102: 86.33333333 | CE102: 88 | CF102: 89 | CG102: 90 | CH102: 90 | CI102: 88.11111111 | CJ102: 89 | CK102: 89 | CM102: 90 | CN102: 89 | CO102: 88 | CP102: 89 | CQ102: 88 | CR102: 88 | CS102: 88 | CT102: 88 | CU102: 88.33333333 | CV102: 86 | CW102: 87.16666667
A103: 80 | B103: =COUNTIF($F$24:F103,F103) -> 24 | C103: 49/4 | D103: اسماء18 | E103: أنثى | F103: الخامس-ب | G103: 60 | H103: 100 | I103: 80 | J103: 80 | K103: 97 | L103: 91 | M103: 96 | N103: 94 | O103: 90.33333333 | P103: 92 | Q103: 91.16666667 | S103: 83 | T103: 81 | U103: 92 | V103: 85.33333333 | W103: 93 | X103: 91 | Y103: 85 | Z103: 88 | AA103: 89 | AB103: 83 | AC103: 86 | AE103: 65 | AF103: 70 | AG103: 74 | AH103: 70 | AI103: 83 | AJ103: 100 | AK103: 96 | AL103: 98 | AM103: 84 | AN103: 78 | AO103: 81 | AQ103: 75 | AR103: 65 | AS103: 60 | AT103: 67 | AU103: 78 | AV103: 61 | AW103: 58 | AX103: 60 | AY103: 68.33333333 | AZ103: 71 | BA103: 70 | BC103: 94 | BD103: 94 | BE103: 90 | BF103: 93 | BG103: 100 | BH103: 95 | BI103: 100 | BJ103: 98 | BK103: 97 | BL103: 81 | BM103: 89 | BO103: 72 | BP103: 77 | BQ103: 80 | BR103: 76.33333333 | BS103: 86 | BT103: 76 | BU103: 77 | BV103: 77 | BW103: 80 | BX103: 84 | BY103: 82 | CA103: 91 | CB103: 90 | CC103: 90 | CD103: 90.33333333 | CE103: 92 | CF103: 92 | CG103: 90 | CH103: 91 | CI103: 91.11111111 | CJ103: 92 | CK103: 92 | CM103: 90 | CN103: 91 | CO103: 94 | CP103: 92 | CQ103: 92 | CR103: 92 | CS103: 94 | CT103: 93 | CU103: 92.33333333 | CV103: 91 | CW103: 92
A104: 81 | B104: =COUNTIF($F$24:F104,F104) -> 25 | C104: 82/4 | D104: اسماء19 | E104: أنثى | F104: الخامس-ب | G104: 30 | H104: 84 | I104: 76 | J104: 63.33333333 | K104: 78 | L104: 61 | M104: 51 | N104: 56 | O104: 66 | P104: 49 | Q104: 58 | S104: 44 | T104: 50 | U104: 45 | V104: 46.33333333 | W104: 48 | X104: 46 | Y104: 60 | Z104: 53 | AA104: 49.11111111 | AB104: 60 | AC104: 55 | AE104: 50 | AF104: 53 | AG104: 50 | AH104: 51 | AI104: 44 | AJ104: 55 | AK104: 55 | AL104: 55 | AM104: 50 | AN104: 55 | AO104: 53 | AQ104: 38 | AR104: 35 | AS104: 37 | AT104: 37 | AU104: 27 | AV104: 50 | AW104: 38 | AX104: 44 | AY104: 36 | AZ104: 34 | BA104: 35 | BC104: 36 | BD104: 50 | BE104: 63 | BF104: 50 | BG104: 75 | BH104: 55 | BI104: 58 | BJ104: 57 | BK104: 61 | BL104: 45 | BM104: 53 | BO104: 35 | BP104: 53 | BQ104: 45 | BR104: 44.33333333 | BS104: 51 | BT104: 45 | BU104: 40 | BV104: 43 | BW104: 46.11111111 | BX104: 38 | BY104: 42.05555556 | CA104: 74 | CB104: 77 | CC104: 72 | CD104: 74.33333333 | CE104: 76 | CF104: 76 | CG104: 77 | CH104: 77 | CI104: 76 | CJ104: 76 | CK104: 76 | CM104: 77 | CN104: 74 | CO104: 76 | CP104: 76 | CQ104: 75 | CR104: 76 | CS104: 76 | CT104: 76 | CU104: 76 | CV104: 79 | CW104: 78
A105: 82 | B105: =COUNTIF($F$24:F105,F105) -> 26 | C105: 234/4 | D105: اسماء20 | E105: أنثى | F105: الخامس-ب | G105: 84 | H105: 83 | I105: 96 | J105: 88 | K105: 94 | L105: 91 | M105: 81 | N105: 86 | O105: 89.33333333 | P105: 86 | Q105: 88 | S105: 86 | T105: 91 | U105: 84 | V105: 87 | W105: 87 | X105: 92 | Y105: 90 | Z105: 91 | AA105: 88.33333333 | AB105: 84 | AC105: 86.16666667 | AE105: 74 | AF105: 65 | AG105: 72 | AH105: 70.33333333 | AI105: 87 | AJ105: 97 | AK105: 100 | AL105: 99 | AM105: 85.44444444 | AN105: 75 | AO105: 80.22222222 | AQ105: 70 | AR105: 77 | AS105: 80 | AT105: 76 | AU105: 87 | AV105: 90 | AW105: 90 | AX105: 90 | AY105: 84.33333333 | AZ105: 90 | BA105: 87.16666667 | BC105: 83 | BD105: 80 | BE105: 95 | BF105: 86 | BG105: 90 | BH105: 95 | BI105: 98 | BJ105: 97 | BK105: 91 | BL105: 100 | BM105: 96 | BO105: 74 | BP105: 83 | BQ105: 97 | BR105: 85 | BS105: 100 | BT105: 85 | BU105: 70 | BV105: 78 | BW105: 88 | BX105: 100 | BY105: 94 | CA105: 90 | CB105: 89 | CC105: 90 | CD105: 90 | CE105: 92 | CF105: 91 | CG105: 89 | CH105: 90 | CI105: 91 | CJ105: 91 | CK105: 91 | CM105: 89 | CN105: 90 | CO105: 93 | CP105: 91 | CQ105: 92 | CR105: 92 | CS105: 93 | CT105: 93 | CU105: 92 | CV105: 90 | CW105: 91
A106: 83 | B106: =COUNTIF($F$24:F106,F106) -> 27 | C106: 83/4 | D106: اسماء21 | E106: أنثى | F106: الخامس-ب | G106: 36 | H106: 53 | I106: 60 | J106: 50 | K106: 66 | L106: 53 | M106: 59 | N106: 56 | O106: 57.33333333 | P106: 65 | Q106: 61.16666667 | S106: 36 | T106: 42 | U106: 33 | V106: 37 | W106: 49 | X106: 33 | Y106: 38 | Z106: 36 | AA106: 41 | AB106: 40 | AC106: 41 | AE106: 29 | AF106: 42 | AG106: 34 | AH106: 35 | AI106: 33 | AJ106: 24 | AK106: 31 | AL106: 28 | AM106: 32 | AN106: 30 | AO106: 31 | AQ106: 31 | AR106: 31 | AS106: 37 | AT106: 33 | AU106: 27 | AV106: 39 | AW106: 41 | AX106: 40 | AY106: 33.33333333 | AZ106: 31 | BA106: 32.16666667 | BC106: 32 | BD106: 30 | BE106: 33 | BF106: 32 | BG106: 47 | BH106: 43 | BI106: 43 | BJ106: 43 | BK106: 41 | BL106: 45 | BM106: 43 | BO106: 34 | BP106: 35 | BQ106: 40 | BR106: 36.33333333 | BS106: 32 | BT106: 42 | BU106: 40 | BV106: 41 | BW106: 36.44444444 | BX106: 44 | BY106: 40.22222222 | CA106: 72 | CB106: 70 | CC106: 75 | CD106: 72.33333333 | CE106: 74 | CF106: 73 | CG106: 70 | CH106: 72 | CI106: 73 | CJ106: 73 | CK106: 73 | CM106: 70 | CN106: 72 | CO106: 77 | CP106: 73 | CQ106: 76 | CR106: 74 | CS106: 77 | CT106: 76 | CU106: 75 | CV106: 75 | CW106: 75
A107: 84 | B107: =COUNTIF($F$24:F107,F107) -> 28 | C107: 337/3 | D107: اسماء22 | E107: أنثى | F107: الخامس-ب | G107: 68 | H107: 68 | I107: 71 | J107: 69 | K107: 88 | L107: 90 | M107: 72 | N107: 81 | O107: 79.33333333 | P107: 78 | Q107: 79 | S107: 72 | T107: 59 | U107: 74 | V107: 68.33333333 | W107: 80 | X107: 61 | Y107: 57 | Z107: 59 | AA107: 69.11111111 | AB107: 73 | AC107: 71.05555556 | AE107: 60 | AF107: 63 | AG107: 62 | AH107: 62 | AI107: 66 | AJ107: 55 | AK107: 61 | AL107: 58 | AM107: 62 | AN107: 56 | AO107: 59 | AQ107: 70 | AR107: 51 | AS107: 62 | AT107: 61 | AU107: 76 | AV107: 55 | AW107: 55 | AX107: 55 | AY107: 64 | AZ107: 64 | BA107: 64 | BC107: 99 | BD107: 97 | BE107: 83 | BF107: 93 | BG107: 94 | BH107: 75 | BI107: 80 | BJ107: 78 | BK107: 88.33333333 | BL107: 73 | BM107: 81 | BO107: 67 | BP107: 60 | BQ107: 74 | BR107: 67 | BS107: 64 | BT107: 43 | BU107: 56 | BV107: 50 | BW107: 60.33333333 | BX107: 62 | BY107: 61.16666667 | CA107: 90 | CB107: 90 | CC107: 89 | CD107: 90 | CE107: 95 | CF107: 92 | CG107: 90 | CH107: 91 | CI107: 92 | CJ107: 92 | CK107: 92 | CM107: 90 | CN107: 90 | CO107: 95 | CP107: 92 | CQ107: 93 | CR107: 95 | CS107: 95 | CT107: 95 | CU107: 93.33333333 | CV107: 93 | CW107: 93.16666667
A108: 85 | B108: =COUNTIF($F$24:F108,F108) -> 29 | C108: 387/3 | D108: اسماء23 | E108: أنثى | F108: الخامس-ب | G108: 43 | H108: 80 | I108: 56 | J108: 60 | K108: 82 | L108: 58 | M108: 66 | N108: 62 | O108: 68 | P108: 74 | Q108: 71 | S108: 65 | T108: 62 | U108: 73 | V108: 67 | W108: 66 | X108: 58 | Y108: 57 | Z108: 58 | AA108: 64 | AB108: 52 | AC108: 58 | AE108: 56 | AF108: 55 | AG108: 62 | AH108: 58 | AI108: 72 | AJ108: 80 | AK108: 75 | AL108: 78 | AM108: 69.33333333 | AN108: 56 | AO108: 63 | AQ108: 76 | AR108: 65 | AS108: 58 | AT108: 66.33333333 | AU108: 93 | AV108: 70 | AW108: 62 | AX108: 66 | AY108: 75.11111111 | AZ108: 82 | BA108: 79 | BC108: 52 | BD108: 63 | BE108: 40 | BF108: 52 | BG108: 58 | BH108: 55 | BI108: 75 | BJ108: 65 | BK108: 58.33333333 | BL108: 65 | BM108: 62 | BO108: 52 | BP108: 55 | BQ108: 50 | BR108: 52.33333333 | BS108: 59 | BT108: 58 | BU108: 67 | BV108: 63 | BW108: 58.11111111 | BX108: 55 | BY108: 57 | CA108: 89 | CB108: 86 | CC108: 87 | CD108: 87.33333333 | CE108: 90 | CF108: 88 | CG108: 86 | CH108: 87 | CI108: 88.11111111 | CJ108: 88 | CK108: 88.05555556 | CM108: 86 | CN108: 89 | CO108: 88 | CP108: 88 | CQ108: 92 | CR108: 90 | CS108: 88 | CT108: 89 | CU108: 90 | CV108: 90 | CW108: 90
A109: 86 | B109: =COUNTIF($F$24:F109,F109) -> 30 | C109: 108/4 | D109: اسماء24 | E109: أنثى | F109: الخامس-ب | G109: 44 | H109: 88 | I109: 80 | J109: 71 | K109: 94 | L109: 72 | M109: 70 | N109: 71 | O109: 79 | P109: 81 | Q109: 80 | S109: 55 | T109: 72 | U109: 56 | V109: 61 | W109: 80 | X109: 71 | Y109: 66 | Z109: 69 | AA109: 70 | AB109: 60 | AC109: 65 | AE109: 50 | AF109: 50 | AG109: 49 | AH109: 50 | AI109: 69 | AJ109: 56 | AK109: 78 | AL109: 67 | AM109: 62 | AN109: 60 | AO109: 61 | AQ109: 51 | AR109: 54 | AS109: 55 | AT109: 53.33333333 | AU109: 68 | AV109: 59 | AW109: 68 | AX109: 64 | AY109: 62 | AZ109: 66 | BA109: 64 | BC109: 45 | BD109: 56 | BE109: 48 | BF109: 50 | BG109: 88 | BH109: 76 | BI109: 74 | BJ109: 75 | BK109: 71 | BL109: 85 | BM109: 78 | BO109: 35 | BP109: 44 | BQ109: 70 | BR109: 50 | BS109: 92 | BT109: 66 | BU109: 52 | BV109: 59 | BW109: 67 | BX109: 80 | BY109: 74 | CA109: 82 | CB109: 80 | CC109: 81 | CD109: 81 | CE109: 84 | CF109: 83 | CG109: 80 | CH109: 82 | CI109: 82.33333333 | CJ109: 83 | CK109: 83 | CM109: 80 | CN109: 82 | CO109: 86 | CP109: 83 | CQ109: 86 | CR109: 84 | CS109: 86 | CT109: 85 | CU109: 85 | CV109: 76 | CW109: 81
A110: 87 | B110: =COUNTIF($F$24:F110,F110) -> 31 | C110: 47/4 | D110: اسماء25 | E110: أنثى | F110: الخامس-ب | G110: 90 | H110: 94 | I110: 90 | J110: 91.33333333 | K110: 93 | L110: 100 | M110: 90 | N110: 95 | O110: 93.11111111 | P110: 96 | Q110: 95 | S110: 94 | T110: 92 | U110: 97 | V110: 94.33333333 | W110: 97 | X110: 92 | Y110: 88 | Z110: 90 | AA110: 94 | AB110: 92 | AC110: 93 | AE110: 93 | AF110: 90 | AG110: 93 | AH110: 92 | AI110: 84 | AJ110: 100 | AK110: 100 | AL110: 100 | AM110: 92 | AN110: 92 | AO110: 92 | AQ110: 96 | AR110: 84 | AS110: 96 | AT110: 92 | AU110: 88 | AV110: 99 | AW110: 98 | AX110: 99 | AY110: 93 | AZ110: 94 | BA110: 94 | BC110: 97 | BD110: 93 | BE110: 99 | BF110: 96.33333333 | BG110: 93 | BH110: 100 | BI110: 100 | BJ110: 100 | BK110: 96.44444444 | BL110: 99 | BM110: 98 | BO110: 75 | BP110: 90 | BQ110: 80 | BR110: 82 | BS110: 89 | BT110: 91 | BU110: 93 | BV110: 92 | BW110: 88 | BX110: 88 | BY110: 88 | CA110: 98 | CB110: 97 | CC110: 99 | CD110: 98 | CE110: 99 | CF110: 98 | CG110: 97 | CH110: 98 | CI110: 98.33333333 | CJ110: 98 | CK110: 98.16666667 | CM110: 97 | CN110: 98 | CO110: 99 | CP110: 98 | CQ110: 95 | CR110: 99 | CS110: 99 | CT110: 99 | CU110: 97.33333333 | CV110: 97 | CW110: 97.16666667
A111: 88 | B111: =COUNTIF($F$24:F111,F111) -> 32 | C111: 362/3 | D111: اسماء26 | E111: أنثى | F111: الخامس-ب | G111: 61 | H111: 72 | I111: 64 | J111: 66 | K111: 79 | L111: 62 | M111: 65 | N111: 64 | O111: 70 | P111: 70 | Q111: 70 | S111: 63 | T111: 57 | U111: 61 | V111: 60.33333333 | W111: 62 | X111: 56 | Y111: 68 | Z111: 62 | AA111: 61.44444444 | AB111: 64 | AC111: 63 | AE111: 50 | AF111: 51 | AG111: 48 | AH111: 50 | AI111: 53 | AJ111: 50 | AK111: 50 | AL111: 50 | AM111: 51 | AN111: 50 | AO111: 51 | AQ111: 50 | AR111: 38 | AS111: 61 | AT111: 50 | AU111: 57 | AV111: 43 | AW111: 57 | AX111: 50 | AY111: 52.33333333 | AZ111: 42 | BA111: 47.16666667 | BC111: 62 | BD111: 68 | BE111: 50 | BF111: 60 | BG111: 88 | BH111: 61 | BI111: 86 | BJ111: 74 | BK111: 74 | BL111: 69 | BM111: 72 | BO111: 41 | BP111: 50 | BQ111: 61 | BR111: 51 | BS111: 50 | BT111: 57 | BU111: 55 | BV111: 56 | BW111: 52.33333333 | BX111: 56 | BY111: 54.16666667 | CA111: 80 | CB111: 82 | CC111: 80 | CD111: 81 | CE111: 84 | CF111: 82 | CG111: 82 | CH111: 82 | CI111: 82.33333333 | CJ111: 82 | CK111: 82.16666667 | CM111: 82 | CN111: 80 | CO111: 83 | CP111: 82 | CQ111: 85 | CR111: 84 | CS111: 83 | CT111: 84 | CU111: 84 | CV111: 85 | CW111: 85
A112: 89 | B112: =COUNTIF($F$24:F112,F112) -> 33 | C112: 376/3 | D112: اسماء27 | E112: أنثى | F112: الخامس-ب | G112: 78 | H112: 89 | I112: 77 | J112: 81.33333333 | K112: 85 | L112: 78 | M112: 77 | N112: 78 | O112: 81.44444444 | P112: 79 | Q112: 80.22222222 | S112: 72 | T112: 73 | U112: 66 | V112: 70.33333333 | W112: 79 | X112: 66 | Y112: 68 | Z112: 67 | AA112: 72.11111111 | AB112: 61 | AC112: 67 | AE112: 68 | AF112: 55 | AG112: 66 | AH112: 63 | AI112: 66 | AJ112: 58 | AK112: 70 | AL112: 64 | AM112: 64.33333333 | AN112: 51 | AO112: 58 | AQ112: 80 | AR112: 70 | AS112: 55 | AT112: 68.33333333 | AU112: 74 | AV112: 59 | AW112: 77 | AX112: 68 | AY112: 70.11111111 | AZ112: 72 | BA112: 71.05555556 | BC112: 80 | BD112: 69 | BE112: 65 | BF112: 71.33333333 | BG112: 91 | BH112: 63 | BI112: 74 | BJ112: 69 | BK112: 77.11111111 | BL112: 83 | BM112: 80.05555556 | BO112: 42 | BP112: 56 | BQ112: 74 | BR112: 57.33333333 | BS112: 67 | BT112: 69 | BU112: 55 | BV112: 62 | BW112: 62.11111111 | BX112: 54 | BY112: 58.05555556 | CA112: 96 | CB112: 89 | CC112: 94 | CD112: 93 | CE112: 95 | CF112: 93.33333333 | CG112: 89 | CH112: 91.16666667 | CI112: 93.05555556 | CJ112: 93.33333333 | CK112: 93.19444444 | CM112: 89 | CN112: 96 | CO112: 95 | CP112: 93.33333333 | CQ112: 90 | CR112: 95 | CS112: 95 | CT112: 95 | CU112: 93 | CV112: 89 | CW112: =IF(AND(CU112="غائب",CV112="غائب"),"غائب",IF(AND(CU112<>"",CV112<>""),IF(ABS(SUM(CU112:CV112))/2-INT(SUM(CU112:CV112)/2)>=0.5,INT(SUM(CU112:CV112)/2)+1,SUM(CU112:CV112)/2),"")) -> 91
A113: 90 | B113: =COUNTIF($F$24:F113,F113) -> 34 | C113: 112/4 | D113: اسماء28 | E113: أنثى | F113: الخامس-ب | G113: 54 | H113: 89 | I113: 79 | J113: 74 | K113: 88 | L113: 81 | M113: 63 | N113: 72 | O113: 78 | P113: 76 | Q113: 77 | S113: 60 | T113: 70 | U113: 75 | V113: 68.33333333 | W113: 72 | X113: 62 | Y113: 67 | Z113: 65 | AA113: 68.44444444 | AB113: 81 | AC113: 75 | AE113: 70 | AF113: 58 | AG113: 68 | AH113: 65.33333333 | AI113: 69 | AJ113: 73 | AK113: 70 | AL113: 72 | AM113: 69 | AN113: 61 | AO113: 65 | AQ113: 62 | AR113: 65 | AS113: 63 | AT113: 63.33333333 | AU113: 61 | AV113: 60 | AW113: 70 | AX113: 65 | AY113: 63.11111111 | AZ113: 71 | BA113: 67.05555556 | BC113: 59 | BD113: 69 | BE113: 67 | BF113: 65 | BG113: 89 | BH113: 93 | BI113: 76 | BJ113: 85 | BK113: 80 | BL113: 79 | BM113: 80 | BO113: 58 | BP113: 70 | BQ113: 55 | BR113: 61 | BS113: 69 | BT113: 60 | BU113: 72 | BV113: 66 | BW113: 65.33333333 | BX113: 76 | BY113: 71 | CA113: 81 | CB113: 80 | CC113: 80 | CD113: 80.33333333 | CE113: 82 | CF113: 81 | CG113: 80 | CH113: 81 | CI113: 81.11111111 | CJ113: 81 | CK113: 81.05555556 | CM113: 80 | CN113: 81 | CO113: 82 | CP113: 81 | CQ113: 85 | CR113: 82 | CS113: 82 | CT113: 82 | CU113: 83 | CV113: 88 | CW113: 86
A114: 91 | B114: =COUNTIF($F$24:F114,F114) -> 35 | C114: 73/4 | D114: اسماء29 | E114: أنثى | F114: الخامس-ب | G114: 70 | H114: 83 | I114: 76 | J114: 76.33333333 | K114: 93 | L114: 79 | M114: 76 | N114: 78 | O114: 82.44444444 | P114: 87 | Q114: 85 | S114: 69 | T114: 69 | U114: 68 | V114: 69 | W114: 86 | X114: 75 | Y114: 73 | Z114: 74 | AA114: 76.33333333 | AB114: 71 | AC114: 74 | AE114: 68 | AF114: 70 | AG114: 64 | AH114: 67.33333333 | AI114: 77 | AJ114: 72 | AK114: 70 | AL114: 71 | AM114: 72 | AN114: 61 | AO114: 67 | AQ114: 60 | AR114: 70 | AS114: 62 | AT114: 64 | AU114: 58 | AV114: 60 | AW114: 58 | AX114: 59 | AY114: 60.33333333 | AZ114: 50 | BA114: 55.16666667 | BC114: 69 | BD114: 71 | BE114: 64 | BF114: 68 | BG114: 86 | BH114: 76 | BI114: 83 | BJ114: 80 | BK114: 78 | BL114: 93 | BM114: 86 | BO114: 50 | BP114: 60 | BQ114: 59 | BR114: 56.33333333 | BS114: 58 | BT114: 45 | BU114: 44 | BV114: 45 | BW114: 53.11111111 | BX114: 64 | BY114: 59 | CA114: 89 | CB114: 88 | CC114: 89 | CD114: 89 | CE114: 90 | CF114: 89 | CG114: 88 | CH114: 89 | CI114: 89.33333333 | CJ114: 89 | CK114: 89.16666667 | CM114: 88 | CN114: 89 | CO114: 90 | CP114: 89 | CQ114: 91 | CR114: 90 | CS114: 90 | CT114: 90 | CU114: 90 | CV114: 90 | CW114: 90
A115: 92 | B115: =COUNTIF($F$24:F115,F115) -> 36 | C115: 385/3 | D115: اسماء30 | E115: أنثى | F115: الخامس-ب | G115: 63 | H115: 76 | I115: 69 | J115: 69.33333333 | K115: 90 | L115: 81 | M115: 71 | N115: 76 | O115: 78.44444444 | P115: 93 | Q115: 86 | S115: 75 | T115: 72 | U115: 76 | V115: 74.33333333 | W115: 83 | X115: 72 | Y115: 74 | Z115: 73 | AA115: 77 | AB115: 73 | AC115: 75 | AE115: 72 | AF115: 60 | AG115: 60 | AH115: 64 | AI115: 67 | AJ115: 68 | AK115: 70 | AL115: 69 | AM115: 67 | AN115: 78 | AO115: 73 | AQ115: 70 | AR115: 72 | AS115: 75 | AT115: 72.33333333 | AU115: 69 | AV115: 68 | AW115: 82 | AX115: 75 | AY115: 72.11111111 | AZ115: 80 | BA115: 76.05555556 | BC115: 70 | BD115: 78 | BE115: 58 | BF115: 69 | BG115: 87 | BH115: 77 | BI115: 88 | BJ115: 83 | BK115: 80 | BL115: 96 | BM115: 88 | BO115: 65 | BP115: 56 | BQ115: 83 | BR115: 68 | BS115: 70 | BT115: 82 | BU115: 62 | BV115: 72 | BW115: 70 | BX115: 84 | BY115: 77 | CA115: 90 | CB115: 90 | CC115: 90 | CD115: 90 | CE115: 93 | CF115: 91 | CG115: 90 | CH115: 91 | CI115: 91.33333333 | CJ115: 91 | CK115: 91.16666667 | CM115: 90 | CN115: 90 | CO115: 93 | CP115: 91 | CQ115: 92 | CR115: 93 | CS115: 93 | CT115: 93 | CU115: 92 | CV115: 92 | CW115: 92
A116: 93 | B116: =COUNTIF($F$24:F116,F116) -> 37 | C116: 105/4 | D116: اسماء31 | E116: أنثى | F116: الخامس-ب | G116: 90 | H116: 93 | I116: 97 | J116: 93.33333333 | K116: 96 | L116: 98 | M116: 95 | N116: 97 | O116: 95.44444444 | P116: 88 | Q116: 92 | S116: 90 | T116: 90 | U116: 98 | V116: 93 | W116: 97 | X116: 97 | Y116: 100 | Z116: 99 | AA116: 96.33333333 | AB116: 95 | AC116: 96 | AE116: 75 | AF116: 76 | AG116: 78 | AH116: 76.33333333 | AI116: 87 | AJ116: 100 | AK116: 100 | AL116: 100 | AM116: 88 | AN116: 86 | AO116: 87 | AQ116: 83 | AR116: 91 | AS116: 95 | AT116: 90 | AU116: 97 | AV116: 91 | AW116: 87 | AX116: 89 | AY116: 92 | AZ116: 92 | BA116: 92 | BC116: 95 | BD116: 99 | BE116: 96 | BF116: 97 | BG116: 83 | BH116: 100 | BI116: 100 | BJ116: 100 | BK116: 93.33333333 | BL116: 86 | BM116: 90 | BO116: 79 | BP116: 100 | BQ116: 92 | BR116: 90.33333333 | BS116: 84 | BT116: 97 | BU116: 99 | BV116: 98 | BW116: 91 | BX116: 96 | BY116: 94 | CA116: 98 | CB116: 98 | CC116: 95 | CD116: 97 | CE116: 98 | CF116: 98 | CG116: 98 | CH116: 98 | CI116: 98 | CJ116: 98 | CK116: 98 | CM116: 98 | CN116: 98 | CO116: 98 | CP116: 98 | CQ116: 96 | CR116: 98 | CS116: 98 | CT116: 98 | CU116: 97.33333333 | CV116: 98 | CW116: 98
A117: 94 | B117: =COUNTIF($F$24:F117,F117) -> 38 | C117: 74/4 | D117: اسماء32 | E117: أنثى | F117: الخامس-ب | G117: 66 | H117: 89 | I117: 79 | J117: 78 | K117: 78 | L117: 84 | M117: 65 | N117: 75 | O117: 77 | P117: 73 | Q117: 75 | S117: 82 | T117: 80 | U117: 71 | V117: 78 | W117: 91 | X117: 80 | Y117: 80 | Z117: 80 | AA117: 83 | AB117: 80 | AC117: 82 | AE117: 75 | AF117: 90 | AG117: 72 | AH117: 79 | AI117: 85 | AJ117: 100 | AK117: 78 | AL117: 89 | AM117: 84.33333333 | AN117: 81 | AO117: 83 | AQ117: 71 | AR117: 69 | AS117: 52 | AT117: 64 | AU117: 90 | AV117: 86 | AW117: 69 | AX117: 78 | AY117: 77.33333333 | AZ117: 76 | BA117: 77 | BC117: 78 | BD117: 76 | BE117: 63 | BF117: 72.33333333 | BG117: 71 | BH117: 72 | BI117: 75 | BJ117: 74 | BK117: 72.44444444 | BL117: 66 | BM117: 69.22222222 | BO117: 71 | BP117: 60 | BQ117: 35 | BR117: 55.33333333 | BS117: 78 | BT117: 76 | BU117: 50 | BV117: 63 | BW117: 65.44444444 | BX117: 88 | BY117: 77 | CA117: 89 | CB117: 90 | CC117: 86 | CD117: 88.33333333 | CE117: 90 | CF117: 89 | CG117: 90 | CH117: 90 | CI117: 89.44444444 | CJ117: 89 | CK117: 89.22222222 | CM117: 90 | CN117: 89 | CO117: 87 | CP117: 89 | CQ117: 90 | CR117: 90 | CS117: 87 | CT117: 89 | CU117: 89.33333333 | CV117: 82 | CW117: 86
A118: 95 | B118: =COUNTIF($F$24:F118,F118) -> 39 | C118: 46/4 | D118: اسماء33 | E118: أنثى | F118: الخامس-ب | G118: 87 | H118: 88 | I118: 83 | J118: 86 | K118: 83 | L118: 86 | M118: 87 | N118: 87 | O118: 85.33333333 | P118: 88 | Q118: 87 | S118: 90 | T118: 86 | U118: 92 | V118: 89.33333333 | W118: 99 | X118: 86 | Y118: 90 | Z118: 88 | AA118: 92.11111111 | AB118: 94 | AC118: 93.05555556 | AE118: 75 | AF118: 64 | AG118: 65 | AH118: 68 | AI118: 77 | AJ118: 86 | AK118: 72 | AL118: 79 | AM118: 75 | AN118: 73 | AO118: 74 | AQ118: 81 | AR118: 75 | AS118: 99 | AT118: 85 | AU118: 98 | AV118: 83 | AW118: 100 | AX118: 92 | AY118: 92 | AZ118: 96 | BA118: 94 | BC118: 85 | BD118: 78 | BE118: 80 | BF118: 81 | BG118: 95 | BH118: 90 | BI118: 98 | BJ118: 94 | BK118: 90 | BL118: 80 | BM118: 85 | BO118: 70 | BP118: 62 | BQ118: 69 | BR118: 67 | BS118: 84 | BT118: 86 | BU118: 70 | BV118: 78 | BW118: 76.33333333 | BX118: 94 | BY118: 85.16666667 | CA118: 95 | CB118: 99 | CC118: 99 | CD118: 98 | CE118: 99 | CF118: 98 | CG118: 99 | CH118: 99 | CI118: 99 | CJ118: 98 | CK118: 99 | CM118: 99 | CN118: 95 | CO118: 99 | CP118: 98 | CQ118: 95 | CR118: 99 | CS118: 99 | CT118: 99 | CU118: 97.33333333 | CV118: 97 | CW118: 97.16666667
A119: 96 | B119: =COUNTIF($F$24:F119,F119) -> 40 | C119: 103/4 | D119: اسماء34 | E119: أنثى | F119: الخامس-ب | G119: 81 | H119: 92 | I119: 95 | J119: 89.33333333 | K119: 92 | L119: 89 | M119: 84 | N119: 87 | O119: 89.44444444 | P119: 92 | Q119: 91 | S119: 84 | T119: 87 | U119: 90 | V119: 87 | W119: 91 | X119: 97 | Y119: 92 | Z119: 95 | AA119: 91 | AB119: 85 | AC119: 88 | AE119: 63 | AF119: 62 | AG119: 75 | AH119: 67 | AI119: 75 | AJ119: 84 | AK119: 100 | AL119: 92 | AM119: 78 | AN119: 76 | AO119: 77 | AQ119: 63 | AR119: 80 | AS119: 90 | AT119: 78 | AU119: 83 | AV119: 90 | AW119: 82 | AX119: 86 | AY119: 82.33333333 | AZ119: 85 | BA119: 84 | BC119: 78 | BD119: 87 | BE119: 87 | BF119: 84 | BG119: 100 | BH119: 88 | BI119: 93 | BJ119: 91 | BK119: 92 | BL119: 88 | BM119: 90 | BO119: 70 | BP119: 71 | BQ119: 76 | BR119: 72.33333333 | BS119: 83 | BT119: 74 | BU119: 82 | BV119: 78 | BW119: 78 | BX119: 80 | BY119: 79 | CA119: 86 | CB119: 88 | CC119: 90 | CD119: 88 | CE119: 90 | CF119: 88 | CG119: 88 | CH119: 88 | CI119: 89 | CJ119: 88 | CK119: 89 | CM119: 88 | CN119: 86 | CO119: 89 | CP119: 88 | CQ119: 87 | CR119: 90 | CS119: 89 | CT119: 90 | CU119: 88.33333333 | CV119: 91 | CW119: 90
A120: 97 | B120: =COUNTIF($F$24:F120,F120) -> 41 | C120: 332/4 | D120: اسماء35 | E120: أنثى | F120: الخامس-ب | G120: 88 | H120: 94 | I120: 97 | J120: 93 | K120: 97 | L120: 96 | M120: 84 | N120: 90 | O120: 93.33333333 | P120: 93 | Q120: 93.16666667 | S120: 90 | T120: 91 | U120: 94 | V120: 92 | W120: 97 | X120: 94 | Y120: 86 | Z120: 90 | AA120: 93 | AB120: 97 | AC120: 95 | AE120: 91 | AF120: 78 | AG120: 75 | AH120: 81.33333333 | AI120: 96 | AJ120: 100 | AK120: 100 | AL120: 100 | AM120: 92.44444444 | AN120: 94 | AO120: 93.22222222 | AQ120: 83 | AR120: 92 | AS120: 100 | AT120: 92 | AU120: 94 | AV120: 98 | AW120: 100 | AX120: 99 | AY120: 95 | AZ120: 95 | BA120: 95 | BC120: 85 | BD120: 89 | BE120: 100 | BF120: 91.33333333 | BG120: 100 | BH120: 90 | BI120: 98 | BJ120: 94 | BK120: 95.11111111 | BL120: 98 | BM120: 97 | BO120: 65 | BP120: 81 | BQ120: 82 | BR120: 76 | BS120: 81 | BT120: 86 | BU120: 86 | BV120: 86 | BW120: 81 | BX120: 91 | BY120: 86 | CA120: 95 | CB120: 99 | CC120: 100 | CD120: 98 | CE120: 99 | CF120: 98 | CG120: 99 | CH120: 99 | CI120: 99 | CJ120: 98 | CK120: 99 | CM120: 99 | CN120: 95 | CO120: 99 | CP120: 98 | CQ120: 97 | CR120: 99 | CS120: 99 | CT120: 99 | CU120: 98 | CV120: 97 | CW120: 98
A121: 98 | B121: =COUNTIF($F$24:F121,F121) -> 42 | C121: 306/3 | D121: اسماء36 | E121: أنثى | F121: الخامس-ب | G121: 38 | H121: 63 | I121: 55 | J121: 52 | K121: 66 | L121: 66 | M121: 51 | N121: 59 | O121: 59 | P121: 66 | Q121: 63 | S121: 55 | T121: 50 | U121: 44 | V121: 50 | W121: 64 | X121: 46 | Y121: 45 | Z121: 46 | AA121: 53.33333333 | AB121: 45 | AC121: 49.16666667 | AE121: 50 | AF121: 50 | AG121: 49 | AH121: 50 | AI121: 45 | AJ121: 60 | AK121: 56 | AL121: 58 | AM121: 51 | AN121: 46 | AO121: 49 | AQ121: 45 | AR121: 52 | AS121: 54 | AT121: 50.33333333 | AU121: 68 | AV121: 51 | AW121: 50 | AX121: 51 | AY121: 56.44444444 | AZ121: 50 | BA121: 53.22222222 | BC121: 30 | BD121: 46 | BE121: 54 | BF121: 43.33333333 | BG121: 64 | BH121: 40 | BI121: 59 | BJ121: 50 | BK121: 52.44444444 | BL121: 31 | BM121: 42 | BO121: 60 | BP121: 45 | BQ121: 52 | BR121: 52.33333333 | BS121: 43 | BT121: 51 | BU121: 58 | BV121: 55 | BW121: 50.11111111 | BX121: 41 | BY121: 46 | CA121: 73 | CB121: 77 | CC121: 70 | CD121: 73.33333333 | CE121: 77 | CF121: 75.33333333 | CG121: 77 | CH121: 76.16666667 | CI121: 75.5 | CJ121: 75.33333333 | CK121: 75.41666667 | CM121: 77 | CN121: 73 | CO121: 76 | CP121: 75.33333333 | CQ121: 75 | CR121: 77 | CS121: 76 | CT121: 77 | CU121: 76 | CV121: 77 | CW121: 77
A122: 99 | B122: =COUNTIF($F$24:F122,F122) -> 43 | C122: 28/4 | D122: اسماء37 | E122: أنثى | F122: الخامس-ب | G122: 82 | H122: 98 | I122: 98 | J122: 93 | K122: 96 | L122: 92 | M122: 100 | N122: 96 | O122: 95 | P122: 94 | Q122: 95 | S122: 94 | T122: 86 | U122: 77 | V122: 86 | W122: 96 | X122: 89 | Y122: 95 | Z122: 92 | AA122: 91.33333333 | AB122: 95 | AC122: 93.16666667 | AE122: 75 | AF122: 76 | AG122: 96 | AH122: 82.33333333 | AI122: 82 | AJ122: 95 | AK122: 100 | AL122: 98 | AM122: 87.44444444 | AN122: 91 | AO122: 89.22222222 | AQ122: 100 | AR122: 70 | AS122: 95 | AT122: 88.33333333 | AU122: 90 | AV122: 92 | AW122: 94 | AX122: 93 | AY122: 90.44444444 | AZ122: 100 | BA122: 95.22222222 | BC122: 80 | BD122: 92 | BE122: 90 | BF122: 87.33333333 | BG122: 97 | BH122: 95 | BI122: 98 | BJ122: 97 | BK122: 94 | BL122: 84 | BM122: 89 | BO122: 72 | BP122: 87 | BQ122: 91 | BR122: 83.33333333 | BS122: 89 | BT122: 97 | BU122: 100 | BV122: 99 | BW122: 90.44444444 | BX122: 100 | BY122: 95.22222222 | CA122: 100 | CB122: 99 | CC122: 95 | CD122: 98 | CE122: 99 | CF122: 99.33333333 | CG122: 99 | CH122: 99.16666667 | CI122: 99 | CJ122: 99.33333333 | CK122: 99.16666667 | CM122: 99 | CN122: 100 | CO122: 99 | CP122: 99.33333333 | CQ122: 96 | CR122: 99 | CS122: 99 | CT122: 99 | CU122: 98.11111111 | CV122: 98 | CW122: 98.05555556
A123: 100 | B123: =COUNTIF($F$24:F123,F123) -> 44 | C123: 84/4 | D123: اسماء38 | E123: أنثى | F123: الخامس-ب | G123: 61 | H123: 75 | I123: 72 | J123: 69.33333333 | K123: 89 | L123: 73 | M123: 64 | N123: 69 | O123: 76 | P123: 86 | Q123: 81 | S123: 80 | T123: 52 | U123: 59 | V123: 64 | W123: 79 | X123: 63 | Y123: 73 | Z123: 68 | AA123: 70.33333333 | AB123: 73 | AC123: 72 | AE123: 80 | AF123: 66 | AG123: 57 | AH123: 68 | AI123: 68 | AJ123: 75 | AK123: 65 | AL123: 70 | AM123: 69 | AN123: 60 | AO123: 65 | AQ123: 55 | AR123: 76 | AS123: 58 | AT123: 63 | AU123: 79 | AV123: 66 | AW123: 60 | AX123: 63 | AY123: 68.33333333 | AZ123: 65 | BA123: 67 | BC123: 85 | BD123: 54 | BE123: 54 | BF123: 64.33333333 | BG123: 83 | BH123: 64 | BI123: 54 | BJ123: 59 | BK123: 69 | BL123: 93 | BM123: 81 | BO123: 66 | BP123: 54 | BQ123: 45 | BR123: 55 | BS123: 66 | BT123: 55 | BU123: 56 | BV123: 56 | BW123: 59 | BX123: 68 | BY123: 64 | CA123: 78 | CB123: 76 | CC123: 77 | CD123: 77 | CE123: 80 | CF123: 77.33333333 | CG123: 76 | CH123: 77 | CI123: 78 | CJ123: 77.33333333 | CK123: 78 | CM123: 76 | CN123: 78 | CO123: 78 | CP123: 77.33333333 | CQ123: 79 | CR123: 80 | CS123: 78 | CT123: 79 | CU123: 78.44444444 | CV123: 78 | CW123: 78.22222222
A124: 101 | B124: =COUNTIF($F$24:F124,F124) -> 45 | C124: 37/4 | D124: اسماء39 | E124: أنثى | F124: الخامس-ب | G124: 77 | H124: 94 | I124: 93 | J124: 88 | K124: 97 | L124: 98 | M124: 86 | N124: 92 | O124: 92.33333333 | P124: 98 | Q124: 95.16666667 | S124: 89 | T124: 86 | U124: 89 | V124: 88 | W124: 96 | X124: 86 | Y124: 96 | Z124: 91 | AA124: 92 | AB124: 94 | AC124: 93 | AE124: 80 | AF124: 61 | AG124: 85 | AH124: 75.33333333 | AI124: 85 | AJ124: 100 | AK124: 96 | AL124: 98 | AM124: 86.11111111 | AN124: 84 | AO124: 85.05555556 | AQ124: 71 | AR124: 78 | AS124: 95 | AT124: 81.33333333 | AU124: 87 | AV124: 94 | AW124: 92 | AX124: 93 | AY124: 87.11111111 | AZ124: 100 | BA124: 94 | BC124: 99 | BD124: 93 | BE124: 89 | BF124: 94 | BG124: 100 | BH124: 100 | BI124: 99 | BJ124: 100 | BK124: 98 | BL124: 93 | BM124: 96 | BO124: 82 | BP124: 92 | BQ124: 89 | BR124: 88 | BS124: 95 | BT124: 100 | BU124: 91 | BV124: 96 | BW124: 93 | BX124: 94 | BY124: 94 | CA124: 91 | CB124: 89 | CC124: 95 | CD124: 92 | CE124: 96 | CF124: 91 | CG124: 89 | CH124: 90 | CI124: 93 | CJ124: 91 | CK124: 92 | CM124: 89 | CN124: 91 | CO124: 93 | CP124: 91 | CQ124: 91 | CR124: 96 | CS124: 93 | CT124: 95 | CU124: 92.33333333 | CV124: 92 | CW124: 92.16666667
A125: 102 | B125: =COUNTIF($F$24:F125,F125) -> 46 | C125: 297/3 | D125: اسماء40 | E125: أنثى | F125: الخامس-ب | G125: 75 | H125: 88 | I125: 80 | J125: 81 | K125: 92 | L125: 96 | M125: 79 | N125: 88 | O125: 87 | P125: 94 | Q125: 91 | S125: 57 | T125: 77 | U125: 71 | V125: 68.33333333 | W125: 76 | X125: 73 | Y125: 68 | Z125: 71 | AA125: 72 | AB125: 86 | AC125: 79 | AE125: 57 | AF125: 55 | AG125: 50 | AH125: 54 | AI125: 58 | AJ125: 74 | AK125: 74 | AL125: 74 | AM125: 62 | AN125: 54 | AO125: 58 | AQ125: 58 | AR125: 60 | AS125: 72 | AT125: 63.33333333 | AU125: 61 | AV125: 66 | AW125: 62 | AX125: 64 | AY125: 63 | AZ125: 52 | BA125: 58 | BC125: 59 | BD125: 92 | BE125: 87 | BF125: 79.33333333 | BG125: 100 | BH125: 80 | BI125: 87 | BJ125: 84 | BK125: 88 | BL125: 92 | BM125: 90 | BO125: 92 | BP125: 72 | BQ125: 97 | BR125: 87 | BS125: 80 | BT125: 86 | BU125: 89 | BV125: 88 | BW125: 85 | BX125: 88 | BY125: 87 | CA125: 83 | CB125: 88 | CC125: 80 | CD125: 84 | CE125: 88 | CF125: 86 | CG125: 88 | CH125: 87 | CI125: 86.33333333 | CJ125: 86 | CK125: 86.16666667 | CM125: 88 | CN125: 83 | CO125: 87 | CP125: 86 | CQ125: 88 | CR125: 88 | CS125: 87 | CT125: 88 | CU125: 87.33333333 | CV125: 81 | CW125: 84.16666667
A126: 103 | B126: =COUNTIF($F$24:F126,F126) -> 47 | C126: 110/4 | D126: اسماء41 | E126: أنثى | F126: الخامس-ب | G126: 66 | H126: 81 | I126: 96 | J126: 81 | K126: 96 | L126: 94 | M126: 91 | N126: 93 | O126: 90 | P126: 94 | Q126: 92 | S126: 64 | T126: 72 | U126: 75 | V126: 70.33333333 | W126: 85 | X126: 78 | Y126: 80 | Z126: 79 | AA126: 78.11111111 | AB126: 86 | AC126: 82.05555556 | AE126: 60 | AF126: 71 | AG126: 82 | AH126: 71 | AI126: 73 | AJ126: 98 | AK126: 100 | AL126: 99 | AM126: 81 | AN126: 82 | AO126: 82 | AQ126: 71 | AR126: 70 | AS126: 85 | AT126: 75.33333333 | AU126: 80 | AV126: 82 | AW126: 95 | AX126: 89 | AY126: 81.44444444 | AZ126: 96 | BA126: 89 | BC126: 93 | BD126: 95 | BE126: 99 | BF126: 96 | BG126: 87 | BH126: 94 | BI126: 97 | BJ126: 96 | BK126: 93 | BL126: 84 | BM126: 89 | BO126: 57 | BP126: 85 | BQ126: 80 | BR126: 74 | BS126: 99 | BT126: 95 | BU126: 91 | BV126: 93 | BW126: 89 | BX126: 100 | BY126: 95 | CA126: 89 | CB126: 88 | CC126: 85 | CD126: 87.33333333 | CE126: 90 | CF126: 88.33333333 | CG126: 88 | CH126: 88.16666667 | CI126: 89 | CJ126: 88.33333333 | CK126: 89 | CM126: 88 | CN126: 89 | CO126: 88 | CP126: 88.33333333 | CQ126: 90 | CR126: 90 | CS126: 88 | CT126: 89 | CU126: 89.11111111 | CV126: 97 | CW126: 93.05555556
A127: 104 | B127: =COUNTIF($F$24:F127,F127) -> 48 | C127: 374/3 | D127: اسماء42 | E127: أنثى | F127: الخامس-ب | G127: 67 | H127: 83 | I127: 71 | J127: 74 | K127: 82 | L127: 65 | M127: 72 | N127: 69 | O127: 75 | P127: 71 | Q127: 73 | S127: 75 | T127: 58 | U127: 71 | V127: 68 | W127: 74 | X127: 59 | Y127: 70 | Z127: 65 | AA127: 69 | AB127: 64 | AC127: 67 | AE127: 45 | AF127: 28 | AG127: 35 | AH127: 36 | AI127: 32 | AJ127: 40 | AK127: 28 | AL127: 34 | AM127: 34 | AN127: 27 | AO127: 31 | AQ127: 51 | AR127: 36 | AS127: 62 | AT127: 50 | AU127: 52 | AV127: 55 | AW127: 46 | AX127: 51 | AY127: 51 | AZ127: 40 | BA127: 46 | BC127: 57 | BD127: 64 | BE127: 55 | BF127: 59 | BG127: 93 | BH127: 40 | BI127: 60 | BJ127: 50 | BK127: 67.33333333 | BL127: 51 | BM127: 59.16666667 | BO127: 50 | BP127: 44 | BQ127: 63 | BR127: 52.33333333 | BS127: 43 | BT127: 54 | BU127: 46 | BV127: 50 | BW127: 48.44444444 | BX127: 55 | BY127: 52 | CA127: 86 | CB127: 88 | CC127: 80 | CD127: 85 | CE127: 88 | CF127: 87 | CG127: 88 | CH127: 88 | CI127: 87 | CJ127: 87 | CK127: 87 | CM127: 88 | CN127: 86 | CO127: 86 | CP127: 87 | CQ127: 84 | CR127: 88 | CS127: 86 | CT127: 87 | CU127: 86 | CV127: 90 | CW127: 88
A128: 105 | B128: =COUNTIF($F$24:F128,F128) -> 49 | C128: 368/3 | D128: اسماء43 | E128: أنثى | F128: الخامس-ب | G128: 60 | H128: 78 | I128: 69 | J128: 69 | K128: 84 | L128: 76 | M128: 65 | N128: 71 | O128: 75 | P128: 75 | Q128: 75 | S128: 75 | T128: 71 | U128: 67 | V128: 71 | W128: 82 | X128: 64 | Y128: 68 | Z128: 66 | AA128: 73 | AB128: 63 | AC128: 68 | AE128: 72 | AF128: 50 | AG128: 55 | AH128: 59 | AI128: 63 | AJ128: 60 | AK128: 57 | AL128: 59 | AM128: 60.33333333 | AN128: 57 | AO128: 59 | AQ128: 60 | AR128: 91 | AS128: 100 | AT128: 84 | AU128: 92 | AV128: 96 | AW128: 96 | AX128: 96 | AY128: 91 | AZ128: 77 | BA128: 84 | BC128: 55 | BD128: 73 | BE128: 56 | BF128: 61.33333333 | BG128: 77 | BH128: 51 | BI128: 53 | BJ128: 52 | BK128: 63.44444444 | BL128: 69 | BM128: 66.22222222 | BO128: 63 | BP128: 54 | BQ128: 65 | BR128: 61 | BS128: 73 | BT128: 54 | BU128: 55 | BV128: 55 | BW128: 63 | BX128: 65 | BY128: 64 | CA128: 97 | CB128: 91 | CC128: 100 | CD128: 96 | CE128: 98 | CF128: 95.33333333 | CG128: 91 | CH128: 93.16666667 | CI128: 96 | CJ128: 95.33333333 | CK128: 96 | CM128: 91 | CN128: 97 | CO128: 98 | CP128: 95.33333333 | CQ128: 93 | CR128: 98 | CS128: 98 | CT128: 98 | CU128: 95.44444444 | CV128: 95 | CW128: 95.22222222
A129: 106 | B129: =COUNTIF($F$24:F129,F129) -> 50 | C129: 106/4 | D129: اسماء44 | E129: أنثى | F129: الخامس-ب | G129: 87 | H129: 100 | I129: 100 | J129: 96 | K129: 100 | L129: 100 | M129: 90 | N129: 95 | O129: 97 | P129: 97 | Q129: 97 | S129: 93 | T129: 100 | U129: 98 | V129: 97 | W129: 100 | X129: 94 | Y129: 99 | Z129: 97 | AA129: 98 | AB129: 100 | AC129: 99 | AE129: 94 | AF129: 96 | AG129: 94 | AH129: 95 | AI129: 93 | AJ129: 100 | AK129: 100 | AL129: 100 | AM129: 96 | AN129: 98 | AO129: 97 | AQ129: 86 | AR129: 94 | AS129: 100 | AT129: 93.33333333 | AU129: 99 | AV129: 100 | AW129: 98 | AX129: 99 | AY129: 97.11111111 | AZ129: 100 | BA129: 99 | BC129: 97 | BD129: 100 | BE129: 100 | BF129: 99 | BG129: 92 | BH129: 100 | BI129: 96 | BJ129: 98 | BK129: 96.33333333 | BL129: 97 | BM129: 97 | BO129: 100 | BP129: 100 | BQ129: 100 | BR129: 100 | BS129: 88 | BT129: 97 | BU129: 94 | BV129: 96 | BW129: 95 | BX129: 92 | BY129: 94 | CA129: 97 | CB129: 98 | CC129: 100 | CD129: 98.33333333 | CE129: 99 | CF129: 98 | CG129: 98 | CH129: 98 | CI129: 98.44444444 | CJ129: 98 | CK129: 98.22222222 | CM129: 98 | CN129: 97 | CO129: 99 | CP129: 98 | CQ129: 99 | CR129: 99 | CS129: 99 | CT129: 99 | CU129: 99 | CV129: 99 | CW129: 99
A130: 107 | B130: =COUNTIF($F$24:F130,F130) -> 51 | C130: 77/4 | D130: اسماء45 | E130: أنثى | F130: الخامس-ب | G130: 51 | H130: 74 | I130: 73 | J130: 66 | K130: 86 | L130: 78 | M130: 81 | N130: 80 | O130: 77.33333333 | P130: 81 | Q130: 79.16666667 | S130: 68 | T130: 52 | U130: 55 | V130: 58.33333333 | W130: 65 | X130: 59 | Y130: 63 | Z130: 61 | AA130: 61.44444444 | AB130: 63 | AC130: 62.22222222 | AE130: 50 | AF130: 65 | AG130: 50 | AH130: 55 | AI130: 67 | AJ130: 57 | AK130: 45 | AL130: 51 | AM130: 58 | AN130: 52 | AO130: 55 | AQ130: 51 | AR130: 52 | AS130: 65 | AT130: 56 | AU130: 64 | AV130: 52 | AW130: 47 | AX130: 50 | AY130: 57 | AZ130: 45 | BA130: 51 | BC130: 73 | BD130: 58 | BE130: 43 | BF130: 58 | BG130: 83 | BH130: 60 | BI130: 40 | BJ130: 50 | BK130: 64 | BL130: 66 | BM130: 65 | BO130: 65 | BP130: 53 | BQ130: 59 | BR130: 59 | BS130: 62 | BT130: 55 | BU130: 36 | BV130: 46 | BW130: 56 | BX130: 79 | BY130: 68 | CA130: 80 | CB130: 80 | CC130: 86 | CD130: 82 | CE130: 88 | CF130: 83 | CG130: 80 | CH130: 82 | CI130: 84 | CJ130: 83 | CK130: 84 | CM130: 80 | CN130: 80 | CO130: 89 | CP130: 83 | CQ130: 83 | CR130: 88 | CS130: 89 | CT130: 89 | CU130: 85 | CV130: 86 | CW130: 86
A131: 108 | B131: =COUNTIF($F$24:F131,F131) -> 52 | C131: 323/3 | D131: اسماء46 | E131: أنثى | F131: الخامس-ب | G131: 50 | H131: 75 | I131: 68 | J131: 64.33333333 | K131: 66 | L131: 70 | M131: 70 | N131: 70 | O131: 67 | P131: 70 | Q131: 69 | S131: 89 | T131: 62 | U131: 50 | V131: 67 | W131: 65 | X131: 53 | Y131: 52 | Z131: 53 | AA131: 62 | AB131: 55 | AC131: 59 | AE131: 50 | AF131: 50 | AG131: 57 | AH131: 52.33333333 | AI131: 49 | AJ131: 55 | AK131: 76 | AL131: 66 | AM131: 56 | AN131: 52 | AO131: 54 | AQ131: 55 | AR131: 52 | AS131: 45 | AT131: 51 | AU131: 53 | AV131: 55 | AW131: 55 | AX131: 55 | AY131: 53 | AZ131: 55 | BA131: 54 | BC131: 75 | BD131: 40 | BE131: 40 | BF131: 52 | BG131: 41 | BH131: 53 | BI131: 83 | BJ131: 68 | BK131: 54 | BL131: 60 | BM131: 57 | BO131: 40 | BP131: 34 | BQ131: 50 | BR131: 41.33333333 | BS131: 60 | BT131: 55 | BU131: 46 | BV131: 51 | BW131: 51 | BX131: 48 | BY131: 50 | CA131: 81 | CB131: 80 | CC131: 80 | CD131: 80.33333333 | CE131: 84 | CF131: 81 | CG131: 80 | CH131: 81 | CI131: 82 | CJ131: 81 | CK131: 82 | CM131: 80 | CN131: 81 | CO131: 82 | CP131: 81 | CQ131: 81 | CR131: 84 | CS131: 82 | CT131: 83 | CU131: 82 | CV131: 85 | CW131: 84
A132: 109 | B132: =COUNTIF($F$24:F132,F132) -> 53 | C132: 319/3 | D132: اسماء47 | E132: أنثى | F132: الخامس-ب | G132: 54 | H132: 61 | I132: 50 | J132: 55 | K132: 79 | L132: 67 | M132: 58 | N132: 63 | O132: 66 | P132: 63 | Q132: 65 | S132: 42 | T132: 45 | U132: 51 | V132: 46 | W132: 70 | X132: 57 | Y132: 42 | Z132: 50 | AA132: 55.33333333 | AB132: 47 | AC132: 51.16666667 | AE132: 38 | AF132: 25 | AG132: 40 | AH132: 34.33333333 | AI132: 37 | AJ132: 26 | AK132: 34 | AL132: 30 | AM132: 34 | AN132: 36 | AO132: 35 | AQ132: 35 | AR132: 38 | AS132: 50 | AT132: 41 | AU132: 53 | AV132: 50 | AW132: 50 | AX132: 50 | AY132: 48 | AZ132: 32 | BA132: 40 | BC132: 40 | BD132: 45 | BE132: 46 | BF132: 44 | BG132: 66 | BH132: 40 | BI132: 40 | BJ132: 40 | BK132: 50 | BL132: 46 | BM132: 48 | BO132: 54 | BP132: 54 | BQ132: 41 | BR132: 50 | BS132: 50 | BT132: 55 | BU132: 46 | BV132: 51 | BW132: 50.33333333 | BX132: 61 | BY132: 56 | CA132: 75 | CB132: 77 | CC132: 76 | CD132: 76 | CE132: 77 | CF132: 76.33333333 | CG132: 77 | CH132: 77 | CI132: 77 | CJ132: 76.33333333 | CK132: 77 | CM132: 77 | CN132: 75 | CO132: 77 | CP132: 76.33333333 | CQ132: 76 | CR132: 77 | CS132: 77 | CT132: 77 | CU132: 76.44444444 | CV132: 75 | CW132: 76
